{"text_format":"1","workbook":"xlsx","n_sheets":5,"sheets":["Einführung & Hilfe","OT und Infos","Charakterdetails 1","Charakterdetails Vorlage","NSC"],"not_rendered":{"charts":0,"images":0,"macros":1,"external_links":0,"defined_names":4,"comments":0,"pivot_tables":0},"unopened":[],"bounds":{"document_bytes":16777216,"sheet_cells":100000,"rows_first":2000,"rows_last":500,"rows_between":2000,"halvings":0,"cell_chars":16384,"cell_head_chars":4096},"cells_cut":0,"cells_raw":0,"read":"whole","date_system":"1900"}

{"sheet":"Einführung & Hilfe","index":0,"n_rows":66,"n_cols":7,"rows_kept":66,"cut":false,"hidden":false,"merged":[[41,2,41,6],[42,0,42,6],[53,0,53,6],[46,0,46,6],[48,0,48,6],[49,0,49,6],[44,0,44,6],[51,0,51,6],[56,0,56,6],[65,0,65,6],[61,0,61,6],[26,2,26,6],[50,0,50,6],[47,0,47,6],[33,2,33,6],[27,2,27,6],[43,0,43,6],[29,2,29,6],[30,2,30,6],[57,0,57,6],[34,2,34,6],[39,2,39,6],[38,2,38,6],[55,0,55,6],[58,0,58,6],[59,0,59,6],[60,0,60,6],[63,0,63,6],[62,0,62,6],[28,2,28,6],[40,2,40,6],[22,2,22,6],[23,2,23,6],[24,2,24,6],[25,2,25,6],[31,2,31,6],[37,2,37,6],[36,2,36,6],[35,2,35,6],[32,2,32,6],[16,2,16,6],[17,2,17,6],[21,2,21,6],[19,2,19,6],[18,2,18,6],[0,0,0,6],[7,0,7,6],[45,0,45,6],[52,0,52,6],[11,2,11,6],[1,0,1,6],[2,0,2,6],[3,0,3,6],[8,2,8,6],[20,0,20,6],[9,2,9,6],[10,2,10,6],[12,2,12,6],[13,2,13,6],[14,2,14,6],[15,2,15,6]]}
["Willkommen zum DragonSys Charakterbogen"]
["Dieser Excel Charakterbogen entstand ursprünglich aus einer einfachen Liste zur Übersicht besuchter Cons, entstanden ist dieser automatisierte und bequem zu bedienende Rund-Um Charakterbogen."]
["Auf dieser Seite werde ich eine Einführung zur Benutzung dieses Dokumentes, seiner Funktionen und seiner Möglichkeiten geben, um die hier eingeflossene Arbeit am Besten ausnutzbar zu machen."]
["Dies geschieht in der Reihenfolge, wie ein Charakter angelegt wird und sollte somit die größtmögliche Übersicht gewährleisten."]
[null,null,null,null,null,null,"© Kai-Wilm Herbertz"]
[null,null,null,null,null,null,"LordDuncan@gmx.de"]
[]
["Versionskontrolle"]
["Draft","Okt. 15, 2009","Experimentelle Erstellung und Vorlage zur Kontrolle"]
["V0.01","Okt. 19, 2009","Formelverbesserung der Con-Tage und Anpassung der Hilfe"]
["V0.02","Okt. 20, 2009","Formelverbesserung Rüstungsrechner"]
["V1.00","Okt. 21, 2009","Fertigstellung und Freigabe zur Prüfung einer größeren Gemeinschaft"]
["V1.01","Nov. 16, 2009","Ein Schreibfehler in den Zaubern korrigiert\nFluch und Götterfluch sind nun korrekterweise nicht mehr in den Gruppenimmunitäten der Magie enthalten"]
["V1.02","Dez. 07, 2009","Die Immunität gegen Meisterzauber deckt nun wie vorgesehen auch Zauber bis 50 Punkte Magiekosten ab"]
["V1.03","Dez. 11, 2009","Zugriffsrechte korrigiert, das Einfügen von Bildern ist nun in den Charakterdetails 2 & 3 möglich, die Charaktergeschichte ist nun erneut editierbar"]
["V1.04","Dez.14, 2009","Angeborene Fähigkeiten verdoppeln nun automatisch wie im Regelwerk vorgesehen ihr Punktekosten bei Auswahl, diese sind nur bei Charaktererschaffung erhältlich und beschränken sich aufgrund ihrer Kosten auf Zauber mit maximal 30 Punkten Basiskosten, dies wird nun bei der Auswahl des Typs (Z / I / A) berücksichtigt"]
["V1.05","Jan. 12, 2010","Von Hand ausfüllbare Zeilen (Kapitel IV, Con-Tage Spieler/NSC und Besitztümer) sind nun editierbar, ohne das vorherige Informationen versehentlich überschrieben werden"]
["V1.06","Jan. 18, 2010","Aufwertung von III. Magierfertigkeiten, magisch begabte Klassen können nun ihre Magie- und Ritualkraft auf einen Blick ablesen und absehen, welche Zauber ihnen vorenthalten bleiben, bis ihre jeweilige (Groß-) Meisterprüfung vollzogen wurde. Darüberhinaus werden Spruchkosten, die ab der Prüfung kostenlos sind, ab dieser auf 0 gesetzt.\nAlle Fertigkeiten, die aufeinander aufbauen, werden ausgegraut, bis ihre Vorstufe erworben wurde."]
["V1.07","Jan. 21, 2010","Kosmetische Korrekturen, Konvertierung in Open Office"]
["V1.08","Jan. 25, 2010","Hinzufügen der Barbarenrüstung (auch Barbärchen oder Muskelrüstung genannt) im Rüstungsrechner, hierbei handelt es sich um eine optionale Rüstungsregel die durch Nacktheit und Muskeln Ausdruck verleiht.\nErweiterung der Funktionalität um eine Auswahl des Regelwerks für den Charakter, in der gestrichene Fähigkeiten und Besonderheiten hervorgehoben werden.\nEin Formfehler wurde beseitigt, der Open Office Nutzern die Wahl der DragonSys Klasse und des Regelwerks verweigerte.\nForm- und Strukturanpassungen, die Besuchten Cons sind nun am Ende der Charakterdetails."]
["Versionskontrolle"]
["V1.09","Feb. 04, 2010","Die unter V1.04 angegebene Begrenzung der Angeborenen Fähigkeiten auf Charaktererschaffung ist nicht festgeschrieben und wird zurückgenommen. Von nun an stehen alle Zauber erneut als Angeborene Fähigkeit zur Verfügung."]
["V1.10","Feb. 08, 2010","Einpflegen der Regelwerke DSys zweite und dritte Edition.\nIn der Tabelle Convention / Besondere Aktion sind nun die Optionen Interesse, Anmelden, Bezahlen, Warten in der Spalte Con-Tage verfügbar, womit die Planung zukünftiger Cons vereinfacht wird. Die Tabelle wird dementsprechend umbenannt in Vergangene & Zukünftige Veranstaltungen.\nEin Makro zum hinzufügen weiterer Charaktere wurde eingefügt, hiermit entfällt das manuelle Umheben einer Vorlage nun vollständig.\nDer Zauber Blutung stoppen fehlte unter den Lehrlingszaubern, dies wurde nachgebessert.\nDie Zauber Magischer Schutz und Magischer Segen waren fälschlicherweise als Schutzzauber definiert, diese wurden nun wieder ihrer ursprünglichen Kategorie der Beeinflussungszauber zugeordnet.\nEin Regelwerkseditor wurde eingepflegt, von nun an ist es jedem möglich, sein eigenes Regelwerk zu konfigurieren und auszuwählen in den Charakterdetails. Die Anpassung findet im Reiter OT und Infos statt.\nRevision der Einführung & Hilfe.\nDurch eine Vielzahl bedingter Formatierungen ist eine Funktion innerhalb von Open Office grafisch eingeschränkt, die Grundfunktionen eines Charakters sind verfügbar, das Makro zum Kopieren eines Charakterblattes leider nicht."]
["V1.11","Mär. 22, 2010","Ein Fehler im Rüstungsrechner wurde behoben"]
["V1.12","Apr. 30, 2010","Die Kosten des Zaubers Magie Identifizieren wurden auf 30 korrigiert."]
["V1.13","Juli 19, 2010","Der Faktor für Immunitätskosten für das Regelwerk DragonSys ist nun aufgrund des DragonSys 2 Regelwerkes verstellbar.\nEin Fehler im Rüstungsrechner wurde behoben, der den Wert für Gambesons in den Arm Teilzonen zu hoch ansetzte."]
["V1.13.1","Okt. 26, 2010","Kleinere Schönheitskorrekturen."]
["V1.14","Nov. 25, 2010","Beseitigung von Fehlern durch Microsoft Office 2010, Regelwerke können nun Punktekosten variabel gestalten, individuellere Anpassung der Fähigkeiten und Regelwerke."]
["V1.14.1","Jan. 09, 2012","In der Rubrik 'NSC' können Cons nun erneut mit Anmeldestatus versehen werden."]
["V1.14.2","Apr. 18, 2012","Die Errata des DragonSys 3 (16.12.2010) wurde eingepflegt. Die Kosten für Energiebolzen (10->20) und Magiesicherung (30->100) wurden angepasst."]
["V1.15","Feb. 11, 2015","Die Auswahl der Fähigkeitsart (A, Z, I) fügt nun selbständig die EP Kosten."]
[]
[]
[]
[]
[]
[]
[]
[]
[]
[]
[]
["Allgemeines"]
["Durch den mittlerweile großen Detailreichtum dieses Dokumentes empfehle ich, bei einem Papierausdruck die Option Doppelseitig oder zwei Seiten pro Blatt zu benutzen.\nFür Notizen können in den Charakterdetails Kommentarnoten eingefügt werden."]
[]
["Reiter OT und Infos - Individualisierung und Anpassungen an das gespielte Regelwerk"]
["Beginnen wir mit dem Reiter \"OT und Infos\", hier tragen wir als erstes unsere Outtime Informationen wie Nachname, Vorname, Geschlecht und Geburtsdatum ein.\nDie Con-Tage sind rein informativ für die Übersichtlichkeit des Spielers."]
["Zur Rechten ist der mit einem Makro hinterlegte Knopf Neuen Charakter zufügen. Mit diesem wird selbständig ein neues Charakterblatt angelegt, dass wie gewohnt verwendet werden kann."]
["Die darauffolgenden Tabellen Regelwerk und Charakterklassen gibt uns neben der Übersicht auch die Möglichkeit, ein eigenes Regelwerk einzustellen und anzupassen. In den Charakterdetails ist jeweils eines dieser Regelwerke auswählbar, was auf die erlaubten Fähigkeiten Einfluss nimmt und diese für das gewählte Regelwerk sichtbar streicht. Das bedeutet, dass es uns möglich ist, die Vorgaben für z.B. Startpunkte, Bonusfaktor und Basis-Erfahrungspunkte pro Tag anzupassen. Diese Werte werden automatisch im gesamten Charakterbogen übernommen. Desweiteren können wir im weiteren Verlauf alle für unser Regelwerk gesperrten Fähigkeiten mit einem X im Charakterbogen aussperren und individuelle Kosten für Fähigkeiten, sowie Kostenfaktoren für Immunitäten und Angeborene Fähigkeiten einstellen."]
["Zum Ende hin gibt es eine Tabelle zur Rüstungswertigkeitsberechnung. Hier kann noch rumexperimentiert werden, ohne die separate Informationstabelle in den Charakterdetails zu verstellen. Einzig die Boni/Mali müssen von Hand (nach SL Maßgabe) eingetragen werden. Die einzelnen Rüstungspunkte sind in der darunter liegenden Tabelle aufgeschlüsselt und können einzeln angepasst werden (z.B. die Rundung ab 0,5 auf 1,0; oder das anpassen einzelner Rüstungswerte). Auch diese Werte werden automatisch auf alle Charaktere übernommen. Die Auswahl der Rüstungsart und Abdeckung geschieht über ein Drop-Down Prinzip und vereinfacht den bisherigen Rechenaufwand erheblich."]
["Ergänzt wird das Ganze durch eine Definition der einzelnen Rüstungsarten, die zur Veranschaulichung dienen sollen."]
[]
["Charakterdetails"]
["Auf der ersten Seite haben wir nun die Möglichkeit, unserem Charakter seinen Nachnamen, Vornamen, die Berufung (z.B. Elementarist, Soldat, Alchemist etc.) und die Rasse zu geben. Die Spielerinformationen wurden bereits von der Vorseite eingetragen. Die (DragonSys) Klasse unseres Charakters wird einfach per Drop-Down Liste gewählt. Folgende Auswahlmöglichkeiten bestehen:"]
[null,{"$f":"'OT und Infos'!A16","v":"Universell"},{"$f":"'OT und Infos'!A20","v":"Kämpfer"},{"$f":"'OT und Infos'!A24","v":"Magier"},{"$f":"'OT und Infos'!A28","v":"Abenteurer"}]
["Für die gewählte Klasse ungültige Bereiche werden automatisch ausgegraut. Das gleiche Verfahren trifft auf die Wahl für das gespielte Regelwerk zu. Die im gewählten System gestrichenen Fertigkeiten und Zauber werden im Charakterbogen ebenfalls sichtbar gestrichen."]
["Weiterhin bietet sich hier die Option, dass ein NSC-Bonus, der seitens SL gestattet wird, prozentual festgelegt werden kann. Dieser wird dann automatisch aus den NSC Con-Tagen errechnet und separat aufgeführt."]
["Abschließend sind die einzelnen Fertigkeitsgebiete (Kämpfer, Abenteurer, Magier) aufgelistet, in denen wir unsere Punkte verteilen können. EXP markierte Kostenfelder sind nach oben offen, eine Definition bietet das entsprechende Regelwerk. Unter dem Punkt Besondere Zauber / Immunitäten / Sonderfähigkeiten haben wir Raum für Hausregelfertigkeiten (z.B. Bewußtlosschlagen) und Zauber aus Eigenkreationen abseits der bekannten Regelwerke Arcanum Magnum und Liber Magicae. In der Spalte zwischen dem Fertigkeitsnamen und seinen Punktekosten kann nun zur besseren Übersicht per Drop-Down Liste ausgewählt zwischen Zauber (Z), Angeborene Fähigkeit (A) und Immunität (I)."]
["Die aufgeführten 'großen' Immunitätsblöcke gegen Lehrlings- und Meisterzauber, sowie der gegen alle Arten von Magie, grauen automatisch bei Erwerb die blockierten Zauber aus, was zum Einen die Übersicht wart und zum Anderen den Erwerb von Zauber und Immunität gleichzeitig ausschließt."]
["Abgeschlossen wird die erste Seite von einer Zusammenfassung aller Punktekosten und der noch verteilbaren Punkte."]
["Die beiden nun folgenden Seiten beinhalten die gebräuchlichen Zauber des Arcanum Magnum und des Liber Magicae. Über Drop-Down Liste wird wie zuvor ausgewählt zwischen Zauber (Z), Angeborene Fähigkeit (A) und Immunität (I) der einzelnen Positionen. Dies ist wichtig für abgewandelte Punktekosten zB bei Angeborenen Fähigkeiten oder Immunitäten."]
["Abgerundet werden die Charakterdetails von einer Seite für die Besitztümer (z.B. Artefakte) des Charakters, Platz für ein Charakterfoto mit unten angestellter Rüstungsberechnung für die SL und Raum für eine Charaktergeschichte."]
["Abschließend kommen vier Seiten, auf denen wir unsere geplanten und besuchten Cons eintragen können mit Titel, Datum und Anzahl gewerteter Con-Tage (gleiches gilt für die NSC / SL Cons im separaten Reiter NSC). Eine Umrechnung der Tage mit den vorgegebenen Faktoren geschieht automatisch, bei abweichender Erfahrungspunktebelohnung muss dieses Feld von Hand überschrieben werden."]
["Optional kann auch per Drop Down eine der folgenden Optionen in der Spalte der Con-Tage gewählt werden:"]
[null,"Interesse","Anmelden","Bezahlen","Warten"]
["Hiermit können Cons, die bereits im Vorraus eingetragen werden, mit ihre jeweiligen Status markiert werden. Dadurch kann man schneller erfassen, an welchen Cons man interessiert ist, wo man sich anmelden möchte, bezahlen oder nur noch auf eine Bestätigung warten muss."]

{"sheet":"OT und Infos","index":1,"n_rows":306,"n_cols":8,"rows_kept":306,"cut":false,"hidden":false,"merged":[[0,6,5,7],[11,0,11,1],[152,0,152,1],[132,0,132,1],[101,0,101,1],[91,0,91,1],[86,0,86,1],[22,0,22,1],[290,0,290,7],[289,0,289,7],[276,0,276,7],[275,1,275,6],[274,1,274,6],[286,0,286,3],[286,6,286,7],[287,4,287,7],[283,4,283,5],[286,4,286,5],[284,6,284,7],[285,1,285,3],[288,0,288,3],[18,0,18,1],[20,0,20,1],[21,0,21,1],[25,0,25,1],[26,0,26,1],[288,4,288,7],[285,4,285,5],[285,6,285,7],[287,0,287,3],[284,4,284,5],[283,1,283,3],[284,1,284,3],[262,7,263,7],[261,0,261,7],[278,6,278,7],[278,4,278,5],[37,0,37,1],[38,0,38,1],[39,0,39,1],[40,0,40,1],[41,0,41,1],[42,0,42,1],[28,0,28,1],[29,0,29,1],[30,0,30,1],[34,0,34,1],[35,0,35,1],[305,0,305,7],[291,0,291,7],[292,0,292,7],[294,0,294,7],[300,0,300,7],[299,0,299,7],[293,0,293,7],[301,0,301,7],[302,0,302,7],[303,0,303,7],[304,0,304,7],[9,0,9,1],[10,0,10,1],[14,0,14,1],[16,0,16,1],[17,0,17,1],[0,0,0,5],[277,0,277,7],[282,4,282,5],[8,0,8,1],[281,1,281,3],[282,1,282,3],[279,1,279,3],[278,1,278,3],[280,1,280,3],[279,4,279,5],[280,4,280,5],[281,4,281,5],[262,0,263,0],[262,1,262,3],[262,4,262,6],[280,6,280,7],[281,6,281,7],[279,6,279,7],[24,0,24,1],[36,0,36,1],[33,0,33,1],[49,0,49,1],[52,0,52,1],[53,0,53,1],[54,0,54,1],[55,0,55,1],[56,0,56,1],[51,0,51,1],[43,0,43,1],[44,0,44,1],[45,0,45,1],[46,0,46,1],[47,0,47,1],[48,0,48,1],[63,0,63,1],[64,0,64,1],[65,0,65,1],[66,0,66,1],[67,0,67,1],[68,0,68,1],[57,0,57,1],[58,0,58,1],[59,0,59,1],[60,0,60,1],[61,0,61,1],[62,0,62,1],[75,0,75,1],[76,0,76,1],[77,0,77,1],[78,0,78,1],[79,0,79,1],[82,0,82,1],[81,0,81,1],[69,0,69,1],[70,0,70,1],[71,0,71,1],[72,0,72,1],[73,0,73,1],[74,0,74,1],[93,0,93,1],[94,0,94,1],[95,0,95,1],[96,0,96,1],[97,0,97,1],[98,0,98,1],[83,0,83,1],[84,0,84,1],[87,0,87,1],[88,0,88,1],[89,0,89,1],[92,0,92,1],[108,0,108,1],[109,0,109,1],[110,0,110,1],[111,0,111,1],[112,0,112,1],[113,0,113,1],[102,0,102,1],[103,0,103,1],[104,0,104,1],[105,0,105,1],[106,0,106,1],[107,0,107,1],[120,0,120,1],[121,0,121,1],[122,0,122,1],[123,0,123,1],[124,0,124,1],[125,0,125,1],[114,0,114,1],[115,0,115,1],[116,0,116,1],[117,0,117,1],[118,0,118,1],[119,0,119,1],[134,0,134,1],[135,0,135,1],[136,0,136,1],[137,0,137,1],[138,0,138,1],[139,0,139,1],[126,0,126,1],[127,0,127,1],[128,0,128,1],[129,0,129,1],[130,0,130,1],[133,0,133,1],[145,0,145,1],[150,0,150,1],[153,0,153,1],[140,0,140,1],[141,0,141,1],[142,0,142,1],[143,0,143,1],[144,0,144,1],[146,0,146,1],[154,0,154,1],[155,0,155,1],[156,0,156,1],[157,0,157,1],[158,0,158,1],[159,0,159,1],[147,0,147,1],[148,0,148,1],[149,0,149,1],[168,0,168,1],[169,0,169,1],[170,0,170,1],[171,0,171,1],[166,0,166,1],[172,0,172,1],[160,0,160,1],[161,0,161,1],[162,0,162,1],[163,0,163,1],[164,0,164,1],[167,0,167,1],[179,0,179,1],[180,0,180,1],[181,0,181,1],[182,0,182,1],[183,0,183,1],[184,0,184,1],[186,0,186,1],[173,0,173,1],[174,0,174,1],[175,0,175,1],[176,0,176,1],[177,0,177,1],[178,0,178,1],[194,0,194,1],[195,0,195,1],[196,0,196,1],[197,0,197,1],[198,0,198,1],[187,0,187,1],[188,0,188,1],[191,0,191,1],[192,0,192,1],[193,0,193,1],[190,0,190,1],[210,0,210,1],[211,0,211,1],[199,0,199,1],[200,0,200,1],[202,0,202,1],[203,0,203,1],[204,0,204,1],[205,0,205,1],[201,0,201,1],[259,0,259,1],[99,0,99,1],[249,0,249,1],[250,0,250,1],[246,0,246,1],[237,0,237,1],[238,0,238,1],[239,0,239,1],[240,0,240,1],[241,0,241,1],[242,0,242,1],[232,0,232,1],[227,0,227,1],[233,0,233,1],[234,0,234,1],[235,0,235,1],[236,0,236,1],[224,0,224,1],[225,0,225,1],[228,0,228,1],[229,0,229,1],[230,0,230,1],[231,0,231,1],[218,0,218,1],[257,0,257,1],[255,0,255,1],[256,0,256,1],[251,0,251,1],[252,0,252,1],[253,0,253,1],[254,0,254,1],[247,0,247,1],[258,0,258,1],[248,0,248,1],[1,1,1,5],[2,1,2,5],[3,1,3,5],[4,1,4,5],[5,1,5,5],[6,0,6,7],[245,0,245,1],[243,0,243,1],[244,0,244,1],[219,0,219,1],[220,0,220,1],[221,0,221,1],[222,0,222,1],[223,0,223,1],[212,0,212,1],[213,0,213,1],[214,0,214,1],[215,0,215,1],[216,0,216,1],[217,0,217,1],[206,0,206,1],[207,0,207,1],[208,0,208,1],[209,0,209,1]]}
["Spielerinformationen"]
["Name:","Nachname"]
["Vorname:","Vorname"]
["Geschlecht:","M/W"]
["Geburtstag:","1980-01-01"]
["Con-Tage:",{"$f":"SUM(NSC!C3:C50,NSC!G3:G50,'Charakterdetails 1:Charakterdetails Vorlage'!J6)","v":0}]
[]
["Regelwerk",null,null,null,1,2,3,4]
["Bezeichnung",null,"DragonSys","DragonSys 3rd Ed.","Offenes DragonSys","Engonien","Eigene 2","Eigene 3"]
["Landes- / Gruppenname",null,"---","---","---","Engonien","---","---"]
["Basis Regelwerk",null,"DragonSys Classic & 2nd","DragonSys dritte Edition","DragonSys Classic & 2nd","DragonSys dritte Edition","DragonSys dritte Edition","DragonSys dritte Edition"]
["Homepage",null,"---","---","---",{"$f":"HYPERLINK(\"http://www.larp-koeln.de\",\"Engonien\")","v":"Engonien"},"---","---"]
[]
["Charakterklassen"]
["Basis Erfahrung pro Tag",null,7,5,7,5,5,5]
["Universell"]
["- Startpunkte",null,50,50,50,50,50,50]
["- Bonus Faktor",null,0,0,0,0,0,0]
["- Erfahrung pro Tag",null,{"$f":"C15+C15*C18","v":7},5,{"$f":"IF(E17>0,E$15+E$15*E18,0)","v":7},{"$f":"IF(F17>0,F$15+F$15*F18,0)","v":5},5,5]
["Kämpfer"]
["- Startpunkte",null,60,60,60,70,60,60]
["- Bonus Faktor",null,0.2,0.2,0.2,0.4,0.2,0.2]
["- Erfahrung pro Tag",null,{"$f":"C15+C15*C22","v":8.4},6,{"$f":"IF(E21>0,E$15+E$15*E22,0)","v":8.4},{"$f":"IF(F21>0,F$15+F$15*F22,0)","v":7},6,6]
["Magier"]
["- Startpunkte",null,60,60,60,70,60,60]
["- Bonus Faktor",null,0.2,0.2,0.2,0.4,0.2,0.2]
["- Erfahrung pro Tag",null,{"$f":"C15+C15*C26","v":8.4},6,{"$f":"IF(E25>0,E$15+E$15*E26,0)","v":8.4},{"$f":"IF(F25>0,F$15+F$15*F26,0)","v":7},6,6]
["Abenteurer"]
["- Startpunkte",null,70,0,70,70,70,0]
["- Bonus Faktor",null,0.4,0,0.4,0.4,0.4,0]
["- Erfahrung pro Tag",null,{"$f":"C15+C15*C30","v":9.8000000000000007},0,{"$f":"IF(E29>0,E$15+E$15*E30,0)","v":9.8000000000000007},{"$f":"IF(F29>0,F$15+F$15*F30,0)","v":7},7,0]
[]
["Fertigkeiten"]
["I. Kämpferfertigkeiten",null,{"$f":"$C$9","v":"DragonSys"},{"$f":"$D$9","v":"DragonSys 3rd Ed."},{"$f":"$E$9","v":"Offenes DragonSys"},{"$f":"$F$9","v":"Engonien"},{"$f":"$G$9","v":"Eigene 2"},{"$f":"$H$9","v":"Eigene 3"}]
["Berserker 1",null,20,20,20,20,20,20]
["Berserker 2",null,30,30,30,30,30,30]
["Berserker 3",null,50,50,50,50,"X","X"]
["Berserker 4",null,100,70,100,70,"X","X"]
["Berserker 5",null,"X",100,"X",100,"X","X"]
["Kämpferschutz 1",null,30,30,30,30,30,30]
["Kämpferschutz 2",null,50,50,50,50,50,50]
["Kämpferschutz 3",null,70,70,70,70,"X","X"]
["Kämpferschutz 4",null,100,100,100,100,"X","X"]
["Kämpferschutz 5",null,200,200,200,200,"X","X"]
["Kämpferschutz 6",null,400,"X",400,"X","X","X"]
["Regeneration 1",null,50,50,50,50,50,50]
["Regeneration 2",null,100,100,100,100,100,100]
["Regeneration 3",null,150,150,150,150,"X","X"]
["Regeneration 4",null,200,200,200,200,"X","X"]
["Seelenschutz",null,50,50,50,50,50,50]
[]
["II. Abenteurerfertigkeiten",null,{"$f":"$C$9","v":"DragonSys"},{"$f":"$D$9","v":"DragonSys 3rd Ed."},{"$f":"$E$9","v":"Offenes DragonSys"},{"$f":"$F$9","v":"Engonien"},{"$f":"$G$9","v":"Eigene 2"},{"$f":"$H$9","v":"Eigene 3"}]
["Adel",null,"EXP","X","EXP","EXP","EXP","X"]
["Alchemie / Giftkunde / Trankkunde",null,"X","EXP","EXP","EXP","EXP","EXP"]
["Entfesseln",null,"X",50,50,"X","X",50]
["Fallenkunde",null,"EXP","EXP","EXP","EXP","X","EXP"]
["Feuer machen",null,10,"X",10,"X","X","X"]
["Geschichten & Legenden",null,"EXP","EXP","EXP","EXP","X","EXP"]
["Handel",null,"EXP","EXP","EXP","EXP","X","EXP"]
["Erste Hilfe / Heilkunde (Einzelfertigkeit) (DS2)",null,30,"X",30,"X","X","X"]
["Heilkunde 1 (DS3)",null,"X",20,"X",20,20,20]
["Heilkunde 2 (DS3)",null,"X",40,"X",40,40,40]
["Heilkunde 3 (DS3)",null,"X",80,"X",80,80,80]
["Immunität gegen Gift",null,"EXP","EXP","EXP","EXP","X","EXP"]
["Kräuterkunde",null,"X","X","EXP","X","X","X"]
["Magischer Gegenstand",null,"EXP","EXP","EXP","EXP","EXP","EXP"]
["Meucheln (Einzelfertigkeit) (DS3)",null,"X",50,"X",50,"X",50]
["Meucheln 1 (DS2)",null,20,"X",20,"X","X","X"]
["Meucheln 2 (DS2)",null,30,"X",30,"X","X","X"]
["Meucheln 3 (DS2)",null,50,"X",50,"X","X","X"]
["Meucheln 4 (DS2)",null,50,"X",50,"X","X","X"]
["Meucheln 5 (DS2)",null,70,"X",70,"X","X","X"]
["Meucheln 6 (DS2)",null,80,"X",80,"X","X","X"]
["Meucheln 7 (DS2)",null,100,"X",100,"X","X","X"]
["Meucheln 8 (DS2)",null,200,"X",200,"X","X","X"]
["Niederschlagen",null,"X",25,25,25,"X",25]
["Rüstung reparieren",null,"X","X","EXP","X","X","X"]
["Schlösser",null,"EXP","EXP","EXP","EXP","X","EXP"]
["Schriften",null,"EXP","EXP","EXP","EXP","X","EXP"]
["Spuren lesen",null,"EXP","EXP","EXP","EXP","X","EXP"]
[]
["III. Magierfertigkeiten",null,{"$f":"$C$9","v":"DragonSys"},{"$f":"$D$9","v":"DragonSys 3rd Ed."},{"$f":"$E$9","v":"Offenes DragonSys"},{"$f":"$F$9","v":"Engonien"},{"$f":"$G$9","v":"Eigene 2"},{"$f":"$H$9","v":"Eigene 3"}]
["Meisterprüfung",null,50,50,50,50,50,50]
["Großmeisterfähigkeit",null,100,100,100,100,100,100]
["Erhöhung der Magiepunkte",null,"X","X",null,null,null,"X"]
[]
["IV. Besondere Zauber / Immunitäten / Sonderf.",null,{"$f":"$C$9","v":"DragonSys"},{"$f":"$D$9","v":"DragonSys 3rd Ed."},{"$f":"$E$9","v":"Offenes DragonSys"},{"$f":"$F$9","v":"Engonien"},{"$f":"$G$9","v":"Eigene 2"},{"$f":"$H$9","v":"Eigene 3"}]
["Immunität gegen Lehrlingszauber (≤ 20 MP)",null,50,"X",50,"X","X","X"]
["Immunität gegen Meisterzauber (≤ 50 MP)",null,150,"X",150,"X","X","X"]
["Immunität gegen alle Magie",null,500,"X",500,"X","X","X"]
[]
["IV. Zauber/Immunitäten/ Sonderfähigkeiten",null,{"$f":"$C$9","v":"DragonSys"},{"$f":"$D$9","v":"DragonSys 3rd Ed."},{"$f":"$E$9","v":"Offenes DragonSys"},{"$f":"$F$9","v":"Engonien"},{"$f":"$G$9","v":"Eigene 2"},{"$f":"$H$9","v":"Eigene 3"}]
["Zauber"]
["Fernmagie",null,null,null,null,null,"X"]
["Immunität",null,null,null,null,null,"X"]
["Faktor Immunitätskosten",null,1,2,1,2,1,2]
["Angeborene Fähigkeit",null,null,null,null,null,"X"]
["Faktor Angeborene Kosten",null,2,2,2,2,1,2]
["Stärkste zu erwerbende Angeborene Fähigkeit (Grundkosten Zauber)",null,null,30,null,null,null,30]
["Begrenzung auf Charaktererschaffung",null,"Nein","Ja","Nein","Ja","Nein","Ja"]
[]
["Allgemein",null,{"$f":"$C$9","v":"DragonSys"},{"$f":"$D$9","v":"DragonSys 3rd Ed."},{"$f":"$E$9","v":"Offenes DragonSys"},{"$f":"$F$9","v":"Engonien"},{"$f":"$G$9","v":"Eigene 2"},{"$f":"$H$9","v":"Eigene 3"}]
["Alarm",null,20,20,20,20,20,20]
["Astrale Verfestigung",null,"X","X",200,"X","X","X"]
["Astralsicht",null,"X","X",70,"X","X","X"]
["Astraltor",null,"X","X",200,"X","X","X"]
["Aura lesen",null,"X","X",40,"X","X","X"]
["Auramaske",null,"X","X",100,"X","X","X"]
["Dämon beschwören",null,40,40,40,40,40,40]
["Dämonenauftrag",null,50,50,50,50,50,50]
["Dämonenbefehl",null,"X","X",100,"X","X","X"]
["Energiewall",null,40,40,40,40,40,40]
["Exorzismus",null,100,100,100,100,100,100]
["Göttliche Weisheiten",null,50,50,50,50,50,50]
["Magie aufheben",null,20,20,20,20,20,20]
["Magie Identifizieren",null,"X",30,30,30,30,30]
["Magie Zerstören",null,40,"X",40,"X","X","X"]
["Magieraub",null,"X","X",100,"X","X","X"]
["Magiesicherung",null,30,100,30,100,100,100]
["Magische Suche",null,20,20,20,20,20,20]
["Magische Waffe I",null,10,10,10,10,10,10]
["Magische Waffe II",null,30,30,30,30,30,30]
["Magischer Gegenstand",null,50,50,50,50,50,50]
["Magischer Riegel",null,10,10,10,10,10,10]
["Magisches Schloss",null,30,"X",30,"X","X","X"]
["Mit Toten sprechen",null,20,20,20,20,20,20]
["Schloss öffnen",null,30,"X",30,"X","X","X"]
["Seelenbann",null,"X","X",150,"X","X","X"]
["Zauber binden",null,30,30,30,30,30,30]
["Zeitkontrolle",null,50,"X",50,"X","X","X"]
["Zweites Gesicht",null,40,"X",40,40,"X","X"]
[]
["Beeinflussung",null,{"$f":"$C$9","v":"DragonSys"},{"$f":"$D$9","v":"DragonSys 3rd Ed."},{"$f":"$E$9","v":"Offenes DragonSys"},{"$f":"$F$9","v":"Engonien"},{"$f":"$G$9","v":"Eigene 2"},{"$f":"$H$9","v":"Eigene 3"}]
["Auftrag",null,100,100,100,100,100,100]
["Berserker I",null,10,10,10,10,10,10]
["Berserker II",null,20,20,20,20,20,20]
["Berserker III",null,30,30,30,30,30,30]
["Berserker IV",null,50,50,50,50,50,50]
["Feueraugen",null,10,10,10,10,10,10]
["Fluch",null,20,20,20,20,20,20]
["Freundschaft",null,20,20,20,20,20,20]
["Götterbann",null,"X","X",250,"X","X","X"]
["Götterfluch",null,100,100,100,100,100,100]
["Magischer Schutz I",null,30,30,30,30,30,30]
["Magischer Schutz II (DS3)",null,"X",30,"X",30,30,30]
["Magischer Segen",null,20,"X",20,"X","X","X"]
["Schweigen",null,20,20,20,20,20,20]
["Seelenspiegel",null,30,30,30,30,30,30]
["Vergessen",null,20,20,20,20,20,20]
["Voodoo",null,50,50,50,50,"X",50]
["Wahrheit",null,40,40,40,40,40,40]
[]
["Lehrling",null,{"$f":"$C$9","v":"DragonSys"},{"$f":"$D$9","v":"DragonSys 3rd Ed."},{"$f":"$E$9","v":"Offenes DragonSys"},{"$f":"$F$9","v":"Engonien"},{"$f":"$G$9","v":"Eigene 2"},{"$f":"$H$9","v":"Eigene 3"}]
["Aura spüren",null,"X","X",5,"X","X","X"]
["Blutung stoppen",null,"X","X",5,"X","X","X"]
["Feuerfinger",null,5,5,5,5,5,5]
["Geister spüren",null,"X","X",5,"X","X","X"]
["Gift spüren",null,5,5,5,5,5,5]
["Licht",null,5,5,5,5,5,5]
["Magie spüren",null,5,5,5,5,5,5]
["Untote spüren",null,"X","X",5,"X","X","X"]
["Verbände reinigen",null,"X","X",5,"X","X","X"]
["Wasser reinigen",null,"X","X",5,"X","X","X"]
["Wunde reinigen",null,"X","X",5,"X","X","X"]
["Zaubertrick",null,5,"X",5,5,5,5]
[]
["Heilung",null,{"$f":"$C$9","v":"DragonSys"},{"$f":"$D$9","v":"DragonSys 3rd Ed."},{"$f":"$E$9","v":"Offenes DragonSys"},{"$f":"$F$9","v":"Engonien"},{"$f":"$G$9","v":"Eigene 2"},{"$f":"$H$9","v":"Eigene 3"}]
["Eisatem",null,20,10,20,10,10,10]
["Erwachen",null,20,10,20,10,10,10]
["Gift neutralisieren",null,30,30,30,30,30,30]
["Körper heilen",null,30,30,30,30,30,30]
["Leben für Leben",null,"X","X",250,"X","X","X"]
["Lösen",null,10,10,10,10,10,10]
["Magie übertragen",null,"X","X",50,"X","X","X"]
["Regeneration",null,40,40,40,40,40,40]
["Traum des ewigen Lebens",null,"X","X",250,"X","X","X"]
["Wiederbeleben",null,100,"X",100,"X","X","X"]
["Wiederkehr",null,50,50,50,50,50,50]
["Wunde heilen",null,20,20,20,20,20,20]
["Wunde übertragen",null,10,10,10,10,10,10]
["Wunde verschieben",null,10,"X",10,10,"X","X"]
["Wunde zufügen",null,40,40,40,40,40,40]
["Zombie I",null,30,30,30,30,30,30]
["Zombie II",null,"X","X",50,"X","X","X"]
["Zombie III",null,"X","X",100,"X","X","X"]
[]
["Klerikal",null,{"$f":"$C$9","v":"DragonSys"},{"$f":"$D$9","v":"DragonSys 3rd Ed."},{"$f":"$E$9","v":"Offenes DragonSys"},{"$f":"$F$9","v":"Engonien"},{"$f":"$G$9","v":"Eigene 2"},{"$f":"$H$9","v":"Eigene 3"}]
["Waffe segnen",null,"X","X",20,"X","X","X"]
["Waffe weihen",null,"X","X",60,"X","X","X"]
[]
["Kampf",null,{"$f":"$C$9","v":"DragonSys"},{"$f":"$D$9","v":"DragonSys 3rd Ed."},{"$f":"$E$9","v":"Offenes DragonSys"},{"$f":"$F$9","v":"Engonien"},{"$f":"$G$9","v":"Eigene 2"},{"$f":"$H$9","v":"Eigene 3"}]
["Binden",null,30,30,30,30,30,30]
["Blindheit",null,20,20,20,20,20,20]
["Blitzstrahl",null,"X","X",40,"X","X","X"]
["Einfangen",null,40,"X",40,"X","X","X"]
["Eisball I",null,"X","X",30,"X","X","X"]
["Eisball II",null,"X","X",50,"X","X","X"]
["Energiebolzen",null,10,20,10,20,"X",20]
["Energiehand",null,10,10,10,10,10,10]
["Feuerball I (DS2)",null,30,"X",30,"X",30,"X"]
["Feuerball II (DS2)",null,50,"X",50,"X",50,"X"]
["Feuerball (DS3)",null,"X",50,"X",50,"X",50]
["Feuersturm",null,"X","X",150,"X","X","X"]
["Flammenwaffe",null,100,100,100,100,100,100]
["Furcht",null,20,20,20,20,20,20]
["Krankheit",null,30,30,30,30,30,30]
["Lähmung",null,40,40,40,40,40,40]
["Magiespiegel",null,40,40,40,40,40,40]
["Mentaler Bolzen",null,30,30,30,30,"X",30]
["Mentaler Dolch",null,50,50,50,50,"X",50]
["Mentaler Nagel",null,20,20,20,20,20,20]
["Metall erhitzen I",null,10,10,10,10,10,10]
["Metall erhitzen II",null,"X","X",50,"X","X","X"]
["Ogerstärke",null,"X","X",50,"X","X","X"]
["Orkanböe",null,"X","X",50,"X","X","X"]
["Schlaf",null,20,20,20,20,20,20]
["Schmerz",null,"X","X",40,"X","X","X"]
["Schreckensbolzen",null,40,40,40,40,"X",40]
["Schreckenshand",null,30,30,30,30,"X",30]
["Schreckenswaffe",null,40,40,40,40,"X",40]
["Todeshand",null,100,100,100,100,"X",100]
["Versteinern",null,50,50,50,50,50,50]
["Verwandeln",null,40,"X",40,"X","X","X"]
["Verwurzeln",null,"X","X",20,"X","X","X"]
["Windstoß",null,20,20,20,20,20,20]
["Zerstören",null,60,60,60,60,60,60]
[]
["Schutz",null,{"$f":"$C$9","v":"DragonSys"},{"$f":"$D$9","v":"DragonSys 3rd Ed."},{"$f":"$E$9","v":"Offenes DragonSys"},{"$f":"$F$9","v":"Engonien"},{"$f":"$G$9","v":"Eigene 2"},{"$f":"$H$9","v":"Eigene 3"}]
["Abstand",null,30,30,30,30,"X",30]
["Eisschutz I",null,"X","X",50,"X","X","X"]
["Eisschutz II",null,"X","X",100,"X","X","X"]
["Energiefeld",null,30,30,30,30,30,30]
["Feuerschild",null,50,50,50,50,50,50]
["Feuerschutz I",null,"X","X",50,"X","X","X"]
["Feuerschutz II",null,"X","X",100,"X","X","X"]
["Feuerschutz III",null,"X","X",150,"X","X","X"]
["Kampfschutz I",null,10,10,10,10,10,10]
["Kampfschutz II",null,20,20,20,20,20,20]
["Kampfschutz III",null,30,30,30,30,30,30]
["Kampfschutz IV",null,40,40,40,40,40,40]
["Kampfschutz V",null,50,50,50,50,50,50]
["Kampfschutz VI",null,60,"X",60,"X","X","X"]
["Magische Rüstung I",null,20,20,20,20,20,20]
["Magische Rüstung II",null,40,40,40,40,40,40]
["Magische Rüstung III",null,70,70,70,70,70,70]
["Magische Rüstung IV",null,100,100,100,100,100,100]
["Magische Rüstung V",null,150,150,150,150,150,150]
["Magische Rüstung VI",null,200,200,200,200,200,200]
["Magischer Zirkel",null,20,20,20,20,20,20]
["Meisterschutz",null,100,100,100,100,100,100]
["Schutz vor heil. / göttl. Waffen",null,"X","X",500,"X","X","X"]
["Schutz vor mag. / gew. Waffen",null,"X","X",300,"X","X","X"]
["Schutz vor normalen Waffen",null,"X","X",200,"X","X","X"]
["Seelenrüstung I",null,"X","X",40,"X","X","X"]
["Seelenrüstung II",null,"X","X",80,"X","X","X"]
["Seelenrüstung III",null,"X","X",140,"X","X","X"]
["Seelenrüstung IV",null,"X","X",200,"X","X","X"]
["Seelenrüstung V",null,"X","X",300,"X","X","X"]
["Seelenrüstung VI",null,"X","X",400,"X","X","X"]
["Totaler Magieschutz",null,30,30,30,30,30,30]
[]
["Rüstungsrechner"]
["Zone","Hauptrüstung",null,null,"Unter- / Nebenrüstung",null,null,"Gesamt"]
[null,"Typ","Abdeckung","Punkte","Typ","Abdeckung","Punkte"]
["Kopf","Ungerüstet","Voll",{"$f":"IF(B265=A280,E280*IF(C265=A296,1,IF(C265=A297,0.75,IF(C265=A298,0.5,IF(C265=A299,0.25)))),IF(B265=A281,E281*IF(C265=A296,1,IF(C265=A297,0.75,IF(C265=A298,0.5,IF(C265=A299,0.25)))),IF(B265=A282,E282*IF(C265=A296,1,IF(C265=A297,0.75,IF(C265=A298,0.5,IF(C265=A299,0.25)))),IF(B265=A283,E283*IF(C265=A296,1,IF(C265=A297,0.75,IF(C265=A298,0.5,IF(C265=A299,0.25)))),IF(B265=A284,E284*IF(OR(C265=A296,C265=A297),1,IF(OR(C265=A298,C265=A299),0.5)),IF(B265=A285,E285))))))","v":0},"Ungerüstet","Voll",{"$f":"IF(E265=A280,E280*G280*IF(F265=A296,1,IF(F265=A297,0.75,IF(F265=A298,0.5,IF(F265=A299,0.25)))),IF(E265=A281,E281*G281*IF(F265=A296,1,IF(F265=A297,0.75,IF(F265=A298,0.5,IF(F265=A299,0.25)))),IF(E265=A282,E282*G282*IF(F265=A296,1,IF(F265=A297,0.75,IF(F265=A298,0.5,IF(F265=A299,0.25)))),IF(E265=A283,G283*IF(F265=A296,1,IF(F265=A297,0.75,IF(F265=A298,0.5,IF(F265=A299,0.25)))),IF(E265=A284,G284*IF(OR(F265=A296,F265=A297),1,IF(OR(F265=A298,F265=A299),0.5)),IF(E265=A285,E285))))))","v":0},{"$f":"IF(AND(OR(B266=A286,B267=A286,B270=A286,B273=A286,B274=A286),NOT(OR(B266=A280,B266=A281,B266=A282,B266=A283,B266=A284,B267=A280,B267=A281,B267=A282,B267=A283,B267=A284,B270=A280,B270=A281,B270=A282,B270=A283,B270=A284,B273=A280,B273=A281,B273=A282,B273=A283,B273=A284,B274=A280,B274=A281,B274=A282,B274=A283,B274=A284))),0,IF(NOT(B265=A285),SUM(D265,G265),0))","v":0}]
["Torso","Ungerüstet","Voll",{"$f":"IF(B266=A280,E280*IF(C266=A296,1,IF(C266=A297,0.75,IF(C266=A298,0.5,IF(C266=A299,0.25)))),IF(B266=A281,E281*IF(C266=A296,1,IF(C266=A297,0.75,IF(C266=A298,0.5,IF(C266=A299,0.25)))),IF(B266=A282,E282*IF(C266=A296,1,IF(C266=A297,0.75,IF(C266=A298,0.5,IF(C266=A299,0.25)))),IF(B266=A283,E283*IF(C266=A296,1,IF(C266=A297,0.75,IF(C266=A298,0.5,IF(C266=A299,0.25)))),IF(B266=A284,E284*IF(OR(C266=A296,C266=A297),1,IF(OR(C266=A298,C266=A299),0.5)),IF(OR(B266=A285,B266=A286),E285))))))","v":0},"Ungerüstet","Voll",{"$f":"IF(E266=A280,E280*G280*IF(F266=A296,1,IF(F266=A297,0.75,IF(F266=A298,0.5,IF(F266=A299,0.25)))),IF(E266=A281,E281*IF(F266=A296,1,IF(F266=A297,0.75,IF(F266=A298,0.5,IF(F266=A299,0.25)))),IF(E266=A282,E282*IF(F266=A296,1,IF(F266=A297,0.75,IF(F266=A298,0.5,IF(F266=A299,0.25)))),IF(E266=A283,H283*IF(F266=A296,1,IF(F266=A297,0.75,IF(F266=A298,0.5,IF(F266=A299,0.25)))),IF(E266=A284,H284*IF(OR(F266=A296,F266=A297),1,IF(OR(F266=A298,F266=A299),0.5)),IF(E266=A285,E285))))))","v":0},{"$f":"IF(AND(B266=A286,OR(B267=A285,B267=A286),OR(B270=A285,B270=A286),OR(B273=A285,B273=A286),OR(B274=A285,B274=A286)),E286,IF(OR(B266=A285,B266=A286),0,SUM(D266,G266)))","v":0}]
["Arm Rechts","Ungerüstet","Voll",{"$f":"IF(B267=A280,E280*IF(C267=A296,1,IF(C267=A297,0.75,IF(C267=A298,0.5,IF(C267=A299,0.25)))),IF(B267=A281,E281*IF(C267=A296,1,IF(C267=A297,0.75,IF(C267=A298,0.5,IF(C267=A299,0.25)))),IF(B267=A282,E282*IF(C267=A296,1,IF(C267=A297,0.75,IF(C267=A298,0.5,IF(C267=A299,0.25)))),IF(B267=A283,E283*IF(C267=A296,1,IF(C267=A297,0.75,IF(C267=A298,0.5,IF(C267=A299,0.25)))),IF(B267=A284,E284*IF(OR(C267=A296,C267=A297),1,IF(OR(C267=A298,C267=A299),0.5)),IF(OR(B267=A285,B267=A286),E285))))))","v":0},"Ungerüstet","Voll",{"$f":"IF(E267=A280,E280*G280*IF(F267=A296,1,IF(F267=A297,0.75,IF(F267=A298,0.5,IF(F267=A299,0.25)))),IF(E267=A281,E281*G281*IF(F267=A296,1,IF(F267=A297,0.75,IF(F267=A298,0.5,IF(F267=A299,0.25)))),IF(E267=A282,E282*G282*IF(F267=A296,1,IF(F267=A297,0.75,IF(F267=A298,0.5,IF(F267=A299,0.25)))),IF(E267=A283,G283*IF(F267=A296,1,IF(F267=A297,0.75,IF(F267=A298,0.5,IF(F267=A299,0.25)))),IF(E267=A284,G284*IF(OR(F267=A296,F267=A297),1,IF(OR(F267=A298,F267=A299),0.5)),IF(E267=A285,E285))))))","v":0},{"$f":"IF(AND(B267=A286,OR(B266=A285,B266=A286),OR(B270=A285,B270=A286),OR(B273=A285,B273=A286),OR(B274=A285,B274=A286)),E286,IF(OR(B267=A285,B267=A286),0,SUM(D267,G267)))","v":0}]
["- Teilzone","Gambeson","Ein / Viertel",{"$f":"IF(B268=A280,E280*IF(C268=A297,0.75,IF(C268=A298,0.5,IF(C268=A299,0.25))),IF(B268=A281,E281*IF(C268=A297,0.75,IF(C268=A298,0.5,IF(C268=A299,0.25))),IF(B268=A282,E282*IF(C268=A297,0.75,IF(C268=A298,0.5,IF(C268=A299,0.25))),IF(B268=A283,IF(C268=A297,0.75,IF(C268=A298,0.5,IF(C268=A299,0.25))),IF(B268=A284,IF(C268=A297,0.5,IF(OR(C268=A298,C268=A299),0.25)),IF(B268=A285,E285))))))","v":0.25},null,null,null,{"$f":"IF(NOT(OR(B268=A285,B267=A285,C267=A296)),D268,0)","v":0}]
["- Teilzone","Gambeson",{"$f":"A299","v":"Ein / Viertel"},{"$f":"IF(B269=A280,E280*IF(C269=A297,0.75,IF(C269=A298,0.5,IF(C269=A299,0.25))),IF(B269=A281,E281*IF(C269=A297,0.75,IF(C269=A298,0.5,IF(C269=A299,0.25))),IF(B269=A282,E282*IF(C269=A297,0.75,IF(C269=A298,0.5,IF(C269=A299,0.25))),IF(B269=A283,IF(C269=A297,0.75,IF(C269=A298,0.5,IF(C269=A299,0.25))),IF(B269=A284,IF(C269=A297,0.5,IF(OR(C269=A298,C269=A299),0.25)),IF(B269=A285,E285))))))","v":0.25},null,null,null,{"$f":"IF(NOT(OR(B269=A285,B267=A285,C267=A296,OR(AND(C267=A297,C268=A299),AND(C267=A298,C268=A298),AND(C267=A299,C268=A297)))),D269,0)","v":0}]
["Arm Links","Ungerüstet","Voll",{"$f":"IF(B270=A280,E280*IF(C270=A296,1,IF(C270=A297,0.75,IF(C270=A298,0.5,IF(C270=A299,0.25)))),IF(B270=A281,E281*IF(C270=A296,1,IF(C270=A297,0.75,IF(C270=A298,0.5,IF(C270=A299,0.25)))),IF(B270=A282,E282*IF(C270=A296,1,IF(C270=A297,0.75,IF(C270=A298,0.5,IF(C270=A299,0.25)))),IF(B270=A283,E283*IF(C270=A296,1,IF(C270=A297,0.75,IF(C270=A298,0.5,IF(C270=A299,0.25)))),IF(B270=A284,E284*IF(OR(C270=A296,C270=A297),1,IF(OR(C270=A298,C270=A299),0.5)),IF(OR(B270=A285,B270=A286),E285))))))","v":0},"Ungerüstet","Voll",{"$f":"IF(E270=A280,E280*G280*IF(F270=A296,1,IF(F270=A297,0.75,IF(F270=A298,0.5,IF(F270=A299,0.25)))),IF(E270=A281,E281*G281*IF(F270=A296,1,IF(F270=A297,0.75,IF(F270=A298,0.5,IF(F270=A299,0.25)))),IF(E270=A282,E282*G282*IF(F270=A296,1,IF(F270=A297,0.75,IF(F270=A298,0.5,IF(F270=A299,0.25)))),IF(E270=A283,G283*IF(F270=A296,1,IF(F270=A297,0.75,IF(F270=A298,0.5,IF(F270=A299,0.25)))),IF(E270=A284,G284*IF(OR(F270=A296,F270=A297),1,IF(OR(F270=A298,F270=A299),0.5)),IF(E270=A285,E285))))))","v":0},{"$f":"IF(AND(B270=A286,OR(B266=A285,B266=A286),OR(B267=A285,B267=A286),OR(B273=A285,B273=A286),OR(B274=A285,B274=A286)),E286,IF(OR(B270=A285,B270=A286),0,SUM(D270,G270)))","v":0}]
["- Teilzone","Gambeson","Ein / Viertel",{"$f":"IF(B271=A280,E280*IF(C271=A297,0.75,IF(C271=A298,0.5,IF(C271=A299,0.25))),IF(B271=A281,E281*IF(C271=A297,0.75,IF(C271=A298,0.5,IF(C271=A299,0.25))),IF(B271=A282,E282*IF(C271=A297,0.75,IF(C271=A298,0.5,IF(C271=A299,0.25))),IF(B271=A283,IF(C271=A297,0.75,IF(C271=A298,0.5,IF(C271=A299,0.25))),IF(B271=A284,IF(C271=A297,0.5,IF(OR(C271=A298,C271=A299),0.25)),IF(B271=A285,E285))))))","v":0.25},null,null,null,{"$f":"IF(NOT(OR(B271=A285,B270=A285,C270=A296)),D271,0)","v":0}]
["- Teilzone","Gambeson",{"$f":"A299","v":"Ein / Viertel"},{"$f":"IF(B272=A280,E280*IF(C272=A297,0.75,IF(C272=A298,0.5,IF(C272=A299,0.25))),IF(B272=A281,E281*IF(C272=A297,0.75,IF(C272=A298,0.5,IF(C272=A299,0.25))),IF(B272=A282,E282*IF(C272=A297,0.75,IF(C272=A298,0.5,IF(C272=A299,0.25))),IF(B272=A283,IF(C272=A297,0.75,IF(C272=A298,0.5,IF(C272=A299,0.25))),IF(B272=A284,IF(C272=A297,0.5,IF(OR(C272=A298,C272=A299),0.25)),IF(B272=A285,E285))))))","v":0.25},null,null,null,{"$f":"IF(NOT(OR(B272=A285,B270=A285,C270=A296,OR(AND(C270=A297,C271=A299),AND(C270=A298,C271=A298),AND(C270=A299,C271=A297)))),D272,0)","v":0}]
["Bein Rechts","Ungerüstet","Voll",{"$f":"IF(B273=A280,E280*IF(C273=A296,1,IF(C273=A297,0.75,IF(C273=A298,0.5,IF(C273=A299,0.25)))),IF(B273=A281,E281*IF(C273=A296,1,IF(C273=A297,0.75,IF(C273=A298,0.5,IF(C273=A299,0.25)))),IF(B273=A282,E282*IF(C273=A296,1,IF(C273=A297,0.75,IF(C273=A298,0.5,IF(C273=A299,0.25)))),IF(B273=A283,E283*IF(C273=A296,1,IF(C273=A297,0.75,IF(C273=A298,0.5,IF(C273=A299,0.25)))),IF(B273=A284,E284*IF(OR(C273=A296,C273=A297),1,IF(OR(C273=A298,C273=A299),0.5)),IF(OR(B273=A285,B273=A286),E285))))))","v":0},"Ungerüstet","Voll",{"$f":"IF(E273=A280,E280*G280*IF(F273=A296,1,IF(F273=A297,0.75,IF(F273=A298,0.5,IF(F273=A299,0.25)))),IF(E273=A281,E281*G281*IF(F273=A296,1,IF(F273=A297,0.75,IF(F273=A298,0.5,IF(F273=A299,0.25)))),IF(E273=A282,E282*G282*IF(F273=A296,1,IF(F273=A297,0.75,IF(F273=A298,0.5,IF(F273=A299,0.25)))),IF(E273=A283,G283*IF(F273=A296,1,IF(F273=A297,0.75,IF(F273=A298,0.5,IF(F273=A299,0.25)))),IF(E273=A284,G284*IF(OR(F273=A296,F273=A297),1,IF(OR(F273=A298,F273=A299),0.5)),IF(E273=A285,E285))))))","v":0},{"$f":"IF(AND(B273=A286,OR(B266=A285,B266=A286),OR(B267=A285,B267=A286),OR(B270=A285,B270=A286),OR(B274=A285,B274=A286)),E286,IF(OR(B273=A285,B273=A286),0,SUM(D273,G273)))","v":0}]
["Bein Links","Ungerüstet","Voll",{"$f":"IF(B274=A280,E280*IF(C274=A296,1,IF(C274=A297,0.75,IF(C274=A298,0.5,IF(C274=A299,0.25)))),IF(B274=A281,E281*IF(C274=A296,1,IF(C274=A297,0.75,IF(C274=A298,0.5,IF(C274=A299,0.25)))),IF(B274=A282,E282*IF(C274=A296,1,IF(C274=A297,0.75,IF(C274=A298,0.5,IF(C274=A299,0.25)))),IF(B274=A283,E283*IF(C274=A296,1,IF(C274=A297,0.75,IF(C274=A298,0.5,IF(C274=A299,0.25)))),IF(B274=A284,E284*IF(OR(C274=A296,C274=A297),1,IF(OR(C274=A298,C274=A299),0.5)),IF(OR(B274=A285,B274=A286),E285))))))","v":0},"Ungerüstet","Voll",{"$f":"IF(E274=A280,E280*G280*IF(F274=A296,1,IF(F274=A297,0.75,IF(F274=A298,0.5,IF(F274=A299,0.25)))),IF(E274=A281,E281*G281*IF(F274=A296,1,IF(F274=A297,0.75,IF(F274=A298,0.5,IF(F274=A299,0.25)))),IF(E274=A282,E282*G282*IF(F274=A296,1,IF(F274=A297,0.75,IF(F274=A298,0.5,IF(F274=A299,0.25)))),IF(E274=A283,G283*IF(F274=A296,1,IF(F274=A297,0.75,IF(F274=A298,0.5,IF(F274=A299,0.25)))),IF(E274=A284,G284*IF(OR(F274=A296,F274=A297),1,IF(OR(F274=A298,F274=A299),0.5)),IF(E274=A285,E285))))))","v":0},{"$f":"IF(AND(B274=A286,OR(B266=A285,B266=A286),OR(B267=A285,B267=A286),OR(B270=A285,B270=A286),OR(B273=A285,B273=A286)),E286,IF(OR(B274=A285,B274=A286),0,SUM(D274,G274)))","v":0}]
["Boni / Mali",null,null,null,null,null,null,0]
["Gesamt",null,null,null,null,null,null,{"$f":"IF(SUM(H265:H275)<E289,ROUNDDOWN(SUM(H265:H275,IF(E288=\"Ja\",0.5,0)),0),E289)","v":0}]
[]
["Rüstungserklärung"]
["Rüstungsart","Definition",null,null,"Rüstpunkte bei voller Abdeckung",null,"Unterrüstung"]
["Platte",null,null,null,4,null,0.5]
["Lamellar","Schuppe überlappend, Coat of Plates",null,null,3,null,0.5]
["Kette","offene Schuppe;\n~5mm dickes, gehärtetes Leder",null,null,2,null,0.5]
["Leder","Beschlagenes Leder,\ndünnes, gehärtetes Leder,\ndickes ungehärtetes Leder 3-6mm",null,null,1,null,0.5,1]
["Gambeson",null,null,null,0.5,null,0.5,1]
["Ungerüstet",null,null,null,0,null,0]
["Unbekleidet","Unbedeckter Körperteil,\nkeine andere Rüstung vorhanden",null,null,1]
["Bis zu 4 Pkt. können zusätzlich vergeben oder abgezogen werden, wenn besonders gute oder besonders schlechte Rüstungsteile mitspielen.",null,null,null,"-4 bis +4"]
["Aufrundung (mathematisch) ab 0,5 Rüstpunkte",null,null,null,"Ja"]
["Maximal erlaubter Rüstungsschutz",null,null,null,24]
[]
["Definition"]
["Wenn mehrere Rüstungen übereinander getragen werden, dann wird die dickste voll gezählt und die leichteren darunter oder darüber geben einen Bonus, den du aus der Spalte Unterrüstung ablesen kannst. Der jeweils höhere Wert steht für den Torsowert.\nIst die jeweilige Rüstzone voll abgedeckt, dann darf man sich den oben aufgeführten Wert voll anrechnen, ansonsten geht’s anteilig. Beim Waffencheck gibt es meistens auch einen Rüstungscheck, wo man sich den Wert ausrechnen lassen kann."]
["---Sonderregel--- (Optional, vorher stets mit SpielLeitung zu besprechen, ob diese Regel gültig ist)\nDie Barbaren-Rüstung(!)(oder Barbärchen)\nEs soll ja so Charaktere geben, die sich lieber nicht in enge, harte Rüstung zwängen und ihrer ungestümen Wildheit durch Nacktheit (!) Ausdruck verleihen wollen. Diese kriegen ein paar Rüstungspunkte für unbedeckte Körperteile. Genauer gesagt, einen pro unbedecktem Körperteil. Diese „Muskelrüstung“ ist nicht mit anderen Rüstungen kombinierbar, sobald der Barbar auch nur einen Gambeson trägt, ist nur noch dieser gültig. Die Rüstung gilt auch nur für echte Barbaren und Barbarinnen, das heißt eine dünn bekleidete Tempeltänzerin hat keine Barbarenrüstung! Helme werden zur Zierde auswählbar sein, tragen jedoch nicht zum Rüstungsschutz bei."]
[]
["Folgende Abdeckungsgrößen sind möglich"]
["Voll","Keine nennenswerten / treffbaren Zonen sichtbar"]
["Drei / Viertel","Potentiell treffbare Zonen, wie zB Hände/Füße/Schultern frei"]
["Halb","Körperzone halb geschützt, zB Regenrinne oder nur Teilschutz"]
["Ein / Viertel","zB Unterarmschiene mit freiem Oberarm und freier Hand"]
[]
["Beispiele"]
["Ein Arm ist erst voll abgedeckt, wenn da ein Handschuh mit Rüstwert dranhängt!"]
["Bein- und Armpanzerung muss zumindest partiell geschlossen sein, sonst gelten sie nicht als voll! Regenrinne ist keine Vollplatte!"]
["Zur Kopfrüstung gehört auch ein vernünftiger Hals- und Torsoschutz!"]
["Lederhemden und Hosen bringen nur Wetterschutz, keinen Rüstschutz!"]
["Dicke, verkrustete Schmutzschichten von den letzten drei Zeltcons an den Schuhen, gelten nicht als Rüstung, auch wenn sie zwei Kilo wiegen!"]

{"sheet":"Charakterdetails 1","index":2,"n_rows":106,"n_cols":71,"rows_kept":106,"cut":false,"hidden":false,"merged":[[52,30,52,31],[53,30,53,31],[54,30,54,31],[46,30,46,34],[47,30,47,34],[48,30,48,34],[52,6,52,11],[52,24,52,28],[53,24,53,28],[54,24,54,28],[53,6,53,11],[54,6,54,11],[53,13,53,16],[54,19,54,20],[54,13,54,17],[46,6,46,11],[51,19,51,23],[52,19,52,20],[53,19,53,20],[50,19,50,23],[49,30,49,34],[50,30,50,34],[51,24,51,28],[43,6,43,8],[48,6,48,12],[47,6,47,12],[49,6,49,11],[50,6,50,11],[51,6,51,11],[31,6,31,8],[32,6,32,8],[35,6,35,8],[36,6,36,8],[33,6,33,8],[34,6,34,8],[37,6,37,8],[38,6,38,8],[45,6,45,8],[40,6,40,8],[41,6,41,8],[42,6,42,8],[52,0,52,2],[53,0,53,2],[54,0,54,3],[8,0,8,4],[27,0,27,4],[8,6,8,12],[9,6,9,10],[10,6,10,10],[15,6,15,11],[16,6,16,12],[17,6,17,12],[18,6,18,9],[19,6,19,9],[20,6,20,9],[23,6,23,8],[24,6,24,8],[25,6,25,8],[26,6,26,8],[29,6,29,8],[30,6,30,8],[27,6,27,8],[28,6,28,8],[39,6,39,8],[44,6,44,8],[50,0,50,2],[51,0,51,2],[39,0,39,2],[40,0,40,2],[41,0,41,1],[42,0,42,1],[43,0,43,1],[44,0,44,1],[49,0,49,2],[45,0,45,1],[46,0,46,1],[47,0,47,1],[48,0,48,1],[22,0,22,1],[38,0,38,2],[23,0,23,1],[24,0,24,2],[25,0,25,3],[28,0,28,2],[29,0,29,2],[30,0,30,2],[26,0,26,4],[35,0,35,1],[36,0,36,1],[31,0,31,2],[32,0,32,2],[33,0,33,2],[34,0,34,2],[37,0,37,1],[16,0,16,1],[13,0,13,1],[17,0,17,1],[18,0,18,1],[17,13,17,14],[18,13,18,14],[19,0,19,1],[20,0,20,1],[21,0,21,1],[11,0,11,1],[12,0,12,1],[14,0,14,1],[7,13,7,14],[8,13,8,14],[9,13,9,14],[10,13,10,14],[11,13,11,14],[15,0,15,1],[6,2,6,4],[6,5,6,6],[6,9,6,10],[7,0,7,12],[9,0,9,1],[5,2,5,4],[4,2,4,4],[10,0,10,1],[4,5,4,6],[5,5,5,6],[4,9,4,10],[5,9,5,10],[21,19,21,20],[22,19,22,20],[13,6,13,11],[14,6,14,11],[21,6,21,8],[22,6,22,8],[13,13,13,14],[14,13,14,14],[4,13,4,14],[5,13,5,14],[11,6,11,10],[12,6,12,11],[6,13,6,14],[12,13,12,14],[15,13,15,14],[16,13,16,14],[27,13,27,14],[21,13,21,14],[22,13,22,14],[23,13,23,14],[24,13,24,14],[19,13,19,14],[20,13,20,14],[28,13,28,14],[25,13,25,14],[26,13,26,14],[43,13,43,14],[44,13,44,14],[10,19,10,20],[11,19,11,20],[12,19,12,20],[13,19,13,20],[14,19,14,20],[15,19,15,22],[16,19,16,23],[35,13,35,14],[29,13,29,14],[30,13,30,14],[31,13,31,14],[32,13,32,16],[33,13,33,17],[34,13,34,17],[24,19,24,20],[25,19,25,20],[26,19,26,20],[27,19,27,20],[28,19,28,20],[17,19,17,23],[18,19,18,20],[19,19,19,20],[35,19,35,20],[36,19,36,22],[37,19,37,23],[38,19,38,23],[39,19,39,20],[40,19,40,20],[29,19,29,20],[30,19,30,20],[31,19,31,20],[32,19,32,20],[33,19,33,20],[34,19,34,20],[45,19,45,23],[46,19,46,23],[47,19,47,23],[48,19,48,23],[41,19,41,22],[42,19,42,23],[43,19,43,23],[44,19,44,23],[49,19,49,23],[0,0,0,12],[3,0,3,12],[0,13,0,23],[0,24,0,34],[2,24,2,28],[3,24,3,25],[2,30,2,34],[1,24,1,34],[2,19,2,23],[3,19,3,20],[3,30,3,31],[1,9,1,11],[1,13,1,23],[2,13,2,17],[1,5,1,6],[3,13,3,14],[2,0,2,12],[4,24,4,25],[5,24,5,25],[6,24,6,25],[7,24,7,25],[8,24,8,25],[23,19,23,20],[9,19,9,20],[5,19,5,20],[6,19,6,20],[7,19,7,20],[8,19,8,20],[21,24,21,25],[22,24,22,25],[23,24,23,25],[12,24,12,25],[13,24,13,25],[14,24,14,25],[15,24,15,25],[16,24,16,25],[9,24,9,25],[10,24,10,25],[11,24,11,25],[4,19,4,20],[20,19,20,20],[24,24,24,25],[25,24,25,25],[26,24,26,25],[27,24,27,25],[4,30,4,31],[5,30,5,31],[6,30,6,31],[7,30,7,31],[8,30,8,31],[17,24,17,25],[11,30,11,31],[17,30,17,31],[18,24,18,25],[19,24,19,25],[20,24,20,25],[9,30,9,31],[12,30,12,31],[13,30,13,31],[14,30,14,31],[15,30,15,31],[16,30,16,31],[10,30,10,31],[23,30,23,31],[25,30,25,31],[28,24,28,25],[29,24,29,25],[34,24,34,25],[33,24,33,25],[30,24,30,25],[31,24,31,25],[32,24,32,25],[42,30,42,34],[29,30,29,31],[30,30,30,31],[31,30,31,31],[32,30,32,31],[40,24,40,28],[54,63,54,65],[0,67,0,70],[54,67,54,69],[0,39,0,46],[0,47,0,54],[39,39,39,46],[54,55,54,57],[54,59,54,61],[40,39,40,46],[0,55,0,58],[41,40,41,42],[41,43,41,45],[41,39,42,39],[41,46,42,46],[0,63,0,66],[0,59,0,62],[1,39,38,46],[1,47,54,54],[0,35,0,38],[33,30,33,31],[34,30,34,31],[35,30,35,33],[36,30,36,34],[39,30,39,34],[40,30,40,34],[41,30,41,34],[18,30,18,31],[19,30,19,31],[20,30,20,31],[21,30,21,31],[22,30,22,31],[26,30,26,31],[38,30,38,34],[37,30,37,34],[27,30,27,31],[28,30,28,31],[43,30,43,34],[47,24,47,28],[39,24,39,28],[37,24,37,27],[35,24,35,25],[45,30,45,34],[46,24,46,28],[49,24,49,28],[50,24,50,28],[41,24,41,28],[42,24,42,28],[43,24,43,28],[48,24,48,28],[38,24,38,28],[36,24,36,25],[45,24,45,28],[44,24,44,28],[44,30,44,34]]}
["Spieler",null,null,null,null,null,null,null,null,null,null,null,null,"IV. Zauber / Immunitäten / Sonderfähigkeiten nach Arcanum Magnum und Liber Magicae",null,null,null,null,null,null,null,null,null,null,"IV. Zauber / Immunitäten / Sonderfähigkeiten nach Arcanum Magnum und Liber Magicae",null,null,null,null,null,null,null,null,null,null,{"$f":"CONCATENATE(\"Besitztümer \",F5,\" \",B5)","v":"Besitztümer  "},null,null,null,{"$f":"CONCATENATE(\"Charakterfoto \",F5,\" \",B5)","v":"Charakterfoto  "},null,null,null,null,null,null,null,{"$f":"CONCATENATE(\"Charaktergeschichte \",F5,\" \",B5)","v":"Charaktergeschichte  "},null,null,null,null,null,null,null,{"$f":"CONCATENATE(F5,\" \",B5)","v":" "},null,null,null,{"$f":"BD1","v":" "},null,null,null,{"$f":"BD1","v":" "},null,null,null,{"$f":"BD1","v":" "}]
["Name:",{"$f":"'OT und Infos'!B2","v":"Nachname"},"Vorname:",null,null,{"$f":"'OT und Infos'!B3","v":"Vorname"},null,"Alter:",{"$f":"TODAY()-'OT und Infos'!B5","v":"1935-06-01"},"Con-Tage:",null,null,{"$f":"'OT und Infos'!B6","v":0},null,null,null,null,null,null,null,null,null,null,null,null,null,null,null,null,null,null,null,null,null,null,"Gegenstand",null,"Erhalten auf Con",null,null,null,null,null,null,null,null,null,null,null,null,null,null,null,null,null,"Vergangene & Zukünftige Veranstaltungen","Datum","Con-Tage","Exp",{"$f":"$BD$2","v":"Vergangene & Zukünftige Veranstaltungen"},{"$f":"$BE$2","v":"Datum"},{"$f":"$BF$2","v":"Con-Tage"},{"$f":"$BG$2","v":"Exp"},{"$f":"$BD$2","v":"Vergangene & Zukünftige Veranstaltungen"},{"$f":"$BE$2","v":"Datum"},{"$f":"$BF$2","v":"Con-Tage"},{"$f":"$BG$2","v":"Exp"},{"$f":"$BD$2","v":"Vergangene & Zukünftige Veranstaltungen"},{"$f":"$BE$2","v":"Datum"},{"$f":"$BF$2","v":"Con-Tage"},{"$f":"$BG$2","v":"Exp"}]
[null,null,null,null,null,null,null,null,null,null,null,null,null,"Allgemein",null,null,null,null,null,"Lehrling",null,null,null,null,"Kampf",null,null,null,null,null,"Schutz",null,null,null,null,null,null,null,null,null,null,null,null,null,null,null,null,null,null,null,null,null,null,null,null,null,null,null,{"$f":"IF(OR(BF3='Einführung & Hilfe'!$B$65,BF3='Einführung & Hilfe'!$C$65,BF3='Einführung & Hilfe'!$D$65,BF3='Einführung & Hilfe'!$E$65),0,BF3*INDIRECT($B$56&$A$56&$A$57))","v":0},null,null,null,{"$f":"IF(OR(BJ3='Einführung & Hilfe'!$B$65,BJ3='Einführung & Hilfe'!$C$65,BJ3='Einführung & Hilfe'!$D$65,BJ3='Einführung & Hilfe'!$E$65),0,BJ3*INDIRECT($B$56&$A$56&$A$57))","v":0},null,null,null,{"$f":"IF(OR(BN3='Einführung & Hilfe'!$B$65,BN3='Einführung & Hilfe'!$C$65,BN3='Einführung & Hilfe'!$D$65,BN3='Einführung & Hilfe'!$E$65),0,BN3*INDIRECT($B$56&$A$56&$A$57))","v":0},null,null,null,{"$f":"IF(OR(BR3='Einführung & Hilfe'!$B$65,BR3='Einführung & Hilfe'!$C$65,BR3='Einführung & Hilfe'!$D$65,BR3='Einführung & Hilfe'!$E$65),0,BR3*INDIRECT($B$56&$A$56&$A$57))","v":0}]
["Charakter",null,null,null,null,null,null,null,null,null,null,null,null,"Alarm",null,null,{"$f":"IF($L$21=$M$21,0,IF(AND($L$20=$M$20,Q57<=50),0,IF(AND($L$19=$M$19,Q57<=20),0,IF(AND($L$11=$M$11,P4=$V$53,Q57<=20),0,IF(AND($L$10=$M$10,P4=$V$53,Q57<=5),0,IF(Q57=\"X\",\"X\",IF(P4=$V$54,$P$57*Q57,IF(P4=$V$55,$P$58*Q57,Q57))))))))","v":20},null,null,"Aura spüren",null,null,{"$f":"IF($L$21=$M$21,0,IF(AND($L$20=$M$20,W57<=50),0,IF(AND($L$19=$M$19,W57<=20),0,IF(AND($L$11=$M$11,V4=$V$53,W57<=20),0,IF(AND($L$10=$M$10,V4=$V$53,W57<=5),0,IF(W57=\"X\",\"X\",IF(V4=$V$54,$P$57*W57,IF(V4=$V$55,$P$58*W57,W57))))))))","v":5},null,"Binden",null,null,{"$f":"IF($L$21=$M$21,0,IF(AND($L$20=$M$20,AB57<=50),0,IF(AND($L$19=$M$19,AB57<=20),0,IF(AND($L$11=$M$11,AA4=$V$53,AB57<=20),0,IF(AND($L$10=$M$10,AA4=$V$53,AB57<=5),0,IF(AB57=\"X\",\"X\",IF(AA4=$V$54,$P$57*AB57,IF(AA4=$V$55,$P$58*AB57,AB57))))))))","v":30},null,null,"Abstand",null,null,{"$f":"IF($L$21=$M$21,0,IF(AND($L$20=$M$20,AH57<=50),0,IF(AND($L$19=$M$19,AH57<=20),0,IF(AND($L$11=$M$11,AG4=$V$53,AH57<=20),0,IF(AND($L$10=$M$10,AG4=$V$53,AH57<=5),0,IF(AH57=\"X\",\"X\",IF(AG4=$V$54,$P$57*AH57,IF(AG4=$V$55,$P$58*AH57,AH57))))))))","v":30},null,null,null,null,null,null,null,null,null,null,null,null,null,null,null,null,null,null,null,null,null,null,null,null,{"$f":"IF(OR(BF4='Einführung & Hilfe'!$B$65,BF4='Einführung & Hilfe'!$C$65,BF4='Einführung & Hilfe'!$D$65,BF4='Einführung & Hilfe'!$E$65),0,BF4*INDIRECT($B$56&$A$56&$A$57))","v":0},null,null,null,{"$f":"IF(OR(BJ4='Einführung & Hilfe'!$B$65,BJ4='Einführung & Hilfe'!$C$65,BJ4='Einführung & Hilfe'!$D$65,BJ4='Einführung & Hilfe'!$E$65),0,BJ4*INDIRECT($B$56&$A$56&$A$57))","v":0},null,null,null,{"$f":"IF(OR(BN4='Einführung & Hilfe'!$B$65,BN4='Einführung & Hilfe'!$C$65,BN4='Einführung & Hilfe'!$D$65,BN4='Einführung & Hilfe'!$E$65),0,BN4*INDIRECT($B$56&$A$56&$A$57))","v":0},null,null,null,{"$f":"IF(OR(BR4='Einführung & Hilfe'!$B$65,BR4='Einführung & Hilfe'!$C$65,BR4='Einführung & Hilfe'!$D$65,BR4='Einführung & Hilfe'!$E$65),0,BR4*INDIRECT($B$56&$A$56&$A$57))","v":0}]
["Name:",null,"Vorname:",null,null,null,null,"Geschlecht:",null,{"$f":"'OT und Infos'!B4","v":"M/W"},null,"Alter:",{"$f":"TODAY()-'OT und Infos'!B5","v":"1935-06-01"},"Astrale Verfestigung",null,null,{"$f":"IF($L$21=$M$21,0,IF(AND($L$20=$M$20,Q58<=50),0,IF(AND($L$19=$M$19,Q58<=20),0,IF(AND($L$11=$M$11,P5=$V$53,Q58<=20),0,IF(AND($L$10=$M$10,P5=$V$53,Q58<=5),0,IF(Q58=\"X\",\"X\",IF(P5=$V$54,$P$57*Q58,IF(P5=$V$55,$P$58*Q58,Q58))))))))","v":200},null,null,"Blutung stoppen",null,null,5,null,"Blindheit",null,null,20,null,null,"Eisschutz I",null,null,50,null,null,null,null,null,null,null,null,null,null,null,null,null,null,null,null,null,null,null,null,null,null,null,null,{"$f":"IF(OR(BF5='Einführung & Hilfe'!$B$65,BF5='Einführung & Hilfe'!$C$65,BF5='Einführung & Hilfe'!$D$65,BF5='Einführung & Hilfe'!$E$65),0,BF5*INDIRECT($B$56&$A$56&$A$57))","v":0},null,null,null,{"$f":"IF(OR(BJ5='Einführung & Hilfe'!$B$65,BJ5='Einführung & Hilfe'!$C$65,BJ5='Einführung & Hilfe'!$D$65,BJ5='Einführung & Hilfe'!$E$65),0,BJ5*INDIRECT($B$56&$A$56&$A$57))","v":0},null,null,null,{"$f":"IF(OR(BN5='Einführung & Hilfe'!$B$65,BN5='Einführung & Hilfe'!$C$65,BN5='Einführung & Hilfe'!$D$65,BN5='Einführung & Hilfe'!$E$65),0,BN5*INDIRECT($B$56&$A$56&$A$57))","v":0},null,null,null,{"$f":"IF(OR(BR5='Einführung & Hilfe'!$B$65,BR5='Einführung & Hilfe'!$C$65,BR5='Einführung & Hilfe'!$D$65,BR5='Einführung & Hilfe'!$E$65),0,BR5*INDIRECT($B$56&$A$56&$A$57))","v":0}]
["Berufung:",null,"Rasse:",null,null,null,null,"Con-Tage:",null,{"$f":"SUM(BF3:BF54,BJ3:BJ54,BN3:BN54,BR3:BR54)","v":0},null,"Exp:",{"$f":"SUM(INDIRECT($B$56&$A$56&$A$58),BG55,BK55,BO55,BS55)","v":50},"Astralsicht",null,null,70,null,null,"Feuerfinger",null,null,5,null,"Blitzstrahl",null,null,40,null,null,"Eisschutz II",null,null,100,null,null,null,null,null,null,null,null,null,null,null,null,null,null,null,null,null,null,null,null,null,null,null,null,{"$f":"IF(OR(BF6='Einführung & Hilfe'!$B$65,BF6='Einführung & Hilfe'!$C$65,BF6='Einführung & Hilfe'!$D$65,BF6='Einführung & Hilfe'!$E$65),0,BF6*INDIRECT($B$56&$A$56&$A$57))","v":0},null,null,null,{"$f":"IF(OR(BJ6='Einführung & Hilfe'!$B$65,BJ6='Einführung & Hilfe'!$C$65,BJ6='Einführung & Hilfe'!$D$65,BJ6='Einführung & Hilfe'!$E$65),0,BJ6*INDIRECT($B$56&$A$56&$A$57))","v":0},null,null,null,{"$f":"IF(OR(BN6='Einführung & Hilfe'!$B$65,BN6='Einführung & Hilfe'!$C$65,BN6='Einführung & Hilfe'!$D$65,BN6='Einführung & Hilfe'!$E$65),0,BN6*INDIRECT($B$56&$A$56&$A$57))","v":0},null,null,null,{"$f":"IF(OR(BR6='Einführung & Hilfe'!$B$65,BR6='Einführung & Hilfe'!$C$65,BR6='Einführung & Hilfe'!$D$65,BR6='Einführung & Hilfe'!$E$65),0,BR6*INDIRECT($B$56&$A$56&$A$57))","v":0}]
["Klasse:","Universell","Regelwerk:",null,null,"Offenes DragonSys",null,"NSC Bonus:",null,0,null,"NExp:",{"$f":"J7*INDIRECT($B$56&$A$56&$A$57)*(SUM(NSC!C3:C50)+SUM(NSC!G3:G50))","v":0},"Astraltor",null,null,200,null,null,"Geister spüren",null,null,5,null,"Einfangen",null,null,40,null,null,"Energiefeld",null,null,30,null,null,null,null,null,null,null,null,null,null,null,null,null,null,null,null,null,null,null,null,null,null,null,null,{"$f":"IF(OR(BF7='Einführung & Hilfe'!$B$65,BF7='Einführung & Hilfe'!$C$65,BF7='Einführung & Hilfe'!$D$65,BF7='Einführung & Hilfe'!$E$65),0,BF7*INDIRECT($B$56&$A$56&$A$57))","v":0},null,null,null,{"$f":"IF(OR(BJ7='Einführung & Hilfe'!$B$65,BJ7='Einführung & Hilfe'!$C$65,BJ7='Einführung & Hilfe'!$D$65,BJ7='Einführung & Hilfe'!$E$65),0,BJ7*INDIRECT($B$56&$A$56&$A$57))","v":0},null,null,null,{"$f":"IF(OR(BN7='Einführung & Hilfe'!$B$65,BN7='Einführung & Hilfe'!$C$65,BN7='Einführung & Hilfe'!$D$65,BN7='Einführung & Hilfe'!$E$65),0,BN7*INDIRECT($B$56&$A$56&$A$57))","v":0},null,null,null,{"$f":"IF(OR(BR7='Einführung & Hilfe'!$B$65,BR7='Einführung & Hilfe'!$C$65,BR7='Einführung & Hilfe'!$D$65,BR7='Einführung & Hilfe'!$E$65),0,BR7*INDIRECT($B$56&$A$56&$A$57))","v":0}]
[{"$f":"IF(INDIRECT($B$56&$A$56&$A$58)=0,\"Die Gewählte Klasse ist in diesem Regelwerk nicht verfügbar!\",\"\")","v":""},null,null,null,null,null,null,null,null,null,null,null,null,"Aura lesen",null,null,40,null,null,"Gift spüren",null,null,5,null,"Eisball I",null,null,30,null,null,"Feuerschild",null,null,50,null,null,null,null,null,null,null,null,null,null,null,null,null,null,null,null,null,null,null,null,null,null,null,null,{"$f":"IF(OR(BF8='Einführung & Hilfe'!$B$65,BF8='Einführung & Hilfe'!$C$65,BF8='Einführung & Hilfe'!$D$65,BF8='Einführung & Hilfe'!$E$65),0,BF8*INDIRECT($B$56&$A$56&$A$57))","v":0},null,null,null,{"$f":"IF(OR(BJ8='Einführung & Hilfe'!$B$65,BJ8='Einführung & Hilfe'!$C$65,BJ8='Einführung & Hilfe'!$D$65,BJ8='Einführung & Hilfe'!$E$65),0,BJ8*INDIRECT($B$56&$A$56&$A$57))","v":0},null,null,null,{"$f":"IF(OR(BN8='Einführung & Hilfe'!$B$65,BN8='Einführung & Hilfe'!$C$65,BN8='Einführung & Hilfe'!$D$65,BN8='Einführung & Hilfe'!$E$65),0,BN8*INDIRECT($B$56&$A$56&$A$57))","v":0},null,null,null,{"$f":"IF(OR(BR8='Einführung & Hilfe'!$B$65,BR8='Einführung & Hilfe'!$C$65,BR8='Einführung & Hilfe'!$D$65,BR8='Einführung & Hilfe'!$E$65),0,BR8*INDIRECT($B$56&$A$56&$A$57))","v":0}]
["I. Kämpferfertigkeiten",null,null,null,null,null,"III. Magierfertigkeiten",null,null,null,null,null,null,"Auramaske",null,null,100,null,null,"Licht",null,null,5,null,"Eisball II",null,null,50,null,null,"Feuerschutz I",null,null,50,null,null,null,null,null,null,null,null,null,null,null,null,null,null,null,null,null,null,null,null,null,null,null,null,{"$f":"IF(OR(BF9='Einführung & Hilfe'!$B$65,BF9='Einführung & Hilfe'!$C$65,BF9='Einführung & Hilfe'!$D$65,BF9='Einführung & Hilfe'!$E$65),0,BF9*INDIRECT($B$56&$A$56&$A$57))","v":0},null,null,null,{"$f":"IF(OR(BJ9='Einführung & Hilfe'!$B$65,BJ9='Einführung & Hilfe'!$C$65,BJ9='Einführung & Hilfe'!$D$65,BJ9='Einführung & Hilfe'!$E$65),0,BJ9*INDIRECT($B$56&$A$56&$A$57))","v":0},null,null,null,{"$f":"IF(OR(BN9='Einführung & Hilfe'!$B$65,BN9='Einführung & Hilfe'!$C$65,BN9='Einführung & Hilfe'!$D$65,BN9='Einführung & Hilfe'!$E$65),0,BN9*INDIRECT($B$56&$A$56&$A$57))","v":0},null,null,null,{"$f":"IF(OR(BR9='Einführung & Hilfe'!$B$65,BR9='Einführung & Hilfe'!$C$65,BR9='Einführung & Hilfe'!$D$65,BR9='Einführung & Hilfe'!$E$65),0,BR9*INDIRECT($B$56&$A$56&$A$57))","v":0}]
["Berserker",null,1,{"$f":"INDIRECT(B56&A56&35)","v":20},null,null,"Meisterprüfung",null,null,null,null,{"$f":"INDIRECT(B56&A56&83)","v":50},null,{"$f":"IF('OT und Infos'!D11=INDIRECT(B56&A56&11),\"Übernatürliches Wesen beschw.\",\"Dämon beschwören\")","v":"Dämon beschwören"},null,null,40,null,null,"Magie spüren",null,null,5,null,"Energiebolzen",null,null,10,null,null,"Feuerschutz II",null,null,100,null,null,null,null,null,null,null,null,null,null,null,null,null,null,null,null,null,null,null,null,null,null,null,null,{"$f":"IF(OR(BF10='Einführung & Hilfe'!$B$65,BF10='Einführung & Hilfe'!$C$65,BF10='Einführung & Hilfe'!$D$65,BF10='Einführung & Hilfe'!$E$65),0,BF10*INDIRECT($B$56&$A$56&$A$57))","v":0},null,null,null,{"$f":"IF(OR(BJ10='Einführung & Hilfe'!$B$65,BJ10='Einführung & Hilfe'!$C$65,BJ10='Einführung & Hilfe'!$D$65,BJ10='Einführung & Hilfe'!$E$65),0,BJ10*INDIRECT($B$56&$A$56&$A$57))","v":0},null,null,null,{"$f":"IF(OR(BN10='Einführung & Hilfe'!$B$65,BN10='Einführung & Hilfe'!$C$65,BN10='Einführung & Hilfe'!$D$65,BN10='Einführung & Hilfe'!$E$65),0,BN10*INDIRECT($B$56&$A$56&$A$57))","v":0},null,null,null,{"$f":"IF(OR(BR10='Einführung & Hilfe'!$B$65,BR10='Einführung & Hilfe'!$C$65,BR10='Einführung & Hilfe'!$D$65,BR10='Einführung & Hilfe'!$E$65),0,BR10*INDIRECT($B$56&$A$56&$A$57))","v":0}]
[null,null,2,{"$f":"INDIRECT(B56&A56&36)","v":30},null,null,"Großmeisterfähigkeit",null,null,null,null,{"$f":"INDIRECT(B56&A56&84)","v":100},null,{"$f":"IF('OT und Infos'!D11=INDIRECT(B56&A56&11),\"Übernatürliches Wesen kontroll.\",\"Dämonenauftrag\")","v":"Dämonenauftrag"},null,null,50,null,null,"Untote spüren",null,null,5,null,"Energiehand",null,null,10,null,null,"Feuerschutz III",null,null,150,null,null,null,null,null,null,null,null,null,null,null,null,null,null,null,null,null,null,null,null,null,null,null,null,{"$f":"IF(OR(BF11='Einführung & Hilfe'!$B$65,BF11='Einführung & Hilfe'!$C$65,BF11='Einführung & Hilfe'!$D$65,BF11='Einführung & Hilfe'!$E$65),0,BF11*INDIRECT($B$56&$A$56&$A$57))","v":0},null,null,null,{"$f":"IF(OR(BJ11='Einführung & Hilfe'!$B$65,BJ11='Einführung & Hilfe'!$C$65,BJ11='Einführung & Hilfe'!$D$65,BJ11='Einführung & Hilfe'!$E$65),0,BJ11*INDIRECT($B$56&$A$56&$A$57))","v":0},null,null,null,{"$f":"IF(OR(BN11='Einführung & Hilfe'!$B$65,BN11='Einführung & Hilfe'!$C$65,BN11='Einführung & Hilfe'!$D$65,BN11='Einführung & Hilfe'!$E$65),0,BN11*INDIRECT($B$56&$A$56&$A$57))","v":0},null,null,null,{"$f":"IF(OR(BR11='Einführung & Hilfe'!$B$65,BR11='Einführung & Hilfe'!$C$65,BR11='Einführung & Hilfe'!$D$65,BR11='Einführung & Hilfe'!$E$65),0,BR11*INDIRECT($B$56&$A$56&$A$57))","v":0}]
[null,null,3,{"$f":"INDIRECT(B56&A56&37)","v":50},null,null,"Erhöhung der Magiepunkte",null,null,null,null,{"$f":"INDIRECT(B56&A56&85)","v":0},null,"Dämonenbefehl",null,null,100,null,null,"Verbände reinigen",null,null,5,null,{"$f":"IF('OT und Infos'!D11=INDIRECT(B56&A56&11),\"Feuerball\",\"Feuerball I\")","v":"Feuerball I"},null,null,{"$f":"IF($L$21=$M$21,0,IF(AND($L$20=$M$20,IF(AB67=\"X\",AB65,AB67)<=50),0,IF(AND($L$19=$M$19,IF(AB67=\"X\",AB65,AB67)<=20),0,IF(AND($L$11=$M$11,AA12=$V$53,IF(AB67=\"X\",AB65,AB67)<=20),0,IF(AND($L$10=$M$10,AA12=$V$53,IF(AB67=\"X\",AB65,AB67)<=5),0,IF(IF(AB67=\"X\",AB65,AB67)=\"X\",\"X\",IF(AA12=$V$54,$P$57*IF(AB67=\"X\",AB65,AB67),IF(AA12=$V$55,$P$58*IF(AB67=\"X\",AB65,AB67),IF(AB67=\"X\",AB65,AB67)))))))))","v":30},null,null,"Kampfschutz I",null,null,10,null,null,null,null,null,null,null,null,null,null,null,null,null,null,null,null,null,null,null,null,null,null,null,null,{"$f":"IF(OR(BF12='Einführung & Hilfe'!$B$65,BF12='Einführung & Hilfe'!$C$65,BF12='Einführung & Hilfe'!$D$65,BF12='Einführung & Hilfe'!$E$65),0,BF12*INDIRECT($B$56&$A$56&$A$57))","v":0},null,null,null,{"$f":"IF(OR(BJ12='Einführung & Hilfe'!$B$65,BJ12='Einführung & Hilfe'!$C$65,BJ12='Einführung & Hilfe'!$D$65,BJ12='Einführung & Hilfe'!$E$65),0,BJ12*INDIRECT($B$56&$A$56&$A$57))","v":0},null,null,null,{"$f":"IF(OR(BN12='Einführung & Hilfe'!$B$65,BN12='Einführung & Hilfe'!$C$65,BN12='Einführung & Hilfe'!$D$65,BN12='Einführung & Hilfe'!$E$65),0,BN12*INDIRECT($B$56&$A$56&$A$57))","v":0},null,null,null,{"$f":"IF(OR(BR12='Einführung & Hilfe'!$B$65,BR12='Einführung & Hilfe'!$C$65,BR12='Einführung & Hilfe'!$D$65,BR12='Einführung & Hilfe'!$E$65),0,BR12*INDIRECT($B$56&$A$56&$A$57))","v":0}]
[null,null,4,{"$f":"INDIRECT(B56&A56&38)","v":100},null,null,"Magiepunkte aus Spruchfertigkeiten",null,null,null,null,null,{"$f":"SUM(SUMIF(K22:K46,\"Z\",M22:M46),SUMIF(P4:P32,\"Z\",R4:R32),SUMIF(P36:P53,\"Z\",R36:R53),SUMIF(V4:V15,\"Z\",X4:X15),SUMIF(V19:V36,\"Z\",X19:X36),SUMIF(V40:V41,\"Z\",X40:X41),SUMIF(AA4:AA37,\"Z\",AC4:AC37),SUMIF(AG4:AG35,\"Z\",AI4:AI35))","v":0},"Energiewall",null,null,40,null,null,"Wasser reinigen",null,null,5,null,"Feuerball II",null,null,50,null,null,"Kampfschutz II",null,null,20,null,null,null,null,null,null,null,null,null,null,null,null,null,null,null,null,null,null,null,null,null,null,null,null,{"$f":"IF(OR(BF13='Einführung & Hilfe'!$B$65,BF13='Einführung & Hilfe'!$C$65,BF13='Einführung & Hilfe'!$D$65,BF13='Einführung & Hilfe'!$E$65),0,BF13*INDIRECT($B$56&$A$56&$A$57))","v":0},null,null,null,{"$f":"IF(OR(BJ13='Einführung & Hilfe'!$B$65,BJ13='Einführung & Hilfe'!$C$65,BJ13='Einführung & Hilfe'!$D$65,BJ13='Einführung & Hilfe'!$E$65),0,BJ13*INDIRECT($B$56&$A$56&$A$57))","v":0},null,null,null,{"$f":"IF(OR(BN13='Einführung & Hilfe'!$B$65,BN13='Einführung & Hilfe'!$C$65,BN13='Einführung & Hilfe'!$D$65,BN13='Einführung & Hilfe'!$E$65),0,BN13*INDIRECT($B$56&$A$56&$A$57))","v":0},null,null,null,{"$f":"IF(OR(BR13='Einführung & Hilfe'!$B$65,BR13='Einführung & Hilfe'!$C$65,BR13='Einführung & Hilfe'!$D$65,BR13='Einführung & Hilfe'!$E$65),0,BR13*INDIRECT($B$56&$A$56&$A$57))","v":0}]
[null,null,5,{"$f":"INDIRECT(B56&A56&39)","v":"X"},null,null,"Summe Magiepunkte",null,null,null,null,null,{"$f":"SUM(M12:M13)","v":0},"Exorzismus",null,null,100,null,null,"Wunde reinigen",null,null,5,null,"Feuersturm",null,null,{"$f":"IF($L$21=$M$21,0,IF(AND($L$20=$M$20,AB68<=50),0,IF(AND($L$19=$M$19,AB68<=20),0,IF(AND($L$11=$M$11,AA14=$V$53,AB68<=20),0,IF(AND($L$10=$M$10,AA14=$V$53,AB68<=5),0,IF(AB68=\"X\",\"X\",IF(AA14=$V$54,$P$57*AB68,IF(AA14=$V$55,$P$58*AB68,AB68))))))))","v":150},null,null,"Kampfschutz III",null,null,30,null,null,null,null,null,null,null,null,null,null,null,null,null,null,null,null,null,null,null,null,null,null,null,null,{"$f":"IF(OR(BF14='Einführung & Hilfe'!$B$65,BF14='Einführung & Hilfe'!$C$65,BF14='Einführung & Hilfe'!$D$65,BF14='Einführung & Hilfe'!$E$65),0,BF14*INDIRECT($B$56&$A$56&$A$57))","v":0},null,null,null,{"$f":"IF(OR(BJ14='Einführung & Hilfe'!$B$65,BJ14='Einführung & Hilfe'!$C$65,BJ14='Einführung & Hilfe'!$D$65,BJ14='Einführung & Hilfe'!$E$65),0,BJ14*INDIRECT($B$56&$A$56&$A$57))","v":0},null,null,null,{"$f":"IF(OR(BN14='Einführung & Hilfe'!$B$65,BN14='Einführung & Hilfe'!$C$65,BN14='Einführung & Hilfe'!$D$65,BN14='Einführung & Hilfe'!$E$65),0,BN14*INDIRECT($B$56&$A$56&$A$57))","v":0},null,null,null,{"$f":"IF(OR(BR14='Einführung & Hilfe'!$B$65,BR14='Einführung & Hilfe'!$C$65,BR14='Einführung & Hilfe'!$D$65,BR14='Einführung & Hilfe'!$E$65),0,BR14*INDIRECT($B$56&$A$56&$A$57))","v":0}]
["Kämpferschutz",null,1,{"$f":"INDIRECT(B56&A56&40)","v":30},null,null,"Summe Ritualpunkte",null,null,null,null,null,{"$f":"ROUNDDOWN(M14/5+0.5,0)","v":0},"Göttliche Weisheiten",null,null,50,null,null,"Zaubertrick",null,null,5,null,"Flammenwaffe",null,null,{"$f":"IF($L$21=$M$21,0,IF(AND($L$20=$M$20,AB69<=50),0,IF(AND($L$19=$M$19,AB69<=20),0,IF(AND($L$11=$M$11,AA15=$V$53,AB69<=20),0,IF(AND($L$10=$M$10,AA15=$V$53,AB69<=5),0,IF(AB69=\"X\",\"X\",IF(AA15=$V$54,$P$57*AB69,IF(AA15=$V$55,$P$58*AB69,AB69))))))))","v":100},null,null,"Kampfschutz IV",null,null,40,null,null,null,null,null,null,null,null,null,null,null,null,null,null,null,null,null,null,null,null,null,null,null,null,{"$f":"IF(OR(BF15='Einführung & Hilfe'!$B$65,BF15='Einführung & Hilfe'!$C$65,BF15='Einführung & Hilfe'!$D$65,BF15='Einführung & Hilfe'!$E$65),0,BF15*INDIRECT($B$56&$A$56&$A$57))","v":0},null,null,null,{"$f":"IF(OR(BJ15='Einführung & Hilfe'!$B$65,BJ15='Einführung & Hilfe'!$C$65,BJ15='Einführung & Hilfe'!$D$65,BJ15='Einführung & Hilfe'!$E$65),0,BJ15*INDIRECT($B$56&$A$56&$A$57))","v":0},null,null,null,{"$f":"IF(OR(BN15='Einführung & Hilfe'!$B$65,BN15='Einführung & Hilfe'!$C$65,BN15='Einführung & Hilfe'!$D$65,BN15='Einführung & Hilfe'!$E$65),0,BN15*INDIRECT($B$56&$A$56&$A$57))","v":0},null,null,null,{"$f":"IF(OR(BR15='Einführung & Hilfe'!$B$65,BR15='Einführung & Hilfe'!$C$65,BR15='Einführung & Hilfe'!$D$65,BR15='Einführung & Hilfe'!$E$65),0,BR15*INDIRECT($B$56&$A$56&$A$57))","v":0}]
[null,null,2,{"$f":"INDIRECT(B56&A56&41)","v":50},null,null,"Summe III:",null,null,null,null,null,{"$f":"SUM(SUMIF(L10:L12,\">0\",M10:M12),SUMIF(L10:L12,\"EXP\",M10:M12))","v":0},"Magie aufheben",null,null,20,null,null,"Summe Lehrling:",null,null,null,{"$f":"SUM(SUMIF(W4:W15,\">0\",X4:X15),SUMIF(W4:W15,\"EXP\",X4:X15))","v":0},"Furcht",null,null,20,null,null,"Kampfschutz V",null,null,50,null,null,null,null,null,null,null,null,null,null,null,null,null,null,null,null,null,null,null,null,null,null,null,null,{"$f":"IF(OR(BF16='Einführung & Hilfe'!$B$65,BF16='Einführung & Hilfe'!$C$65,BF16='Einführung & Hilfe'!$D$65,BF16='Einführung & Hilfe'!$E$65),0,BF16*INDIRECT($B$56&$A$56&$A$57))","v":0},null,null,null,{"$f":"IF(OR(BJ16='Einführung & Hilfe'!$B$65,BJ16='Einführung & Hilfe'!$C$65,BJ16='Einführung & Hilfe'!$D$65,BJ16='Einführung & Hilfe'!$E$65),0,BJ16*INDIRECT($B$56&$A$56&$A$57))","v":0},null,null,null,{"$f":"IF(OR(BN16='Einführung & Hilfe'!$B$65,BN16='Einführung & Hilfe'!$C$65,BN16='Einführung & Hilfe'!$D$65,BN16='Einführung & Hilfe'!$E$65),0,BN16*INDIRECT($B$56&$A$56&$A$57))","v":0},null,null,null,{"$f":"IF(OR(BR16='Einführung & Hilfe'!$B$65,BR16='Einführung & Hilfe'!$C$65,BR16='Einführung & Hilfe'!$D$65,BR16='Einführung & Hilfe'!$E$65),0,BR16*INDIRECT($B$56&$A$56&$A$57))","v":0}]
[null,null,3,{"$f":"INDIRECT(B56&A56&42)","v":70},null,null,null,null,null,null,null,null,null,"Magie Identifizieren",null,null,30,null,null,null,null,null,null,null,"Krankheit",null,null,30,null,null,"Kampfschutz VI",null,null,60,null,null,null,null,null,null,null,null,null,null,null,null,null,null,null,null,null,null,null,null,null,null,null,null,{"$f":"IF(OR(BF17='Einführung & Hilfe'!$B$65,BF17='Einführung & Hilfe'!$C$65,BF17='Einführung & Hilfe'!$D$65,BF17='Einführung & Hilfe'!$E$65),0,BF17*INDIRECT($B$56&$A$56&$A$57))","v":0},null,null,null,{"$f":"IF(OR(BJ17='Einführung & Hilfe'!$B$65,BJ17='Einführung & Hilfe'!$C$65,BJ17='Einführung & Hilfe'!$D$65,BJ17='Einführung & Hilfe'!$E$65),0,BJ17*INDIRECT($B$56&$A$56&$A$57))","v":0},null,null,null,{"$f":"IF(OR(BN17='Einführung & Hilfe'!$B$65,BN17='Einführung & Hilfe'!$C$65,BN17='Einführung & Hilfe'!$D$65,BN17='Einführung & Hilfe'!$E$65),0,BN17*INDIRECT($B$56&$A$56&$A$57))","v":0},null,null,null,{"$f":"IF(OR(BR17='Einführung & Hilfe'!$B$65,BR17='Einführung & Hilfe'!$C$65,BR17='Einführung & Hilfe'!$D$65,BR17='Einführung & Hilfe'!$E$65),0,BR17*INDIRECT($B$56&$A$56&$A$57))","v":0}]
[null,null,4,{"$f":"INDIRECT(B56&A56&43)","v":100},null,null,"IV. Besondere Zauber / Immunitäten / Sonderf.",null,null,null,null,null,null,"Magie Zerstören",null,null,40,null,null,"Heilung",null,null,null,null,"Lähmung",null,null,40,null,null,"Magische Rüstung I",null,null,20,null,null,null,null,null,null,null,null,null,null,null,null,null,null,null,null,null,null,null,null,null,null,null,null,{"$f":"IF(OR(BF18='Einführung & Hilfe'!$B$65,BF18='Einführung & Hilfe'!$C$65,BF18='Einführung & Hilfe'!$D$65,BF18='Einführung & Hilfe'!$E$65),0,BF18*INDIRECT($B$56&$A$56&$A$57))","v":0},null,null,null,{"$f":"IF(OR(BJ18='Einführung & Hilfe'!$B$65,BJ18='Einführung & Hilfe'!$C$65,BJ18='Einführung & Hilfe'!$D$65,BJ18='Einführung & Hilfe'!$E$65),0,BJ18*INDIRECT($B$56&$A$56&$A$57))","v":0},null,null,null,{"$f":"IF(OR(BN18='Einführung & Hilfe'!$B$65,BN18='Einführung & Hilfe'!$C$65,BN18='Einführung & Hilfe'!$D$65,BN18='Einführung & Hilfe'!$E$65),0,BN18*INDIRECT($B$56&$A$56&$A$57))","v":0},null,null,null,{"$f":"IF(OR(BR18='Einführung & Hilfe'!$B$65,BR18='Einführung & Hilfe'!$C$65,BR18='Einführung & Hilfe'!$D$65,BR18='Einführung & Hilfe'!$E$65),0,BR18*INDIRECT($B$56&$A$56&$A$57))","v":0}]
[null,null,5,{"$f":"INDIRECT(B56&A56&44)","v":200},null,null,"Immunität gegen Lehrlingszauber",null,null,null,"I",{"$f":"INDIRECT(B56&A56&88)","v":50},null,"Magieraub",null,null,100,null,null,"Eisatem",null,null,{"$f":"IF($L$21=$M$21,0,IF(AND($L$20=$M$20,W72<=50),0,IF(AND($L$19=$M$19,W72<=20),0,IF(AND($L$11=$M$11,V19=$V$53,W72<=20),0,IF(AND($L$10=$M$10,V19=$V$53,W72<=5),0,IF(W72=\"X\",\"X\",IF(V19=$V$54,$P$57*W72,IF(V19=$V$55,$P$58*W72,W72))))))))","v":20},null,"Magiespiegel",null,null,40,null,null,"Magische Rüstung II",null,null,40,null,null,null,null,null,null,null,null,null,null,null,null,null,null,null,null,null,null,null,null,null,null,null,null,{"$f":"IF(OR(BF19='Einführung & Hilfe'!$B$65,BF19='Einführung & Hilfe'!$C$65,BF19='Einführung & Hilfe'!$D$65,BF19='Einführung & Hilfe'!$E$65),0,BF19*INDIRECT($B$56&$A$56&$A$57))","v":0},null,null,null,{"$f":"IF(OR(BJ19='Einführung & Hilfe'!$B$65,BJ19='Einführung & Hilfe'!$C$65,BJ19='Einführung & Hilfe'!$D$65,BJ19='Einführung & Hilfe'!$E$65),0,BJ19*INDIRECT($B$56&$A$56&$A$57))","v":0},null,null,null,{"$f":"IF(OR(BN19='Einführung & Hilfe'!$B$65,BN19='Einführung & Hilfe'!$C$65,BN19='Einführung & Hilfe'!$D$65,BN19='Einführung & Hilfe'!$E$65),0,BN19*INDIRECT($B$56&$A$56&$A$57))","v":0},null,null,null,{"$f":"IF(OR(BR19='Einführung & Hilfe'!$B$65,BR19='Einführung & Hilfe'!$C$65,BR19='Einführung & Hilfe'!$D$65,BR19='Einführung & Hilfe'!$E$65),0,BR19*INDIRECT($B$56&$A$56&$A$57))","v":0}]
[null,null,6,{"$f":"INDIRECT(B56&A56&45)","v":400},null,null,"Immunität gegen Meisterzauber",null,null,null,"I",{"$f":"INDIRECT(B56&A56&89)","v":150},null,"Magiesicherung",null,null,30,null,null,"Erwachen",null,null,20,null,"Mentaler Bolzen",null,null,30,null,null,"Magische Rüstung III",null,null,70,null,null,null,null,null,null,null,null,null,null,null,null,null,null,null,null,null,null,null,null,null,null,null,null,{"$f":"IF(OR(BF20='Einführung & Hilfe'!$B$65,BF20='Einführung & Hilfe'!$C$65,BF20='Einführung & Hilfe'!$D$65,BF20='Einführung & Hilfe'!$E$65),0,BF20*INDIRECT($B$56&$A$56&$A$57))","v":0},null,null,null,{"$f":"IF(OR(BJ20='Einführung & Hilfe'!$B$65,BJ20='Einführung & Hilfe'!$C$65,BJ20='Einführung & Hilfe'!$D$65,BJ20='Einführung & Hilfe'!$E$65),0,BJ20*INDIRECT($B$56&$A$56&$A$57))","v":0},null,null,null,{"$f":"IF(OR(BN20='Einführung & Hilfe'!$B$65,BN20='Einführung & Hilfe'!$C$65,BN20='Einführung & Hilfe'!$D$65,BN20='Einführung & Hilfe'!$E$65),0,BN20*INDIRECT($B$56&$A$56&$A$57))","v":0},null,null,null,{"$f":"IF(OR(BR20='Einführung & Hilfe'!$B$65,BR20='Einführung & Hilfe'!$C$65,BR20='Einführung & Hilfe'!$D$65,BR20='Einführung & Hilfe'!$E$65),0,BR20*INDIRECT($B$56&$A$56&$A$57))","v":0}]
["Regeneration",null,1,{"$f":"INDIRECT(B56&A56&46)","v":50},null,null,"Immunität gegen alle Magie",null,null,null,"I",{"$f":"INDIRECT(B56&A56&90)","v":500},null,"Magische Suche",null,null,20,null,null,"Gift neutralisieren",null,null,30,null,"Mentaler Dolch",null,null,50,null,null,"Magische Rüstung IV",null,null,100,null,null,null,null,null,null,null,null,null,null,null,null,null,null,null,null,null,null,null,null,null,null,null,null,{"$f":"IF(OR(BF21='Einführung & Hilfe'!$B$65,BF21='Einführung & Hilfe'!$C$65,BF21='Einführung & Hilfe'!$D$65,BF21='Einführung & Hilfe'!$E$65),0,BF21*INDIRECT($B$56&$A$56&$A$57))","v":0},null,null,null,{"$f":"IF(OR(BJ21='Einführung & Hilfe'!$B$65,BJ21='Einführung & Hilfe'!$C$65,BJ21='Einführung & Hilfe'!$D$65,BJ21='Einführung & Hilfe'!$E$65),0,BJ21*INDIRECT($B$56&$A$56&$A$57))","v":0},null,null,null,{"$f":"IF(OR(BN21='Einführung & Hilfe'!$B$65,BN21='Einführung & Hilfe'!$C$65,BN21='Einführung & Hilfe'!$D$65,BN21='Einführung & Hilfe'!$E$65),0,BN21*INDIRECT($B$56&$A$56&$A$57))","v":0},null,null,null,{"$f":"IF(OR(BR21='Einführung & Hilfe'!$B$65,BR21='Einführung & Hilfe'!$C$65,BR21='Einführung & Hilfe'!$D$65,BR21='Einführung & Hilfe'!$E$65),0,BR21*INDIRECT($B$56&$A$56&$A$57))","v":0}]
[null,null,2,{"$f":"INDIRECT(B56&A56&47)","v":100},null,null,null,null,null,null,null,null,null,"Magische Waffe I",null,null,10,null,null,"Körper heilen",null,null,30,null,"Mentaler Nagel",null,null,20,null,null,"Magische Rüstung V",null,null,150,null,null,null,null,null,null,null,null,null,null,null,null,null,null,null,null,null,null,null,null,null,null,null,null,{"$f":"IF(OR(BF22='Einführung & Hilfe'!$B$65,BF22='Einführung & Hilfe'!$C$65,BF22='Einführung & Hilfe'!$D$65,BF22='Einführung & Hilfe'!$E$65),0,BF22*INDIRECT($B$56&$A$56&$A$57))","v":0},null,null,null,{"$f":"IF(OR(BJ22='Einführung & Hilfe'!$B$65,BJ22='Einführung & Hilfe'!$C$65,BJ22='Einführung & Hilfe'!$D$65,BJ22='Einführung & Hilfe'!$E$65),0,BJ22*INDIRECT($B$56&$A$56&$A$57))","v":0},null,null,null,{"$f":"IF(OR(BN22='Einführung & Hilfe'!$B$65,BN22='Einführung & Hilfe'!$C$65,BN22='Einführung & Hilfe'!$D$65,BN22='Einführung & Hilfe'!$E$65),0,BN22*INDIRECT($B$56&$A$56&$A$57))","v":0},null,null,null,{"$f":"IF(OR(BR22='Einführung & Hilfe'!$B$65,BR22='Einführung & Hilfe'!$C$65,BR22='Einführung & Hilfe'!$D$65,BR22='Einführung & Hilfe'!$E$65),0,BR22*INDIRECT($B$56&$A$56&$A$57))","v":0}]
[null,null,3,{"$f":"INDIRECT(B56&A56&48)","v":150},null,null,null,null,null,null,null,null,null,"Magische Waffe II",null,null,30,null,null,"Leben für Leben",null,null,250,null,{"$f":"IF('OT und Infos'!D11=INDIRECT(B56&A56&11),\"Waffe erhitzen\",\"Metall erhitzen I\")","v":"Metall erhitzen I"},null,null,10,null,null,"Magische Rüstung VI",null,null,200,null,null,null,null,null,null,null,null,null,null,null,null,null,null,null,null,null,null,null,null,null,null,null,null,{"$f":"IF(OR(BF23='Einführung & Hilfe'!$B$65,BF23='Einführung & Hilfe'!$C$65,BF23='Einführung & Hilfe'!$D$65,BF23='Einführung & Hilfe'!$E$65),0,BF23*INDIRECT($B$56&$A$56&$A$57))","v":0},null,null,null,{"$f":"IF(OR(BJ23='Einführung & Hilfe'!$B$65,BJ23='Einführung & Hilfe'!$C$65,BJ23='Einführung & Hilfe'!$D$65,BJ23='Einführung & Hilfe'!$E$65),0,BJ23*INDIRECT($B$56&$A$56&$A$57))","v":0},null,null,null,{"$f":"IF(OR(BN23='Einführung & Hilfe'!$B$65,BN23='Einführung & Hilfe'!$C$65,BN23='Einführung & Hilfe'!$D$65,BN23='Einführung & Hilfe'!$E$65),0,BN23*INDIRECT($B$56&$A$56&$A$57))","v":0},null,null,null,{"$f":"IF(OR(BR23='Einführung & Hilfe'!$B$65,BR23='Einführung & Hilfe'!$C$65,BR23='Einführung & Hilfe'!$D$65,BR23='Einführung & Hilfe'!$E$65),0,BR23*INDIRECT($B$56&$A$56&$A$57))","v":0}]
[null,null,4,{"$f":"INDIRECT(B56&A56&49)","v":200},null,null,null,null,null,null,null,null,null,"Magischer Gegenstand",null,null,50,null,null,"Lösen",null,null,10,null,"Metall erhitzen II",null,null,50,null,null,"Magischer Zirkel",null,null,20,null,null,null,null,null,null,null,null,null,null,null,null,null,null,null,null,null,null,null,null,null,null,null,null,{"$f":"IF(OR(BF24='Einführung & Hilfe'!$B$65,BF24='Einführung & Hilfe'!$C$65,BF24='Einführung & Hilfe'!$D$65,BF24='Einführung & Hilfe'!$E$65),0,BF24*INDIRECT($B$56&$A$56&$A$57))","v":0},null,null,null,{"$f":"IF(OR(BJ24='Einführung & Hilfe'!$B$65,BJ24='Einführung & Hilfe'!$C$65,BJ24='Einführung & Hilfe'!$D$65,BJ24='Einführung & Hilfe'!$E$65),0,BJ24*INDIRECT($B$56&$A$56&$A$57))","v":0},null,null,null,{"$f":"IF(OR(BN24='Einführung & Hilfe'!$B$65,BN24='Einführung & Hilfe'!$C$65,BN24='Einführung & Hilfe'!$D$65,BN24='Einführung & Hilfe'!$E$65),0,BN24*INDIRECT($B$56&$A$56&$A$57))","v":0},null,null,null,{"$f":"IF(OR(BR24='Einführung & Hilfe'!$B$65,BR24='Einführung & Hilfe'!$C$65,BR24='Einführung & Hilfe'!$D$65,BR24='Einführung & Hilfe'!$E$65),0,BR24*INDIRECT($B$56&$A$56&$A$57))","v":0}]
["Seelenschutz",null,null,{"$f":"INDIRECT(B56&A56&50)","v":50},null,null,null,null,null,null,null,null,null,"Magischer Riegel",null,null,10,null,null,"Magie übertragen",null,null,50,null,"Ogerstärke",null,null,50,null,null,{"$f":"IF('OT und Infos'!D11=INDIRECT(B56&A56&11),\"Schutz vor Magie\",\"Meisterschutz\")","v":"Meisterschutz"},{"$f":"IF(AND(OR(B7='OT und Infos'!A24,B7='OT und Infos'!A16),M11=100),\"(Großmeister)\",\"\")","v":""},null,{"$f":"IF(OR($L$21=$M$21,$L$11=$M$11),0,IF(AND($L$20=$M$20,AH78<=50),0,IF(AND($L$19=$M$19,AH78<=20),0,IF(AND($L$11=$M$11,AG25=$V$53,AH78<=20),0,IF(AND($L$10=$M$10,AG25=$V$53,AH78<=5),0,IF(AH78=\"X\",\"X\",IF(AG25=$V$54,$P$57*AH78,IF(AG25=$V$55,$P$58*AH78,AH78))))))))","v":100},null,null,null,null,null,null,null,null,null,null,null,null,null,null,null,null,null,null,null,null,null,null,null,null,{"$f":"IF(OR(BF25='Einführung & Hilfe'!$B$65,BF25='Einführung & Hilfe'!$C$65,BF25='Einführung & Hilfe'!$D$65,BF25='Einführung & Hilfe'!$E$65),0,BF25*INDIRECT($B$56&$A$56&$A$57))","v":0},null,null,null,{"$f":"IF(OR(BJ25='Einführung & Hilfe'!$B$65,BJ25='Einführung & Hilfe'!$C$65,BJ25='Einführung & Hilfe'!$D$65,BJ25='Einführung & Hilfe'!$E$65),0,BJ25*INDIRECT($B$56&$A$56&$A$57))","v":0},null,null,null,{"$f":"IF(OR(BN25='Einführung & Hilfe'!$B$65,BN25='Einführung & Hilfe'!$C$65,BN25='Einführung & Hilfe'!$D$65,BN25='Einführung & Hilfe'!$E$65),0,BN25*INDIRECT($B$56&$A$56&$A$57))","v":0},null,null,null,{"$f":"IF(OR(BR25='Einführung & Hilfe'!$B$65,BR25='Einführung & Hilfe'!$C$65,BR25='Einführung & Hilfe'!$D$65,BR25='Einführung & Hilfe'!$E$65),0,BR25*INDIRECT($B$56&$A$56&$A$57))","v":0}]
["Summe I:",null,null,null,{"$f":"SUM(SUMIF(D10:D25,\">0\",E10:E25),SUMIF(D10:D25,\"EXP\",E10:E25))","v":0},null,null,null,null,null,null,null,null,"Magisches Schloss",null,null,30,null,null,"Regeneration",null,null,40,null,"Orkanböe",null,null,50,null,null,"Schutz vor heil. / göttl. Waffen",null,null,500,null,null,null,null,null,null,null,null,null,null,null,null,null,null,null,null,null,null,null,null,null,null,null,null,{"$f":"IF(OR(BF26='Einführung & Hilfe'!$B$65,BF26='Einführung & Hilfe'!$C$65,BF26='Einführung & Hilfe'!$D$65,BF26='Einführung & Hilfe'!$E$65),0,BF26*INDIRECT($B$56&$A$56&$A$57))","v":0},null,null,null,{"$f":"IF(OR(BJ26='Einführung & Hilfe'!$B$65,BJ26='Einführung & Hilfe'!$C$65,BJ26='Einführung & Hilfe'!$D$65,BJ26='Einführung & Hilfe'!$E$65),0,BJ26*INDIRECT($B$56&$A$56&$A$57))","v":0},null,null,null,{"$f":"IF(OR(BN26='Einführung & Hilfe'!$B$65,BN26='Einführung & Hilfe'!$C$65,BN26='Einführung & Hilfe'!$D$65,BN26='Einführung & Hilfe'!$E$65),0,BN26*INDIRECT($B$56&$A$56&$A$57))","v":0},null,null,null,{"$f":"IF(OR(BR26='Einführung & Hilfe'!$B$65,BR26='Einführung & Hilfe'!$C$65,BR26='Einführung & Hilfe'!$D$65,BR26='Einführung & Hilfe'!$E$65),0,BR26*INDIRECT($B$56&$A$56&$A$57))","v":0}]
[null,null,null,null,null,null,null,null,null,null,null,null,null,"Mit Toten sprechen",null,null,20,null,null,"Traum des ewigen Lebens",null,null,250,null,"Schlaf",null,null,20,null,null,"Schutz vor mag. / gew. Waffen",null,null,300,null,null,null,null,null,null,null,null,null,null,null,null,null,null,null,null,null,null,null,null,null,null,null,null,{"$f":"IF(OR(BF27='Einführung & Hilfe'!$B$65,BF27='Einführung & Hilfe'!$C$65,BF27='Einführung & Hilfe'!$D$65,BF27='Einführung & Hilfe'!$E$65),0,BF27*INDIRECT($B$56&$A$56&$A$57))","v":0},null,null,null,{"$f":"IF(OR(BJ27='Einführung & Hilfe'!$B$65,BJ27='Einführung & Hilfe'!$C$65,BJ27='Einführung & Hilfe'!$D$65,BJ27='Einführung & Hilfe'!$E$65),0,BJ27*INDIRECT($B$56&$A$56&$A$57))","v":0},null,null,null,{"$f":"IF(OR(BN27='Einführung & Hilfe'!$B$65,BN27='Einführung & Hilfe'!$C$65,BN27='Einführung & Hilfe'!$D$65,BN27='Einführung & Hilfe'!$E$65),0,BN27*INDIRECT($B$56&$A$56&$A$57))","v":0},null,null,null,{"$f":"IF(OR(BR27='Einführung & Hilfe'!$B$65,BR27='Einführung & Hilfe'!$C$65,BR27='Einführung & Hilfe'!$D$65,BR27='Einführung & Hilfe'!$E$65),0,BR27*INDIRECT($B$56&$A$56&$A$57))","v":0}]
["II. Abenteurerfertigkeiten",null,null,null,null,null,null,null,null,null,null,null,null,"Schloss öffnen",null,null,30,null,null,"Wiederbeleben",null,null,100,null,"Schmerz",null,null,40,null,null,"Schutz vor normalen Waffen",null,null,200,null,null,null,null,null,null,null,null,null,null,null,null,null,null,null,null,null,null,null,null,null,null,null,null,{"$f":"IF(OR(BF28='Einführung & Hilfe'!$B$65,BF28='Einführung & Hilfe'!$C$65,BF28='Einführung & Hilfe'!$D$65,BF28='Einführung & Hilfe'!$E$65),0,BF28*INDIRECT($B$56&$A$56&$A$57))","v":0},null,null,null,{"$f":"IF(OR(BJ28='Einführung & Hilfe'!$B$65,BJ28='Einführung & Hilfe'!$C$65,BJ28='Einführung & Hilfe'!$D$65,BJ28='Einführung & Hilfe'!$E$65),0,BJ28*INDIRECT($B$56&$A$56&$A$57))","v":0},null,null,null,{"$f":"IF(OR(BN28='Einführung & Hilfe'!$B$65,BN28='Einführung & Hilfe'!$C$65,BN28='Einführung & Hilfe'!$D$65,BN28='Einführung & Hilfe'!$E$65),0,BN28*INDIRECT($B$56&$A$56&$A$57))","v":0},null,null,null,{"$f":"IF(OR(BR28='Einführung & Hilfe'!$B$65,BR28='Einführung & Hilfe'!$C$65,BR28='Einführung & Hilfe'!$D$65,BR28='Einführung & Hilfe'!$E$65),0,BR28*INDIRECT($B$56&$A$56&$A$57))","v":0}]
["Adel",null,null,{"$f":"INDIRECT(B56&A56&53)","v":"EXP"},null,null,null,null,null,null,null,null,null,"Seelenbann",null,null,150,null,null,"Wiederkehr",null,null,50,null,"Schreckensbolzen",null,null,40,null,null,"Seelenrüstung I",null,null,40,null,null,null,null,null,null,null,null,null,null,null,null,null,null,null,null,null,null,null,null,null,null,null,null,{"$f":"IF(OR(BF29='Einführung & Hilfe'!$B$65,BF29='Einführung & Hilfe'!$C$65,BF29='Einführung & Hilfe'!$D$65,BF29='Einführung & Hilfe'!$E$65),0,BF29*INDIRECT($B$56&$A$56&$A$57))","v":0},null,null,null,{"$f":"IF(OR(BJ29='Einführung & Hilfe'!$B$65,BJ29='Einführung & Hilfe'!$C$65,BJ29='Einführung & Hilfe'!$D$65,BJ29='Einführung & Hilfe'!$E$65),0,BJ29*INDIRECT($B$56&$A$56&$A$57))","v":0},null,null,null,{"$f":"IF(OR(BN29='Einführung & Hilfe'!$B$65,BN29='Einführung & Hilfe'!$C$65,BN29='Einführung & Hilfe'!$D$65,BN29='Einführung & Hilfe'!$E$65),0,BN29*INDIRECT($B$56&$A$56&$A$57))","v":0},null,null,null,{"$f":"IF(OR(BR29='Einführung & Hilfe'!$B$65,BR29='Einführung & Hilfe'!$C$65,BR29='Einführung & Hilfe'!$D$65,BR29='Einführung & Hilfe'!$E$65),0,BR29*INDIRECT($B$56&$A$56&$A$57))","v":0}]
["Alchemie / Giftkunde / Trankkunde",null,null,{"$f":"INDIRECT(B56&A56&54)","v":"EXP"},null,null,null,null,null,null,null,null,null,"Zauber binden",null,null,30,null,null,"Wunde heilen",null,null,20,null,"Schreckenshand",null,null,30,null,null,"Seelenrüstung II",null,null,80,null,null,null,null,null,null,null,null,null,null,null,null,null,null,null,null,null,null,null,null,null,null,null,null,{"$f":"IF(OR(BF30='Einführung & Hilfe'!$B$65,BF30='Einführung & Hilfe'!$C$65,BF30='Einführung & Hilfe'!$D$65,BF30='Einführung & Hilfe'!$E$65),0,BF30*INDIRECT($B$56&$A$56&$A$57))","v":0},null,null,null,{"$f":"IF(OR(BJ30='Einführung & Hilfe'!$B$65,BJ30='Einführung & Hilfe'!$C$65,BJ30='Einführung & Hilfe'!$D$65,BJ30='Einführung & Hilfe'!$E$65),0,BJ30*INDIRECT($B$56&$A$56&$A$57))","v":0},null,null,null,{"$f":"IF(OR(BN30='Einführung & Hilfe'!$B$65,BN30='Einführung & Hilfe'!$C$65,BN30='Einführung & Hilfe'!$D$65,BN30='Einführung & Hilfe'!$E$65),0,BN30*INDIRECT($B$56&$A$56&$A$57))","v":0},null,null,null,{"$f":"IF(OR(BR30='Einführung & Hilfe'!$B$65,BR30='Einführung & Hilfe'!$C$65,BR30='Einführung & Hilfe'!$D$65,BR30='Einführung & Hilfe'!$E$65),0,BR30*INDIRECT($B$56&$A$56&$A$57))","v":0}]
["Entfesseln",null,null,{"$f":"INDIRECT(B56&A56&55)","v":50},null,null,null,null,null,null,null,null,null,"Zeitkontrolle",null,null,50,null,null,"Wunde übertragen",null,null,10,null,"Schreckenswaffe",null,null,40,null,null,"Seelenrüstung III",null,null,140,null,null,null,null,null,null,null,null,null,null,null,null,null,null,null,null,null,null,null,null,null,null,null,null,{"$f":"IF(OR(BF31='Einführung & Hilfe'!$B$65,BF31='Einführung & Hilfe'!$C$65,BF31='Einführung & Hilfe'!$D$65,BF31='Einführung & Hilfe'!$E$65),0,BF31*INDIRECT($B$56&$A$56&$A$57))","v":0},null,null,null,{"$f":"IF(OR(BJ31='Einführung & Hilfe'!$B$65,BJ31='Einführung & Hilfe'!$C$65,BJ31='Einführung & Hilfe'!$D$65,BJ31='Einführung & Hilfe'!$E$65),0,BJ31*INDIRECT($B$56&$A$56&$A$57))","v":0},null,null,null,{"$f":"IF(OR(BN31='Einführung & Hilfe'!$B$65,BN31='Einführung & Hilfe'!$C$65,BN31='Einführung & Hilfe'!$D$65,BN31='Einführung & Hilfe'!$E$65),0,BN31*INDIRECT($B$56&$A$56&$A$57))","v":0},null,null,null,{"$f":"IF(OR(BR31='Einführung & Hilfe'!$B$65,BR31='Einführung & Hilfe'!$C$65,BR31='Einführung & Hilfe'!$D$65,BR31='Einführung & Hilfe'!$E$65),0,BR31*INDIRECT($B$56&$A$56&$A$57))","v":0}]
["Fallenkunde",null,null,{"$f":"INDIRECT(B56&A56&56)","v":"EXP"},null,null,null,null,null,null,null,null,null,"Zweites Gesicht",null,null,40,null,null,"Wunde verschieben",null,null,10,null,"Todeshand",null,null,100,null,null,"Seelenrüstung IV",null,null,200,null,null,null,null,null,null,null,null,null,null,null,null,null,null,null,null,null,null,null,null,null,null,null,null,{"$f":"IF(OR(BF32='Einführung & Hilfe'!$B$65,BF32='Einführung & Hilfe'!$C$65,BF32='Einführung & Hilfe'!$D$65,BF32='Einführung & Hilfe'!$E$65),0,BF32*INDIRECT($B$56&$A$56&$A$57))","v":0},null,null,null,{"$f":"IF(OR(BJ32='Einführung & Hilfe'!$B$65,BJ32='Einführung & Hilfe'!$C$65,BJ32='Einführung & Hilfe'!$D$65,BJ32='Einführung & Hilfe'!$E$65),0,BJ32*INDIRECT($B$56&$A$56&$A$57))","v":0},null,null,null,{"$f":"IF(OR(BN32='Einführung & Hilfe'!$B$65,BN32='Einführung & Hilfe'!$C$65,BN32='Einführung & Hilfe'!$D$65,BN32='Einführung & Hilfe'!$E$65),0,BN32*INDIRECT($B$56&$A$56&$A$57))","v":0},null,null,null,{"$f":"IF(OR(BR32='Einführung & Hilfe'!$B$65,BR32='Einführung & Hilfe'!$C$65,BR32='Einführung & Hilfe'!$D$65,BR32='Einführung & Hilfe'!$E$65),0,BR32*INDIRECT($B$56&$A$56&$A$57))","v":0}]
["Feuer machen",null,null,{"$f":"INDIRECT(B56&A56&57)","v":10},null,null,null,null,null,null,null,null,null,"Summe Allgemein:",null,null,null,{"$f":"SUM(SUMIF(Q4:Q32,\">0\",R4:R32),SUMIF(Q4:Q32,\"EXP\",R4:R32))","v":0},null,"Wunde zufügen",null,null,40,null,"Versteinern",null,null,50,null,null,"Seelenrüstung V",null,null,300,null,null,null,null,null,null,null,null,null,null,null,null,null,null,null,null,null,null,null,null,null,null,null,null,{"$f":"IF(OR(BF33='Einführung & Hilfe'!$B$65,BF33='Einführung & Hilfe'!$C$65,BF33='Einführung & Hilfe'!$D$65,BF33='Einführung & Hilfe'!$E$65),0,BF33*INDIRECT($B$56&$A$56&$A$57))","v":0},null,null,null,{"$f":"IF(OR(BJ33='Einführung & Hilfe'!$B$65,BJ33='Einführung & Hilfe'!$C$65,BJ33='Einführung & Hilfe'!$D$65,BJ33='Einführung & Hilfe'!$E$65),0,BJ33*INDIRECT($B$56&$A$56&$A$57))","v":0},null,null,null,{"$f":"IF(OR(BN33='Einführung & Hilfe'!$B$65,BN33='Einführung & Hilfe'!$C$65,BN33='Einführung & Hilfe'!$D$65,BN33='Einführung & Hilfe'!$E$65),0,BN33*INDIRECT($B$56&$A$56&$A$57))","v":0},null,null,null,{"$f":"IF(OR(BR33='Einführung & Hilfe'!$B$65,BR33='Einführung & Hilfe'!$C$65,BR33='Einführung & Hilfe'!$D$65,BR33='Einführung & Hilfe'!$E$65),0,BR33*INDIRECT($B$56&$A$56&$A$57))","v":0}]
[{"$f":"IF('OT und Infos'!D11=INDIRECT(B56&A56&11),\"Fachwissen Geschichten/Legenden\",\"Geschichten & Legenden\")","v":"Geschichten & Legenden"},null,null,{"$f":"INDIRECT(B56&A56&58)","v":"EXP"},null,null,null,null,null,null,null,null,null,null,null,null,null,null,null,"Zombie I",null,null,30,null,"Verwandeln",null,null,40,null,null,"Seelenrüstung VI",null,null,400,null,null,null,null,null,null,null,null,null,null,null,null,null,null,null,null,null,null,null,null,null,null,null,null,{"$f":"IF(OR(BF34='Einführung & Hilfe'!$B$65,BF34='Einführung & Hilfe'!$C$65,BF34='Einführung & Hilfe'!$D$65,BF34='Einführung & Hilfe'!$E$65),0,BF34*INDIRECT($B$56&$A$56&$A$57))","v":0},null,null,null,{"$f":"IF(OR(BJ34='Einführung & Hilfe'!$B$65,BJ34='Einführung & Hilfe'!$C$65,BJ34='Einführung & Hilfe'!$D$65,BJ34='Einführung & Hilfe'!$E$65),0,BJ34*INDIRECT($B$56&$A$56&$A$57))","v":0},null,null,null,{"$f":"IF(OR(BN34='Einführung & Hilfe'!$B$65,BN34='Einführung & Hilfe'!$C$65,BN34='Einführung & Hilfe'!$D$65,BN34='Einführung & Hilfe'!$E$65),0,BN34*INDIRECT($B$56&$A$56&$A$57))","v":0},null,null,null,{"$f":"IF(OR(BR34='Einführung & Hilfe'!$B$65,BR34='Einführung & Hilfe'!$C$65,BR34='Einführung & Hilfe'!$D$65,BR34='Einführung & Hilfe'!$E$65),0,BR34*INDIRECT($B$56&$A$56&$A$57))","v":0}]
[{"$f":"IF('OT und Infos'!D11=INDIRECT(B56&A56&11),\"Fachwissen Handel\",\"Handel\")","v":"Handel"},null,null,{"$f":"INDIRECT(B56&A56&59)","v":"EXP"},null,null,null,null,null,null,null,null,null,"Beeinflussung",null,null,null,null,null,"Zombie II",null,null,50,null,"Verwurzeln",null,null,20,null,null,"Totaler Magieschutz",null,null,30,null,null,null,null,null,null,null,null,null,null,null,null,null,null,null,null,null,null,null,null,null,null,null,null,{"$f":"IF(OR(BF35='Einführung & Hilfe'!$B$65,BF35='Einführung & Hilfe'!$C$65,BF35='Einführung & Hilfe'!$D$65,BF35='Einführung & Hilfe'!$E$65),0,BF35*INDIRECT($B$56&$A$56&$A$57))","v":0},null,null,null,{"$f":"IF(OR(BJ35='Einführung & Hilfe'!$B$65,BJ35='Einführung & Hilfe'!$C$65,BJ35='Einführung & Hilfe'!$D$65,BJ35='Einführung & Hilfe'!$E$65),0,BJ35*INDIRECT($B$56&$A$56&$A$57))","v":0},null,null,null,{"$f":"IF(OR(BN35='Einführung & Hilfe'!$B$65,BN35='Einführung & Hilfe'!$C$65,BN35='Einführung & Hilfe'!$D$65,BN35='Einführung & Hilfe'!$E$65),0,BN35*INDIRECT($B$56&$A$56&$A$57))","v":0},null,null,null,{"$f":"IF(OR(BR35='Einführung & Hilfe'!$B$65,BR35='Einführung & Hilfe'!$C$65,BR35='Einführung & Hilfe'!$D$65,BR35='Einführung & Hilfe'!$E$65),0,BR35*INDIRECT($B$56&$A$56&$A$57))","v":0}]
[{"$f":"IF(INDIRECT(B56&A56&60)=\"X\",\"Heilkunde\",\"Erste Hilfe (10) / Heilkunde (30)\")","v":"Erste Hilfe (10) / Heilkunde (30)"},null,{"$f":"IF(INDIRECT(B56&A56&61)=\"X\",\"\",1)","v":""},{"$f":"IF(INDIRECT(B56&A56&60)=\"X\",INDIRECT(B56&A56&61),INDIRECT(B56&A56&60))","v":30},null,null,null,null,null,null,null,null,null,"Auftrag",null,null,{"$f":"IF($L$21=$M$21,0,IF(AND($L$20=$M$20,Q89<=50),0,IF(AND($L$19=$M$19,Q89<=20),0,IF(AND($L$11=$M$11,P36=$V$53,Q89<=20),0,IF(AND($L$10=$M$10,P36=$V$53,Q89<=5),0,IF(Q89=\"X\",\"X\",IF(P36=$V$54,$P$57*Q89,IF(P36=$V$55,$P$58*Q89,Q89))))))))","v":100},null,null,"Zombie III",null,null,100,null,"Windstoß",null,null,20,null,null,"Summe Schutz:",null,null,null,{"$f":"SUM(SUMIF(AH4:AH35,\">0\",AI4:AI35),SUMIF(AH4:AH35,\"EXP\",AI4:AI35))","v":0},null,null,null,null,null,null,null,null,null,null,null,null,null,null,null,null,null,null,null,null,null,null,null,{"$f":"IF(OR(BF36='Einführung & Hilfe'!$B$65,BF36='Einführung & Hilfe'!$C$65,BF36='Einführung & Hilfe'!$D$65,BF36='Einführung & Hilfe'!$E$65),0,BF36*INDIRECT($B$56&$A$56&$A$57))","v":0},null,null,null,{"$f":"IF(OR(BJ36='Einführung & Hilfe'!$B$65,BJ36='Einführung & Hilfe'!$C$65,BJ36='Einführung & Hilfe'!$D$65,BJ36='Einführung & Hilfe'!$E$65),0,BJ36*INDIRECT($B$56&$A$56&$A$57))","v":0},null,null,null,{"$f":"IF(OR(BN36='Einführung & Hilfe'!$B$65,BN36='Einführung & Hilfe'!$C$65,BN36='Einführung & Hilfe'!$D$65,BN36='Einführung & Hilfe'!$E$65),0,BN36*INDIRECT($B$56&$A$56&$A$57))","v":0},null,null,null,{"$f":"IF(OR(BR36='Einführung & Hilfe'!$B$65,BR36='Einführung & Hilfe'!$C$65,BR36='Einführung & Hilfe'!$D$65,BR36='Einführung & Hilfe'!$E$65),0,BR36*INDIRECT($B$56&$A$56&$A$57))","v":0}]
["Heilkunde",null,2,{"$f":"INDIRECT(B56&A56&62)","v":"X"},null,null,null,null,null,null,null,null,null,"Berserker I",{"$f":"IF(D25=E25,\"(Seelenschutz)\",\"\")","v":""},null,10,null,null,"Summe Heilung:",null,null,null,{"$f":"SUM(SUMIF(W19:W36,\">0\",X19:X36),SUMIF(W19:W36,\"EXP\",X19:X36))","v":0},"Zerstören",null,null,60,null,null,null,null,null,null,null,null,null,null,null,null,null,null,null,null,null,null,null,null,null,null,null,null,null,null,null,null,null,null,{"$f":"IF(OR(BF37='Einführung & Hilfe'!$B$65,BF37='Einführung & Hilfe'!$C$65,BF37='Einführung & Hilfe'!$D$65,BF37='Einführung & Hilfe'!$E$65),0,BF37*INDIRECT($B$56&$A$56&$A$57))","v":0},null,null,null,{"$f":"IF(OR(BJ37='Einführung & Hilfe'!$B$65,BJ37='Einführung & Hilfe'!$C$65,BJ37='Einführung & Hilfe'!$D$65,BJ37='Einführung & Hilfe'!$E$65),0,BJ37*INDIRECT($B$56&$A$56&$A$57))","v":0},null,null,null,{"$f":"IF(OR(BN37='Einführung & Hilfe'!$B$65,BN37='Einführung & Hilfe'!$C$65,BN37='Einführung & Hilfe'!$D$65,BN37='Einführung & Hilfe'!$E$65),0,BN37*INDIRECT($B$56&$A$56&$A$57))","v":0},null,null,null,{"$f":"IF(OR(BR37='Einführung & Hilfe'!$B$65,BR37='Einführung & Hilfe'!$C$65,BR37='Einführung & Hilfe'!$D$65,BR37='Einführung & Hilfe'!$E$65),0,BR37*INDIRECT($B$56&$A$56&$A$57))","v":0}]
["Heilkunde",null,3,{"$f":"INDIRECT(B56&A56&63)","v":"X"},null,null,null,null,null,null,null,null,null,"Berserker II",{"$f":"IF(D25=E25,\"(Seelenschutz)\",\"\")","v":""},null,20,null,null,null,null,null,null,null,"Summe Kampf:",null,null,null,{"$f":"SUM(SUMIF(AB4:AB37,\">0\",AC4:AC37),SUMIF(AB4:AB37,\"EXP\",AC4:AC37))","v":0},null,null,null,null,null,null,null,null,null,null,null,null,null,null,null,null,null,null,null,null,null,null,null,null,null,null,null,null,null,{"$f":"IF(OR(BF38='Einführung & Hilfe'!$B$65,BF38='Einführung & Hilfe'!$C$65,BF38='Einführung & Hilfe'!$D$65,BF38='Einführung & Hilfe'!$E$65),0,BF38*INDIRECT($B$56&$A$56&$A$57))","v":0},null,null,null,{"$f":"IF(OR(BJ38='Einführung & Hilfe'!$B$65,BJ38='Einführung & Hilfe'!$C$65,BJ38='Einführung & Hilfe'!$D$65,BJ38='Einführung & Hilfe'!$E$65),0,BJ38*INDIRECT($B$56&$A$56&$A$57))","v":0},null,null,null,{"$f":"IF(OR(BN38='Einführung & Hilfe'!$B$65,BN38='Einführung & Hilfe'!$C$65,BN38='Einführung & Hilfe'!$D$65,BN38='Einführung & Hilfe'!$E$65),0,BN38*INDIRECT($B$56&$A$56&$A$57))","v":0},null,null,null,{"$f":"IF(OR(BR38='Einführung & Hilfe'!$B$65,BR38='Einführung & Hilfe'!$C$65,BR38='Einführung & Hilfe'!$D$65,BR38='Einführung & Hilfe'!$E$65),0,BR38*INDIRECT($B$56&$A$56&$A$57))","v":0}]
[{"$f":"IF('OT und Infos'!D11=INDIRECT(B56&A56&11),\"Immunität gegen Tränke\",\"Immunität gegen Gift\")","v":"Immunität gegen Gift"},null,null,{"$f":"INDIRECT(B56&A56&64)","v":"EXP"},null,null,null,null,null,null,null,null,null,"Berserker III",{"$f":"IF(D25=E25,\"(Seelenschutz)\",\"\")","v":""},null,30,null,null,"Klerikal",null,null,null,null,null,null,null,null,null,null,null,null,null,null,null,null,null,null,null,null,null,null,null,null,null,null,null,null,null,null,null,null,null,null,null,null,null,null,{"$f":"IF(OR(BF39='Einführung & Hilfe'!$B$65,BF39='Einführung & Hilfe'!$C$65,BF39='Einführung & Hilfe'!$D$65,BF39='Einführung & Hilfe'!$E$65),0,BF39*INDIRECT($B$56&$A$56&$A$57))","v":0},null,null,null,{"$f":"IF(OR(BJ39='Einführung & Hilfe'!$B$65,BJ39='Einführung & Hilfe'!$C$65,BJ39='Einführung & Hilfe'!$D$65,BJ39='Einführung & Hilfe'!$E$65),0,BJ39*INDIRECT($B$56&$A$56&$A$57))","v":0},null,null,null,{"$f":"IF(OR(BN39='Einführung & Hilfe'!$B$65,BN39='Einführung & Hilfe'!$C$65,BN39='Einführung & Hilfe'!$D$65,BN39='Einführung & Hilfe'!$E$65),0,BN39*INDIRECT($B$56&$A$56&$A$57))","v":0},null,null,null,{"$f":"IF(OR(BR39='Einführung & Hilfe'!$B$65,BR39='Einführung & Hilfe'!$C$65,BR39='Einführung & Hilfe'!$D$65,BR39='Einführung & Hilfe'!$E$65),0,BR39*INDIRECT($B$56&$A$56&$A$57))","v":0}]
["Kräuterkunde",null,null,{"$f":"INDIRECT(B56&A56&65)","v":"EXP"},null,null,null,null,null,null,null,null,null,"Berserker IV",{"$f":"IF(D25=E25,\"(Seelenschutz)\",\"\")","v":""},null,50,null,null,"Waffe segnen",null,null,{"$f":"IF($L$21=$M$21,0,IF(AND($L$20=$M$20,W93<=50),0,IF(AND($L$19=$M$19,W93<=20),0,IF(AND($L$11=$M$11,V40=$V$53,W93<=20),0,IF(AND($L$10=$M$10,V40=$V$53,W93<=5),0,IF(W93=\"X\",\"X\",IF(V40=$V$54,$P$57*W93,IF(V40=$V$55,$P$58*W93,W93))))))))","v":20},null,null,null,null,null,null,null,null,null,null,null,null,null,null,null,null,null,null,null,null,null,null,null,null,null,null,null,null,null,null,null,null,null,null,null,{"$f":"IF(OR(BF40='Einführung & Hilfe'!$B$65,BF40='Einführung & Hilfe'!$C$65,BF40='Einführung & Hilfe'!$D$65,BF40='Einführung & Hilfe'!$E$65),0,BF40*INDIRECT($B$56&$A$56&$A$57))","v":0},null,null,null,{"$f":"IF(OR(BJ40='Einführung & Hilfe'!$B$65,BJ40='Einführung & Hilfe'!$C$65,BJ40='Einführung & Hilfe'!$D$65,BJ40='Einführung & Hilfe'!$E$65),0,BJ40*INDIRECT($B$56&$A$56&$A$57))","v":0},null,null,null,{"$f":"IF(OR(BN40='Einführung & Hilfe'!$B$65,BN40='Einführung & Hilfe'!$C$65,BN40='Einführung & Hilfe'!$D$65,BN40='Einführung & Hilfe'!$E$65),0,BN40*INDIRECT($B$56&$A$56&$A$57))","v":0},null,null,null,{"$f":"IF(OR(BR40='Einführung & Hilfe'!$B$65,BR40='Einführung & Hilfe'!$C$65,BR40='Einführung & Hilfe'!$D$65,BR40='Einführung & Hilfe'!$E$65),0,BR40*INDIRECT($B$56&$A$56&$A$57))","v":0}]
["Magischer Gegenstand",null,null,{"$f":"INDIRECT(B56&A56&66)","v":"EXP"},null,null,null,null,null,null,null,null,null,"Feueraugen",{"$f":"IF(D25=E25,\"(Seelenschutz)\",\"\")","v":""},null,10,null,null,"Waffe weihen",null,null,{"$f":"IF(INDIRECT($B$56&$A$56&189)=\"X\",\"X\",IF(V41=$V$54,INDIRECT($B$56&$A$56&96)*INDIRECT($B$56&$A$56&189),IF(AND(V41=$V$55,INDIRECT($B$56&$A$56&189)<=INDIRECT($B$56&$A$56&99)),INDIRECT($B$56&$A$56&98)*INDIRECT($B$56&$A$56&189),INDIRECT($B$56&$A$56&189))))","v":60},null,null,null,null,null,null,null,null,null,null,null,null,null,null,null,null,{"$f":"CONCATENATE(\"Rüstungswertigkeit \",F5,\" \",B5)","v":"Rüstungswertigkeit  "},null,null,null,null,null,null,null,null,null,null,null,null,null,null,null,null,null,null,{"$f":"IF(OR(BF41='Einführung & Hilfe'!$B$65,BF41='Einführung & Hilfe'!$C$65,BF41='Einführung & Hilfe'!$D$65,BF41='Einführung & Hilfe'!$E$65),0,BF41*INDIRECT($B$56&$A$56&$A$57))","v":0},null,null,null,{"$f":"IF(OR(BJ41='Einführung & Hilfe'!$B$65,BJ41='Einführung & Hilfe'!$C$65,BJ41='Einführung & Hilfe'!$D$65,BJ41='Einführung & Hilfe'!$E$65),0,BJ41*INDIRECT($B$56&$A$56&$A$57))","v":0},null,null,null,{"$f":"IF(OR(BN41='Einführung & Hilfe'!$B$65,BN41='Einführung & Hilfe'!$C$65,BN41='Einführung & Hilfe'!$D$65,BN41='Einführung & Hilfe'!$E$65),0,BN41*INDIRECT($B$56&$A$56&$A$57))","v":0},null,null,null,{"$f":"IF(OR(BR41='Einführung & Hilfe'!$B$65,BR41='Einführung & Hilfe'!$C$65,BR41='Einführung & Hilfe'!$D$65,BR41='Einführung & Hilfe'!$E$65),0,BR41*INDIRECT($B$56&$A$56&$A$57))","v":0}]
["Meucheln",null,{"$f":"IF(INDIRECT(B56&A56&68)=\"X\",\"\",1)","v":1},{"$f":"IF(INDIRECT(B56&A56&67)=\"X\",INDIRECT(B56&A56&68),INDIRECT(B56&A56&67))","v":20},null,null,null,null,null,null,null,null,null,{"$f":"IF('OT und Infos'!D11=INDIRECT(B56&A56&11),\"Fluch I\",\"Fluch\")","v":"Fluch"},{"$f":"IF(D25=E25,\"(Seelenschutz)\",\"\")","v":""},null,20,null,null,"Summe Klerikal:",null,null,null,{"$f":"SUM(SUMIF(W40:W41,\">0\",X40:X41),SUMIF(W40:W41,\"EXP\",X40:X41))","v":0},null,null,null,null,null,null,null,null,null,null,null,null,null,null,null,"Zone","Hauptrüstung",null,null,"Unter- / Nebenrüstung",null,null,"Gesamt",null,null,null,null,null,null,null,null,null,null,null,{"$f":"IF(OR(BF42='Einführung & Hilfe'!$B$65,BF42='Einführung & Hilfe'!$C$65,BF42='Einführung & Hilfe'!$D$65,BF42='Einführung & Hilfe'!$E$65),0,BF42*INDIRECT($B$56&$A$56&$A$57))","v":0},null,null,null,{"$f":"IF(OR(BJ42='Einführung & Hilfe'!$B$65,BJ42='Einführung & Hilfe'!$C$65,BJ42='Einführung & Hilfe'!$D$65,BJ42='Einführung & Hilfe'!$E$65),0,BJ42*INDIRECT($B$56&$A$56&$A$57))","v":0},null,null,null,{"$f":"IF(OR(BN42='Einführung & Hilfe'!$B$65,BN42='Einführung & Hilfe'!$C$65,BN42='Einführung & Hilfe'!$D$65,BN42='Einführung & Hilfe'!$E$65),0,BN42*INDIRECT($B$56&$A$56&$A$57))","v":0},null,null,null,{"$f":"IF(OR(BR42='Einführung & Hilfe'!$B$65,BR42='Einführung & Hilfe'!$C$65,BR42='Einführung & Hilfe'!$D$65,BR42='Einführung & Hilfe'!$E$65),0,BR42*INDIRECT($B$56&$A$56&$A$57))","v":0}]
[null,null,2,{"$f":"INDIRECT(B56&A56&69)","v":30},null,null,null,null,null,null,null,null,null,"Freundschaft",{"$f":"IF(D25=E25,\"(Seelenschutz)\",\"\")","v":""},null,20,null,null,null,null,null,null,null,null,null,null,null,null,null,null,null,null,null,null,null,null,null,null,null,"Typ","Abdeckung","Punkte","Typ","Abdeckung","Punkte",null,null,null,null,null,null,null,null,null,null,null,null,{"$f":"IF(OR(BF43='Einführung & Hilfe'!$B$65,BF43='Einführung & Hilfe'!$C$65,BF43='Einführung & Hilfe'!$D$65,BF43='Einführung & Hilfe'!$E$65),0,BF43*INDIRECT($B$56&$A$56&$A$57))","v":0},null,null,null,{"$f":"IF(OR(BJ43='Einführung & Hilfe'!$B$65,BJ43='Einführung & Hilfe'!$C$65,BJ43='Einführung & Hilfe'!$D$65,BJ43='Einführung & Hilfe'!$E$65),0,BJ43*INDIRECT($B$56&$A$56&$A$57))","v":0},null,null,null,{"$f":"IF(OR(BN43='Einführung & Hilfe'!$B$65,BN43='Einführung & Hilfe'!$C$65,BN43='Einführung & Hilfe'!$D$65,BN43='Einführung & Hilfe'!$E$65),0,BN43*INDIRECT($B$56&$A$56&$A$57))","v":0},null,null,null,{"$f":"IF(OR(BR43='Einführung & Hilfe'!$B$65,BR43='Einführung & Hilfe'!$C$65,BR43='Einführung & Hilfe'!$D$65,BR43='Einführung & Hilfe'!$E$65),0,BR43*INDIRECT($B$56&$A$56&$A$57))","v":0}]
[null,null,3,{"$f":"INDIRECT(B56&A56&70)","v":50},null,null,null,null,null,null,null,null,null,"Götterbann",null,null,250,null,null,null,null,null,null,null,null,null,null,null,null,null,null,null,null,null,null,null,null,null,null,"Kopf","Ungerüstet","Voll",{"$f":"IF(AO44='OT und Infos'!A280,'OT und Infos'!E280*IF(AP44='OT und Infos'!A296,1,IF(AP44='OT und Infos'!A297,0.75,IF(AP44='OT und Infos'!A298,0.5,IF(AP44='OT und Infos'!A299,0.25)))),IF(AO44='OT und Infos'!A281,'OT und Infos'!E281*IF(AP44='OT und Infos'!A296,1,IF(AP44='OT und Infos'!A297,0.75,IF(AP44='OT und Infos'!A298,0.5,IF(AP44='OT und Infos'!A299,0.25)))),IF(AO44='OT und Infos'!A282,'OT und Infos'!E282*IF(AP44='OT und Infos'!A296,1,IF(AP44='OT und Infos'!A297,0.75,IF(AP44='OT und Infos'!A298,0.5,IF(AP44='OT und Infos'!A299,0.25)))),IF(AO44='OT und Infos'!A283,'OT und Infos'!E283*IF(AP44='OT und Infos'!A296,1,IF(AP44='OT und Infos'!A297,0.75,IF(AP44='OT und Infos'!A298,0.5,IF(AP44='OT und Infos'!A299,0.25)))),IF(AO44='OT und Infos'!A284,'OT und Infos'!E284*IF(OR(AP44='OT und Infos'!A296,AP44='OT und Infos'!A297),1,IF(OR(AP44='OT und Infos'!A298,AP44='OT und Infos'!A299),0.5)),IF(AO44='OT und Infos'!A285,'OT und Infos'!E285))))))","v":0},"Ungerüstet","Voll",{"$f":"IF(AR44='OT und Infos'!A280,'OT und Infos'!E280*'OT und Infos'!G280*IF(AS44='OT und Infos'!A296,1,IF(AS44='OT und Infos'!A297,0.75,IF(AS44='OT und Infos'!A298,0.5,IF(AS44='OT und Infos'!A299,0.25)))),IF(AR44='OT und Infos'!A281,'OT und Infos'!E281*'OT und Infos'!G281*IF(AS44='OT und Infos'!A296,1,IF(AS44='OT und Infos'!A297,0.75,IF(AS44='OT und Infos'!A298,0.5,IF(AS44='OT und Infos'!A299,0.25)))),IF(AR44='OT und Infos'!A282,'OT und Infos'!E282*'OT und Infos'!G282*IF(AS44='OT und Infos'!A296,1,IF(AS44='OT und Infos'!A297,0.75,IF(AS44='OT und Infos'!A298,0.5,IF(AS44='OT und Infos'!A299,0.25)))),IF(AR44='OT und Infos'!A283,'OT und Infos'!G283*IF(AS44='OT und Infos'!A296,1,IF(AS44='OT und Infos'!A297,0.75,IF(AS44='OT und Infos'!A298,0.5,IF(AS44='OT und Infos'!A299,0.25)))),IF(AR44='OT und Infos'!A284,'OT und Infos'!G284*IF(OR(AS44='OT und Infos'!A296,AS44='OT und Infos'!A297),1,IF(OR(AS44='OT und Infos'!A298,AS44='OT und Infos'!A299),0.5)),IF(AR44='OT und Infos'!A285,'OT und Infos'!E285))))))","v":0},{"$f":"IF(AND(OR(AO45='OT und Infos'!A286,AO46='OT und Infos'!A286,AO49='OT und Infos'!A286,AO52='OT und Infos'!A286,AO53='OT und Infos'!A286),NOT(OR(AO45='OT und Infos'!A280,AO45='OT und Infos'!A281,AO45='OT und Infos'!A282,AO45='OT und Infos'!A283,AO45='OT und Infos'!A284,AO46='OT und Infos'!A280,AO46='OT und Infos'!A281,AO46='OT und Infos'!A282,AO46='OT und Infos'!A283,AO46='OT und Infos'!A284,AO49='OT und Infos'!A280,AO49='OT und Infos'!A281,AO49='OT und Infos'!A282,AO49='OT und Infos'!A283,AO49='OT und Infos'!A284,AO52='OT und Infos'!A280,AO52='OT und Infos'!A281,AO52='OT und Infos'!A282,AO52='OT und Infos'!A283,AO52='OT und Infos'!A284,AO53='OT und Infos'!A280,AO53='OT und Infos'!A281,AO53='OT und Infos'!A282,AO53='OT und Infos'!A283,AO53='OT und Infos'!A284))),0,IF(NOT(AO44=A41),SUM(AQ44,AT44),0))","v":0},null,null,null,null,null,null,null,null,null,null,null,{"$f":"IF(OR(BF44='Einführung & Hilfe'!$B$65,BF44='Einführung & Hilfe'!$C$65,BF44='Einführung & Hilfe'!$D$65,BF44='Einführung & Hilfe'!$E$65),0,BF44*INDIRECT($B$56&$A$56&$A$57))","v":0},null,null,null,{"$f":"IF(OR(BJ44='Einführung & Hilfe'!$B$65,BJ44='Einführung & Hilfe'!$C$65,BJ44='Einführung & Hilfe'!$D$65,BJ44='Einführung & Hilfe'!$E$65),0,BJ44*INDIRECT($B$56&$A$56&$A$57))","v":0},null,null,null,{"$f":"IF(OR(BN44='Einführung & Hilfe'!$B$65,BN44='Einführung & Hilfe'!$C$65,BN44='Einführung & Hilfe'!$D$65,BN44='Einführung & Hilfe'!$E$65),0,BN44*INDIRECT($B$56&$A$56&$A$57))","v":0},null,null,null,{"$f":"IF(OR(BR44='Einführung & Hilfe'!$B$65,BR44='Einführung & Hilfe'!$C$65,BR44='Einführung & Hilfe'!$D$65,BR44='Einführung & Hilfe'!$E$65),0,BR44*INDIRECT($B$56&$A$56&$A$57))","v":0}]
[null,null,4,{"$f":"INDIRECT(B56&A56&71)","v":50},null,null,null,null,null,null,null,null,null,{"$f":"IF('OT und Infos'!D11=INDIRECT(B56&A56&11),\"Fluch II\",\"Götterfluch\")","v":"Götterfluch"},null,null,100,null,null,null,null,null,null,null,null,null,null,null,null,null,null,null,null,null,null,null,null,null,null,"Torso","Ungerüstet","Voll",{"$f":"IF(AO45='OT und Infos'!A280,'OT und Infos'!E280*IF(AP45='OT und Infos'!A296,1,IF(AP45='OT und Infos'!A297,0.75,IF(AP45='OT und Infos'!A298,0.5,IF(AP45='OT und Infos'!A299,0.25)))),IF(AO45='OT und Infos'!A281,'OT und Infos'!E281*IF(AP45='OT und Infos'!A296,1,IF(AP45='OT und Infos'!A297,0.75,IF(AP45='OT und Infos'!A298,0.5,IF(AP45='OT und Infos'!A299,0.25)))),IF(AO45='OT und Infos'!A282,'OT und Infos'!E282*IF(AP45='OT und Infos'!A296,1,IF(AP45='OT und Infos'!A297,0.75,IF(AP45='OT und Infos'!A298,0.5,IF(AP45='OT und Infos'!A299,0.25)))),IF(AO45='OT und Infos'!A283,'OT und Infos'!E283*IF(AP45='OT und Infos'!A296,1,IF(AP45='OT und Infos'!A297,0.75,IF(AP45='OT und Infos'!A298,0.5,IF(AP45='OT und Infos'!A299,0.25)))),IF(AO45='OT und Infos'!A284,'OT und Infos'!E284*IF(OR(AP45='OT und Infos'!A296,AP45='OT und Infos'!A297),1,IF(OR(AP45='OT und Infos'!A298,AP45='OT und Infos'!A299),0.5)),IF(OR(AO45='OT und Infos'!A285,AO45='OT und Infos'!A286),'OT und Infos'!E285))))))","v":0},"Ungerüstet","Voll",{"$f":"IF(AR45='OT und Infos'!A280,'OT und Infos'!E280*'OT und Infos'!G280*IF(AS45='OT und Infos'!A296,1,IF(AS45='OT und Infos'!A297,0.75,IF(AS45='OT und Infos'!A298,0.5,IF(AS45='OT und Infos'!A299,0.25)))),IF(AR45='OT und Infos'!A281,'OT und Infos'!E281*IF(AS45='OT und Infos'!A296,1,IF(AS45='OT und Infos'!A297,0.75,IF(AS45='OT und Infos'!A298,0.5,IF(AS45='OT und Infos'!A299,0.25)))),IF(AR45='OT und Infos'!A282,'OT und Infos'!E282*IF(AS45='OT und Infos'!A296,1,IF(AS45='OT und Infos'!A297,0.75,IF(AS45='OT und Infos'!A298,0.5,IF(AS45='OT und Infos'!A299,0.25)))),IF(AR45='OT und Infos'!A283,'OT und Infos'!H283*IF(AS45='OT und Infos'!A296,1,IF(AS45='OT und Infos'!A297,0.75,IF(AS45='OT und Infos'!A298,0.5,IF(AS45='OT und Infos'!A299,0.25)))),IF(AR45='OT und Infos'!A284,'OT und Infos'!H284*IF(OR(AS45='OT und Infos'!A296,AS45='OT und Infos'!A297),1,IF(OR(AS45='OT und Infos'!A298,AS45='OT und Infos'!A299),0.5)),IF(AR45='OT und Infos'!A285,'OT und Infos'!E285))))))","v":0},{"$f":"IF(AND(AO45='OT und Infos'!A286,OR(AO46='OT und Infos'!A285,AO46='OT und Infos'!A286),OR(AO49='OT und Infos'!A285,AO49='OT und Infos'!A286),OR(AO52='OT und Infos'!A285,AO52='OT und Infos'!A286),OR(AO53='OT und Infos'!A285,AO53='OT und Infos'!A286)),'OT und Infos'!E286,IF(OR(AO45='OT und Infos'!A285,AO45='OT und Infos'!A286),0,SUM(AQ45,AT45)))","v":0},null,null,null,null,null,null,null,null,null,null,null,{"$f":"IF(OR(BF45='Einführung & Hilfe'!$B$65,BF45='Einführung & Hilfe'!$C$65,BF45='Einführung & Hilfe'!$D$65,BF45='Einführung & Hilfe'!$E$65),0,BF45*INDIRECT($B$56&$A$56&$A$57))","v":0},null,null,null,{"$f":"IF(OR(BJ45='Einführung & Hilfe'!$B$65,BJ45='Einführung & Hilfe'!$C$65,BJ45='Einführung & Hilfe'!$D$65,BJ45='Einführung & Hilfe'!$E$65),0,BJ45*INDIRECT($B$56&$A$56&$A$57))","v":0},null,null,null,{"$f":"IF(OR(BN45='Einführung & Hilfe'!$B$65,BN45='Einführung & Hilfe'!$C$65,BN45='Einführung & Hilfe'!$D$65,BN45='Einführung & Hilfe'!$E$65),0,BN45*INDIRECT($B$56&$A$56&$A$57))","v":0},null,null,null,{"$f":"IF(OR(BR45='Einführung & Hilfe'!$B$65,BR45='Einführung & Hilfe'!$C$65,BR45='Einführung & Hilfe'!$D$65,BR45='Einführung & Hilfe'!$E$65),0,BR45*INDIRECT($B$56&$A$56&$A$57))","v":0}]
[null,null,5,{"$f":"INDIRECT(B56&A56&72)","v":70},null,null,null,null,null,null,null,null,null,"Mag. Schutz I",{"$f":"IF(D25=E25,\"(Seelenschutz)\",\"\")","v":""},null,30,null,null,{"$f":"IF(SUM(SUMIFS(M22:M46,K22:K46,\"A\",M22:M46,\">\"&(INDIRECT($B$56&$A$56&98)*INDIRECT($B$56&$A$56&99))),SUMIFS(R4:R32,P4:P32,\"A\",R4:R32,\">\"&(INDIRECT($B$56&$A$56&98)*INDIRECT($B$56&$A$56&99))),SUMIFS(R36:R53,P36:P53,\"A\",R36:R53,\">\"&(INDIRECT($B$56&$A$56&98)*INDIRECT($B$56&$A$56&99))),SUMIFS(X4:X15,V4:V15,\"A\",X4:X15,\">\"&(INDIRECT($B$56&$A$56&98)*INDIRECT($B$56&$A$56&99))),SUMIFS(X19:X36,V19:V36,\"A\",X19:X36,\">\"&(INDIRECT($B$56&$A$56&98)*INDIRECT($B$56&$A$56&99))),SUMIFS(X40:X41,V40:V41,\"A\",X40:X41,\">\"&(INDIRECT($B$56&$A$56&98)*INDIRECT($B$56&$A$56&99))),SUMIFS(AC4:AC37,AA4:AA37,\"A\",AC4:AC37,\">\"&(INDIRECT($B$56&$A$56&98)*INDIRECT($B$56&$A$56&99))),SUMIFS(AI4:AI35,AG4:AG35,\"A\",AI4:AI35,\">\"&(INDIRECT($B$56&$A$56&98)*INDIRECT($B$56&$A$56&99))))>1,\"Zu starke angeborene Fähigkeit(en)\",\"\")","v":""},null,null,null,null,null,null,null,null,null,null,{"$f":"T46","v":""},null,null,null,null,null,null,null,null,"Arm Rechts","Ungerüstet","Ein / Viertel",{"$f":"IF(AO46='OT und Infos'!A280,'OT und Infos'!E280*IF(AP46='OT und Infos'!A296,1,IF(AP46='OT und Infos'!A297,0.75,IF(AP46='OT und Infos'!A298,0.5,IF(AP46='OT und Infos'!A299,0.25)))),IF(AO46='OT und Infos'!A281,'OT und Infos'!E281*IF(AP46='OT und Infos'!A296,1,IF(AP46='OT und Infos'!A297,0.75,IF(AP46='OT und Infos'!A298,0.5,IF(AP46='OT und Infos'!A299,0.25)))),IF(AO46='OT und Infos'!A282,'OT und Infos'!E282*IF(AP46='OT und Infos'!A296,1,IF(AP46='OT und Infos'!A297,0.75,IF(AP46='OT und Infos'!A298,0.5,IF(AP46='OT und Infos'!A299,0.25)))),IF(AO46='OT und Infos'!A283,'OT und Infos'!E283*IF(AP46='OT und Infos'!A296,1,IF(AP46='OT und Infos'!A297,0.75,IF(AP46='OT und Infos'!A298,0.5,IF(AP46='OT und Infos'!A299,0.25)))),IF(AO46='OT und Infos'!A284,'OT und Infos'!E284*IF(OR(AP46='OT und Infos'!A296,AP46='OT und Infos'!A297),1,IF(OR(AP46='OT und Infos'!A298,AP46='OT und Infos'!A299),0.5)),IF(OR(AO46='OT und Infos'!A285,AO46='OT und Infos'!A286),'OT und Infos'!E285))))))","v":0},"Ungerüstet","Voll",{"$f":"IF(AR46='OT und Infos'!A280,'OT und Infos'!E280*'OT und Infos'!G280*IF(AS46='OT und Infos'!A296,1,IF(AS46='OT und Infos'!A297,0.75,IF(AS46='OT und Infos'!A298,0.5,IF(AS46='OT und Infos'!A299,0.25)))),IF(AR46='OT und Infos'!A281,'OT und Infos'!E281*'OT und Infos'!G281*IF(AS46='OT und Infos'!A296,1,IF(AS46='OT und Infos'!A297,0.75,IF(AS46='OT und Infos'!A298,0.5,IF(AS46='OT und Infos'!A299,0.25)))),IF(AR46='OT und Infos'!A282,'OT und Infos'!E282*'OT und Infos'!G282*IF(AS46='OT und Infos'!A296,1,IF(AS46='OT und Infos'!A297,0.75,IF(AS46='OT und Infos'!A298,0.5,IF(AS46='OT und Infos'!A299,0.25)))),IF(AR46='OT und Infos'!A283,'OT und Infos'!G283*IF(AS46='OT und Infos'!A296,1,IF(AS46='OT und Infos'!A297,0.75,IF(AS46='OT und Infos'!A298,0.5,IF(AS46='OT und Infos'!A299,0.25)))),IF(AR46='OT und Infos'!A284,'OT und Infos'!G284*IF(OR(AS46='OT und Infos'!A296,AS46='OT und Infos'!A297),1,IF(OR(AS46='OT und Infos'!A298,AS46='OT und Infos'!A299),0.5)),IF(AR46='OT und Infos'!A285,'OT und Infos'!E285))))))","v":0},{"$f":"IF(AND(AO46='OT und Infos'!A286,OR(AO45='OT und Infos'!A285,AO45='OT und Infos'!A286),OR(AO49='OT und Infos'!A285,AO49='OT und Infos'!A286),OR(AO52='OT und Infos'!A285,AO52='OT und Infos'!A286),OR(AO53='OT und Infos'!A285,AO53='OT und Infos'!A286)),'OT und Infos'!E286,IF(OR(AO46='OT und Infos'!A285,AO46='OT und Infos'!A286),0,SUM(AQ46,AT46)))","v":0},null,null,null,null,null,null,null,null,null,null,null,{"$f":"IF(OR(BF46='Einführung & Hilfe'!$B$65,BF46='Einführung & Hilfe'!$C$65,BF46='Einführung & Hilfe'!$D$65,BF46='Einführung & Hilfe'!$E$65),0,BF46*INDIRECT($B$56&$A$56&$A$57))","v":0},null,null,null,{"$f":"IF(OR(BJ46='Einführung & Hilfe'!$B$65,BJ46='Einführung & Hilfe'!$C$65,BJ46='Einführung & Hilfe'!$D$65,BJ46='Einführung & Hilfe'!$E$65),0,BJ46*INDIRECT($B$56&$A$56&$A$57))","v":0},null,null,null,{"$f":"IF(OR(BN46='Einführung & Hilfe'!$B$65,BN46='Einführung & Hilfe'!$C$65,BN46='Einführung & Hilfe'!$D$65,BN46='Einführung & Hilfe'!$E$65),0,BN46*INDIRECT($B$56&$A$56&$A$57))","v":0},null,null,null,{"$f":"IF(OR(BR46='Einführung & Hilfe'!$B$65,BR46='Einführung & Hilfe'!$C$65,BR46='Einführung & Hilfe'!$D$65,BR46='Einführung & Hilfe'!$E$65),0,BR46*INDIRECT($B$56&$A$56&$A$57))","v":0}]
[null,null,6,{"$f":"INDIRECT(B56&A56&73)","v":80},null,null,"Summe Besondere:",null,null,null,null,null,{"$f":"SUM(SUMIF(L19:L46,\">0\",M19:M46),SUMIF(L19:L46,\"EXP\",M19:M46))","v":0},"Mag. Schutz II",{"$f":"IF(D25=E25,\"(Seelenschutz)\",\"\")","v":""},null,"X",null,null,{"$f":"IF(SUM(SUMIFS(M22:M46,K22:K46,\"A\",M22:M46,\">\"&(INDIRECT($B$56&$A$56&98)*INDIRECT($B$56&$A$56&99))),SUMIFS(R4:R32,P4:P32,\"A\",R4:R32,\">\"&(INDIRECT($B$56&$A$56&98)*INDIRECT($B$56&$A$56&99))),SUMIFS(R36:R53,P36:P53,\"A\",R36:R53,\">\"&(INDIRECT($B$56&$A$56&98)*INDIRECT($B$56&$A$56&99))),SUMIFS(X4:X15,V4:V15,\"A\",X4:X15,\">\"&(INDIRECT($B$56&$A$56&98)*INDIRECT($B$56&$A$56&99))),SUMIFS(X19:X36,V19:V36,\"A\",X19:X36,\">\"&(INDIRECT($B$56&$A$56&98)*INDIRECT($B$56&$A$56&99))),SUMIFS(X40:X41,V40:V41,\"A\",X40:X41,\">\"&(INDIRECT($B$56&$A$56&98)*INDIRECT($B$56&$A$56&99))),SUMIFS(AC4:AC37,AA4:AA37,\"A\",AC4:AC37,\">\"&(INDIRECT($B$56&$A$56&98)*INDIRECT($B$56&$A$56&99))),SUMIFS(AI4:AI35,AG4:AG35,\"A\",AI4:AI35,\">\"&(INDIRECT($B$56&$A$56&98)*INDIRECT($B$56&$A$56&99))))>1,\"für das gewählte Regelwerk!\",\"\")","v":""},null,null,null,null,null,null,null,null,null,null,{"$f":"T47","v":""},null,null,null,null,null,null,null,null,"- Teilzone","Ungerüstet","Ein / Viertel",{"$f":"IF(AO47='OT und Infos'!A280,'OT und Infos'!E280*IF(AP47='OT und Infos'!A297,0.75,IF(AP47='OT und Infos'!A298,0.5,IF(AP47='OT und Infos'!A299,0.25))),IF(AO47='OT und Infos'!A281,'OT und Infos'!E281*IF(AP47='OT und Infos'!A297,0.75,IF(AP47='OT und Infos'!A298,0.5,IF(AP47='OT und Infos'!A299,0.25))),IF(AO47='OT und Infos'!A282,'OT und Infos'!E282*IF(AP47='OT und Infos'!A297,0.75,IF(AP47='OT und Infos'!A298,0.5,IF(AP47='OT und Infos'!A299,0.25))),IF(AO47='OT und Infos'!A283,IF(AP47='OT und Infos'!A297,0.75,IF(AP47='OT und Infos'!A298,0.5,IF(AP47='OT und Infos'!A299,0.25))),IF(AO47='OT und Infos'!A284,IF(AP47='OT und Infos'!A297,0.5,IF(OR(AP47='OT und Infos'!A298,AP47='OT und Infos'!A299),0.25)),IF(AO47='OT und Infos'!A285,'OT und Infos'!E285))))))","v":0},null,null,null,{"$f":"IF(NOT(OR(AO47='OT und Infos'!A285,AO46='OT und Infos'!A285,AP46='OT und Infos'!A296)),AQ47,0)","v":0},null,null,null,null,null,null,null,null,null,null,null,{"$f":"IF(OR(BF47='Einführung & Hilfe'!$B$65,BF47='Einführung & Hilfe'!$C$65,BF47='Einführung & Hilfe'!$D$65,BF47='Einführung & Hilfe'!$E$65),0,BF47*INDIRECT($B$56&$A$56&$A$57))","v":0},null,null,null,{"$f":"IF(OR(BJ47='Einführung & Hilfe'!$B$65,BJ47='Einführung & Hilfe'!$C$65,BJ47='Einführung & Hilfe'!$D$65,BJ47='Einführung & Hilfe'!$E$65),0,BJ47*INDIRECT($B$56&$A$56&$A$57))","v":0},null,null,null,{"$f":"IF(OR(BN47='Einführung & Hilfe'!$B$65,BN47='Einführung & Hilfe'!$C$65,BN47='Einführung & Hilfe'!$D$65,BN47='Einführung & Hilfe'!$E$65),0,BN47*INDIRECT($B$56&$A$56&$A$57))","v":0},null,null,null,{"$f":"IF(OR(BR47='Einführung & Hilfe'!$B$65,BR47='Einführung & Hilfe'!$C$65,BR47='Einführung & Hilfe'!$D$65,BR47='Einführung & Hilfe'!$E$65),0,BR47*INDIRECT($B$56&$A$56&$A$57))","v":0}]
[null,null,7,{"$f":"INDIRECT(B56&A56&74)","v":100},null,null,null,null,null,null,null,null,null,"Mag. Segen",{"$f":"IF(D25=E25,\"(Seelenschutz)\",\"\")","v":""},null,20,null,null,{"$f":"IF(AND(INDIRECT($B$56&$A$56&100)=\"Ja\",SUM(SUMIF(K22:K46,\"A\",M22:M46),SUMIF(P4:P32,\"A\",R4:R32),SUMIF(P36:P53,\"A\",R36:R53),SUMIF(V4:V15,\"A\",X4:X15),SUMIF(V19:V36,\"A\",X19:X36),SUMIF(V40:V41,\"A\",X40:X41),SUMIF(AA4:AA37,\"A\",AC4:AC37),SUMIF(AG4:AG35,\"A\",AI4:AI35))>INDIRECT($B$56&$A$56&$A$58)),\"Begrenzung auf Startpunkte wurde mit\",\"\")","v":""},null,null,null,null,null,null,null,null,null,null,{"$f":"T48","v":""},null,null,null,null,null,null,null,null,"- Teilzone","Ungerüstet",{"$f":"'OT und Infos'!A299","v":"Ein / Viertel"},{"$f":"IF(AO48='OT und Infos'!A280,'OT und Infos'!E280*IF(AP48='OT und Infos'!A297,0.75,IF(AP48='OT und Infos'!A298,0.5,IF(AP48='OT und Infos'!A299,0.25))),IF(AO48='OT und Infos'!A281,'OT und Infos'!E281*IF(AP48='OT und Infos'!A297,0.75,IF(AP48='OT und Infos'!A298,0.5,IF(AP48='OT und Infos'!A299,0.25))),IF(AO48='OT und Infos'!A282,'OT und Infos'!E282*IF(AP48='OT und Infos'!A297,0.75,IF(AP48='OT und Infos'!A298,0.5,IF(AP48='OT und Infos'!A299,0.25))),IF(AO48='OT und Infos'!A283,IF(AP48='OT und Infos'!A297,0.75,IF(AP48='OT und Infos'!A298,0.5,IF(AP48='OT und Infos'!A299,0.25))),IF(AO48='OT und Infos'!A284,IF(AP48='OT und Infos'!A297,0.5,IF(OR(AP48='OT und Infos'!A298,AP48='OT und Infos'!A299),0.25)),IF(AO48='OT und Infos'!A285,'OT und Infos'!E285))))))","v":0},null,null,null,{"$f":"IF(NOT(OR(AO48='OT und Infos'!A285,AO46='OT und Infos'!A285,AP46='OT und Infos'!A296,OR(AND(AP46='OT und Infos'!A297,AP47='OT und Infos'!A299),AND(AP46='OT und Infos'!A298,AP47='OT und Infos'!A298),AND(AP46='OT und Infos'!A299,AP47='OT und Infos'!A297)))),AQ48,0)","v":0},null,null,null,null,null,null,null,null,null,null,null,{"$f":"IF(OR(BF48='Einführung & Hilfe'!$B$65,BF48='Einführung & Hilfe'!$C$65,BF48='Einführung & Hilfe'!$D$65,BF48='Einführung & Hilfe'!$E$65),0,BF48*INDIRECT($B$56&$A$56&$A$57))","v":0},null,null,null,{"$f":"IF(OR(BJ48='Einführung & Hilfe'!$B$65,BJ48='Einführung & Hilfe'!$C$65,BJ48='Einführung & Hilfe'!$D$65,BJ48='Einführung & Hilfe'!$E$65),0,BJ48*INDIRECT($B$56&$A$56&$A$57))","v":0},null,null,null,{"$f":"IF(OR(BN48='Einführung & Hilfe'!$B$65,BN48='Einführung & Hilfe'!$C$65,BN48='Einführung & Hilfe'!$D$65,BN48='Einführung & Hilfe'!$E$65),0,BN48*INDIRECT($B$56&$A$56&$A$57))","v":0},null,null,null,{"$f":"IF(OR(BR48='Einführung & Hilfe'!$B$65,BR48='Einführung & Hilfe'!$C$65,BR48='Einführung & Hilfe'!$D$65,BR48='Einführung & Hilfe'!$E$65),0,BR48*INDIRECT($B$56&$A$56&$A$57))","v":0}]
[null,null,8,{"$f":"INDIRECT(B56&A56&75)","v":200},null,null,"V. Summe der verbrauchten Exp",null,null,null,null,null,null,"Schweigen",{"$f":"IF(D25=E25,\"(Seelenschutz)\",\"\")","v":""},null,20,null,null,{"$f":"IF(AND(INDIRECT($B$56&$A$56&100)=\"Ja\",SUM(SUMIF(K22:K46,\"A\",M22:M46),SUMIF(P4:P32,\"A\",R4:R32),SUMIF(P36:P53,\"A\",R36:R53),SUMIF(V4:V15,\"A\",X4:X15),SUMIF(V19:V36,\"A\",X19:X36),SUMIF(V40:V41,\"A\",X40:X41),SUMIF(AA4:AA37,\"A\",AC4:AC37),SUMIF(AG4:AG35,\"A\",AI4:AI35))>INDIRECT($B$56&$A$56&$A$58)),\"angeborenen Fähigkeiten überschritten!\",\"\")","v":""},null,null,null,null,null,null,null,null,null,null,{"$f":"T49","v":""},null,null,null,null,null,null,null,null,"Arm Links","Ungerüstet","Ein / Viertel",{"$f":"IF(AO49='OT und Infos'!A280,'OT und Infos'!E280*IF(AP49='OT und Infos'!A296,1,IF(AP49='OT und Infos'!A297,0.75,IF(AP49='OT und Infos'!A298,0.5,IF(AP49='OT und Infos'!A299,0.25)))),IF(AO49='OT und Infos'!A281,'OT und Infos'!E281*IF(AP49='OT und Infos'!A296,1,IF(AP49='OT und Infos'!A297,0.75,IF(AP49='OT und Infos'!A298,0.5,IF(AP49='OT und Infos'!A299,0.25)))),IF(AO49='OT und Infos'!A282,'OT und Infos'!E282*IF(AP49='OT und Infos'!A296,1,IF(AP49='OT und Infos'!A297,0.75,IF(AP49='OT und Infos'!A298,0.5,IF(AP49='OT und Infos'!A299,0.25)))),IF(AO49='OT und Infos'!A283,'OT und Infos'!E283*IF(AP49='OT und Infos'!A296,1,IF(AP49='OT und Infos'!A297,0.75,IF(AP49='OT und Infos'!A298,0.5,IF(AP49='OT und Infos'!A299,0.25)))),IF(AO49='OT und Infos'!A284,'OT und Infos'!E284*IF(OR(AP49='OT und Infos'!A296,AP49='OT und Infos'!A297),1,IF(OR(AP49='OT und Infos'!A298,AP49='OT und Infos'!A299),0.5)),IF(OR(AO49='OT und Infos'!A285,AO49='OT und Infos'!A286),'OT und Infos'!E285))))))","v":0},"Ungerüstet","Voll",{"$f":"IF(AR49='OT und Infos'!A280,'OT und Infos'!E280*'OT und Infos'!G280*IF(AS49='OT und Infos'!A296,1,IF(AS49='OT und Infos'!A297,0.75,IF(AS49='OT und Infos'!A298,0.5,IF(AS49='OT und Infos'!A299,0.25)))),IF(AR49='OT und Infos'!A281,'OT und Infos'!E281*'OT und Infos'!G281*IF(AS49='OT und Infos'!A296,1,IF(AS49='OT und Infos'!A297,0.75,IF(AS49='OT und Infos'!A298,0.5,IF(AS49='OT und Infos'!A299,0.25)))),IF(AR49='OT und Infos'!A282,'OT und Infos'!E282*'OT und Infos'!G282*IF(AS49='OT und Infos'!A296,1,IF(AS49='OT und Infos'!A297,0.75,IF(AS49='OT und Infos'!A298,0.5,IF(AS49='OT und Infos'!A299,0.25)))),IF(AR49='OT und Infos'!A283,'OT und Infos'!G283*IF(AS49='OT und Infos'!A296,1,IF(AS49='OT und Infos'!A297,0.75,IF(AS49='OT und Infos'!A298,0.5,IF(AS49='OT und Infos'!A299,0.25)))),IF(AR49='OT und Infos'!A284,'OT und Infos'!G284*IF(OR(AS49='OT und Infos'!A296,AS49='OT und Infos'!A297),1,IF(OR(AS49='OT und Infos'!A298,AS49='OT und Infos'!A299),0.5)),IF(AR49='OT und Infos'!A285,'OT und Infos'!E285))))))","v":0},{"$f":"IF(AND(AO49='OT und Infos'!A286,OR(AO45='OT und Infos'!A285,AO45='OT und Infos'!A286),OR(AO46='OT und Infos'!A285,AO46='OT und Infos'!A286),OR(AO52='OT und Infos'!A285,AO52='OT und Infos'!A286),OR(AO53='OT und Infos'!A285,AO53='OT und Infos'!A286)),'OT und Infos'!E286,IF(OR(AO49='OT und Infos'!A285,AO49='OT und Infos'!A286),0,SUM(AQ49,AT49)))","v":0},null,null,null,null,null,null,null,null,null,null,null,{"$f":"IF(OR(BF49='Einführung & Hilfe'!$B$65,BF49='Einführung & Hilfe'!$C$65,BF49='Einführung & Hilfe'!$D$65,BF49='Einführung & Hilfe'!$E$65),0,BF49*INDIRECT($B$56&$A$56&$A$57))","v":0},null,null,null,{"$f":"IF(OR(BJ49='Einführung & Hilfe'!$B$65,BJ49='Einführung & Hilfe'!$C$65,BJ49='Einführung & Hilfe'!$D$65,BJ49='Einführung & Hilfe'!$E$65),0,BJ49*INDIRECT($B$56&$A$56&$A$57))","v":0},null,null,null,{"$f":"IF(OR(BN49='Einführung & Hilfe'!$B$65,BN49='Einführung & Hilfe'!$C$65,BN49='Einführung & Hilfe'!$D$65,BN49='Einführung & Hilfe'!$E$65),0,BN49*INDIRECT($B$56&$A$56&$A$57))","v":0},null,null,null,{"$f":"IF(OR(BR49='Einführung & Hilfe'!$B$65,BR49='Einführung & Hilfe'!$C$65,BR49='Einführung & Hilfe'!$D$65,BR49='Einführung & Hilfe'!$E$65),0,BR49*INDIRECT($B$56&$A$56&$A$57))","v":0}]
["Niederschlagen",null,null,{"$f":"INDIRECT(B56&A56&76)","v":25},null,null,"I. Kämpferfertigkeiten",null,null,null,null,null,{"$f":"E26","v":0},"Seelenspiegel",{"$f":"IF(D25=E25,\"(Seelenschutz)\",\"\")","v":""},null,30,null,null,{"$f":"IF(INDIRECT($B$56&$A$56&93)=\"X\",\"Keine Magie möglich in diesem Regelwerk!\",IF(INDIRECT($B$56&$A$56&94)=\"X\",\"Keine Fernmagie möglich in diesem Regelwerk!\",\"\"))","v":""},null,null,null,null,null,null,null,null,null,null,{"$f":"T50","v":""},null,null,null,null,null,null,null,null,"- Teilzone","Ungerüstet","Ein / Viertel",{"$f":"IF(AO50='OT und Infos'!A280,'OT und Infos'!E280*IF(AP50='OT und Infos'!A297,0.75,IF(AP50='OT und Infos'!A298,0.5,IF(AP50='OT und Infos'!A299,0.25))),IF(AO50='OT und Infos'!A281,'OT und Infos'!E281*IF(AP50='OT und Infos'!A297,0.75,IF(AP50='OT und Infos'!A298,0.5,IF(AP50='OT und Infos'!A299,0.25))),IF(AO50='OT und Infos'!A282,'OT und Infos'!E282*IF(AP50='OT und Infos'!A297,0.75,IF(AP50='OT und Infos'!A298,0.5,IF(AP50='OT und Infos'!A299,0.25))),IF(AO50='OT und Infos'!A283,IF(AP50='OT und Infos'!A297,0.75,IF(AP50='OT und Infos'!A298,0.5,IF(AP50='OT und Infos'!A299,0.25))),IF(AO50='OT und Infos'!A284,IF(AP50='OT und Infos'!A297,0.5,IF(OR(AP50='OT und Infos'!A298,AP50='OT und Infos'!A299),0.25)),IF(AO50='OT und Infos'!A285,'OT und Infos'!E285))))))","v":0},null,null,null,{"$f":"IF(NOT(OR(AO50='OT und Infos'!A285,AO49='OT und Infos'!A285,AP49='OT und Infos'!A296)),AQ50,0)","v":0},null,null,null,null,null,null,null,null,null,null,null,{"$f":"IF(OR(BF50='Einführung & Hilfe'!$B$65,BF50='Einführung & Hilfe'!$C$65,BF50='Einführung & Hilfe'!$D$65,BF50='Einführung & Hilfe'!$E$65),0,BF50*INDIRECT($B$56&$A$56&$A$57))","v":0},null,null,null,{"$f":"IF(OR(BJ50='Einführung & Hilfe'!$B$65,BJ50='Einführung & Hilfe'!$C$65,BJ50='Einführung & Hilfe'!$D$65,BJ50='Einführung & Hilfe'!$E$65),0,BJ50*INDIRECT($B$56&$A$56&$A$57))","v":0},null,null,null,{"$f":"IF(OR(BN50='Einführung & Hilfe'!$B$65,BN50='Einführung & Hilfe'!$C$65,BN50='Einführung & Hilfe'!$D$65,BN50='Einführung & Hilfe'!$E$65),0,BN50*INDIRECT($B$56&$A$56&$A$57))","v":0},null,null,null,{"$f":"IF(OR(BR50='Einführung & Hilfe'!$B$65,BR50='Einführung & Hilfe'!$C$65,BR50='Einführung & Hilfe'!$D$65,BR50='Einführung & Hilfe'!$E$65),0,BR50*INDIRECT($B$56&$A$56&$A$57))","v":0}]
["Rüstung reparieren",null,null,{"$f":"INDIRECT(B56&A56&77)","v":"EXP"},null,null,"II. Abenteurerfertigkeiten",null,null,null,null,null,{"$f":"E55","v":0},"Vergessen",{"$f":"IF(D25=E25,\"(Seelenschutz)\",\"\")","v":""},null,20,null,null,null,null,null,null,null,null,null,null,null,null,null,null,null,null,null,null,null,null,null,null,"- Teilzone","Ungerüstet",{"$f":"'OT und Infos'!A299","v":"Ein / Viertel"},{"$f":"IF(AO51='OT und Infos'!A280,'OT und Infos'!E280*IF(AP51='OT und Infos'!A297,0.75,IF(AP51='OT und Infos'!A298,0.5,IF(AP51='OT und Infos'!A299,0.25))),IF(AO51='OT und Infos'!A281,'OT und Infos'!E281*IF(AP51='OT und Infos'!A297,0.75,IF(AP51='OT und Infos'!A298,0.5,IF(AP51='OT und Infos'!A299,0.25))),IF(AO51='OT und Infos'!A282,'OT und Infos'!E282*IF(AP51='OT und Infos'!A297,0.75,IF(AP51='OT und Infos'!A298,0.5,IF(AP51='OT und Infos'!A299,0.25))),IF(AO51='OT und Infos'!A283,IF(AP51='OT und Infos'!A297,0.75,IF(AP51='OT und Infos'!A298,0.5,IF(AP51='OT und Infos'!A299,0.25))),IF(AO51='OT und Infos'!A284,IF(AP51='OT und Infos'!A297,0.5,IF(OR(AP51='OT und Infos'!A298,AP51='OT und Infos'!A299),0.25)),IF(AO51='OT und Infos'!A285,'OT und Infos'!E285))))))","v":0},null,null,null,{"$f":"IF(NOT(OR(AO51='OT und Infos'!A285,AO49='OT und Infos'!A285,AP49='OT und Infos'!A296,OR(AND(AP49='OT und Infos'!A297,AP50='OT und Infos'!A299),AND(AP49='OT und Infos'!A298,AP50='OT und Infos'!A298),AND(AP49='OT und Infos'!A299,AP50='OT und Infos'!A297)))),AQ51,0)","v":0},null,null,null,null,null,null,null,null,null,null,null,{"$f":"IF(OR(BF51='Einführung & Hilfe'!$B$65,BF51='Einführung & Hilfe'!$C$65,BF51='Einführung & Hilfe'!$D$65,BF51='Einführung & Hilfe'!$E$65),0,BF51*INDIRECT($B$56&$A$56&$A$57))","v":0},null,null,null,{"$f":"IF(OR(BJ51='Einführung & Hilfe'!$B$65,BJ51='Einführung & Hilfe'!$C$65,BJ51='Einführung & Hilfe'!$D$65,BJ51='Einführung & Hilfe'!$E$65),0,BJ51*INDIRECT($B$56&$A$56&$A$57))","v":0},null,null,null,{"$f":"IF(OR(BN51='Einführung & Hilfe'!$B$65,BN51='Einführung & Hilfe'!$C$65,BN51='Einführung & Hilfe'!$D$65,BN51='Einführung & Hilfe'!$E$65),0,BN51*INDIRECT($B$56&$A$56&$A$57))","v":0},null,null,null,{"$f":"IF(OR(BR51='Einführung & Hilfe'!$B$65,BR51='Einführung & Hilfe'!$C$65,BR51='Einführung & Hilfe'!$D$65,BR51='Einführung & Hilfe'!$E$65),0,BR51*INDIRECT($B$56&$A$56&$A$57))","v":0}]
["Schlösser",null,null,{"$f":"INDIRECT(B56&A56&78)","v":"EXP"},null,null,"III. Magierfertigkeiten",null,null,null,null,null,{"$f":"M16","v":0},"Voodoo",{"$f":"IF(D25=E25,\"(Seelenschutz)\",\"\")","v":""},null,50,null,null,"Legende der Markierung",null,null,null,null,null,null,null,null,null,null,{"$f":"T52","v":"Legende der Markierung"},null,null,null,null,null,null,null,null,"Bein Rechts","Ungerüstet","Voll",{"$f":"IF(AO52='OT und Infos'!A280,'OT und Infos'!E280*IF(AP52='OT und Infos'!A296,1,IF(AP52='OT und Infos'!A297,0.75,IF(AP52='OT und Infos'!A298,0.5,IF(AP52='OT und Infos'!A299,0.25)))),IF(AO52='OT und Infos'!A281,'OT und Infos'!E281*IF(AP52='OT und Infos'!A296,1,IF(AP52='OT und Infos'!A297,0.75,IF(AP52='OT und Infos'!A298,0.5,IF(AP52='OT und Infos'!A299,0.25)))),IF(AO52='OT und Infos'!A282,'OT und Infos'!E282*IF(AP52='OT und Infos'!A296,1,IF(AP52='OT und Infos'!A297,0.75,IF(AP52='OT und Infos'!A298,0.5,IF(AP52='OT und Infos'!A299,0.25)))),IF(AO52='OT und Infos'!A283,'OT und Infos'!E283*IF(AP52='OT und Infos'!A296,1,IF(AP52='OT und Infos'!A297,0.75,IF(AP52='OT und Infos'!A298,0.5,IF(AP52='OT und Infos'!A299,0.25)))),IF(AO52='OT und Infos'!A284,'OT und Infos'!E284*IF(OR(AP52='OT und Infos'!A296,AP52='OT und Infos'!A297),1,IF(OR(AP52='OT und Infos'!A298,AP52='OT und Infos'!A299),0.5)),IF(OR(AO52='OT und Infos'!A285,AO52='OT und Infos'!A286),'OT und Infos'!E285))))))","v":0},"Ungerüstet","Voll",{"$f":"IF(AR52='OT und Infos'!A280,'OT und Infos'!E280*'OT und Infos'!G280*IF(AS52='OT und Infos'!A296,1,IF(AS52='OT und Infos'!A297,0.75,IF(AS52='OT und Infos'!A298,0.5,IF(AS52='OT und Infos'!A299,0.25)))),IF(AR52='OT und Infos'!A281,'OT und Infos'!E281*'OT und Infos'!G281*IF(AS52='OT und Infos'!A296,1,IF(AS52='OT und Infos'!A297,0.75,IF(AS52='OT und Infos'!A298,0.5,IF(AS52='OT und Infos'!A299,0.25)))),IF(AR52='OT und Infos'!A282,'OT und Infos'!E282*'OT und Infos'!G282*IF(AS52='OT und Infos'!A296,1,IF(AS52='OT und Infos'!A297,0.75,IF(AS52='OT und Infos'!A298,0.5,IF(AS52='OT und Infos'!A299,0.25)))),IF(AR52='OT und Infos'!A283,'OT und Infos'!G283*IF(AS52='OT und Infos'!A296,1,IF(AS52='OT und Infos'!A297,0.75,IF(AS52='OT und Infos'!A298,0.5,IF(AS52='OT und Infos'!A299,0.25)))),IF(AR52='OT und Infos'!A284,'OT und Infos'!G284*IF(OR(AS52='OT und Infos'!A296,AS52='OT und Infos'!A297),1,IF(OR(AS52='OT und Infos'!A298,AS52='OT und Infos'!A299),0.5)),IF(AR52='OT und Infos'!A285,'OT und Infos'!E285))))))","v":0},{"$f":"IF(AND(AO52='OT und Infos'!A286,OR(AO45='OT und Infos'!A285,AO45='OT und Infos'!A286),OR(AO46='OT und Infos'!A285,AO46='OT und Infos'!A286),OR(AO49='OT und Infos'!A285,AO49='OT und Infos'!A286),OR(AO53='OT und Infos'!A285,AO53='OT und Infos'!A286)),'OT und Infos'!E286,IF(OR(AO52='OT und Infos'!A285,AO52='OT und Infos'!A286),0,SUM(AQ52,AT52)))","v":0},null,null,null,null,null,null,null,null,null,null,null,{"$f":"IF(OR(BF52='Einführung & Hilfe'!$B$65,BF52='Einführung & Hilfe'!$C$65,BF52='Einführung & Hilfe'!$D$65,BF52='Einführung & Hilfe'!$E$65),0,BF52*INDIRECT($B$56&$A$56&$A$57))","v":0},null,null,null,{"$f":"IF(OR(BJ52='Einführung & Hilfe'!$B$65,BJ52='Einführung & Hilfe'!$C$65,BJ52='Einführung & Hilfe'!$D$65,BJ52='Einführung & Hilfe'!$E$65),0,BJ52*INDIRECT($B$56&$A$56&$A$57))","v":0},null,null,null,{"$f":"IF(OR(BN52='Einführung & Hilfe'!$B$65,BN52='Einführung & Hilfe'!$C$65,BN52='Einführung & Hilfe'!$D$65,BN52='Einführung & Hilfe'!$E$65),0,BN52*INDIRECT($B$56&$A$56&$A$57))","v":0},null,null,null,{"$f":"IF(OR(BR52='Einführung & Hilfe'!$B$65,BR52='Einführung & Hilfe'!$C$65,BR52='Einführung & Hilfe'!$D$65,BR52='Einführung & Hilfe'!$E$65),0,BR52*INDIRECT($B$56&$A$56&$A$57))","v":0}]
[{"$f":"IF('OT und Infos'!D11=INDIRECT(B56&A56&11),\"Fachwissen Schriften\",\"Schriften\")","v":"Schriften"},null,null,{"$f":"INDIRECT(B56&A56&79)","v":"EXP"},null,null,"IV. Zauber / Immunitäten / Sonderf.",null,null,null,null,null,{"$f":"SUM(M47,R33,R54,X16,X37,X42,AC38,AI36)","v":0},"Wahrheit",{"$f":"IF(D25=E25,\"(Seelenschutz)\",\"\")","v":""},null,40,null,null,"Zauber",null,"Z",null,null,null,null,null,null,null,null,{"$f":"T53","v":"Zauber"},null,{"$f":"V53","v":"Z"},null,null,null,null,null,null,"Bein Links","Ungerüstet","Voll",{"$f":"IF(AO53='OT und Infos'!A280,'OT und Infos'!E280*IF(AP53='OT und Infos'!A296,1,IF(AP53='OT und Infos'!A297,0.75,IF(AP53='OT und Infos'!A298,0.5,IF(AP53='OT und Infos'!A299,0.25)))),IF(AO53='OT und Infos'!A281,'OT und Infos'!E281*IF(AP53='OT und Infos'!A296,1,IF(AP53='OT und Infos'!A297,0.75,IF(AP53='OT und Infos'!A298,0.5,IF(AP53='OT und Infos'!A299,0.25)))),IF(AO53='OT und Infos'!A282,'OT und Infos'!E282*IF(AP53='OT und Infos'!A296,1,IF(AP53='OT und Infos'!A297,0.75,IF(AP53='OT und Infos'!A298,0.5,IF(AP53='OT und Infos'!A299,0.25)))),IF(AO53='OT und Infos'!A283,'OT und Infos'!E283*IF(AP53='OT und Infos'!A296,1,IF(AP53='OT und Infos'!A297,0.75,IF(AP53='OT und Infos'!A298,0.5,IF(AP53='OT und Infos'!A299,0.25)))),IF(AO53='OT und Infos'!A284,'OT und Infos'!E284*IF(OR(AP53='OT und Infos'!A296,AP53='OT und Infos'!A297),1,IF(OR(AP53='OT und Infos'!A298,AP53='OT und Infos'!A299),0.5)),IF(OR(AO53='OT und Infos'!A285,AO53='OT und Infos'!A286),'OT und Infos'!E285))))))","v":0},"Ungerüstet","Voll",{"$f":"IF(AR53='OT und Infos'!A280,'OT und Infos'!E280*'OT und Infos'!G280*IF(AS53='OT und Infos'!A296,1,IF(AS53='OT und Infos'!A297,0.75,IF(AS53='OT und Infos'!A298,0.5,IF(AS53='OT und Infos'!A299,0.25)))),IF(AR53='OT und Infos'!A281,'OT und Infos'!E281*'OT und Infos'!G281*IF(AS53='OT und Infos'!A296,1,IF(AS53='OT und Infos'!A297,0.75,IF(AS53='OT und Infos'!A298,0.5,IF(AS53='OT und Infos'!A299,0.25)))),IF(AR53='OT und Infos'!A282,'OT und Infos'!E282*'OT und Infos'!G282*IF(AS53='OT und Infos'!A296,1,IF(AS53='OT und Infos'!A297,0.75,IF(AS53='OT und Infos'!A298,0.5,IF(AS53='OT und Infos'!A299,0.25)))),IF(AR53='OT und Infos'!A283,'OT und Infos'!G283*IF(AS53='OT und Infos'!A296,1,IF(AS53='OT und Infos'!A297,0.75,IF(AS53='OT und Infos'!A298,0.5,IF(AS53='OT und Infos'!A299,0.25)))),IF(AR53='OT und Infos'!A284,'OT und Infos'!G284*IF(OR(AS53='OT und Infos'!A296,AS53='OT und Infos'!A297),1,IF(OR(AS53='OT und Infos'!A298,AS53='OT und Infos'!A299),0.5)),IF(AR53='OT und Infos'!A285,'OT und Infos'!E285))))))","v":0},{"$f":"IF(AND(AO53='OT und Infos'!A286,OR(AO45='OT und Infos'!A285,AO45='OT und Infos'!A286),OR(AO46='OT und Infos'!A285,AO46='OT und Infos'!A286),OR(AO49='OT und Infos'!A285,AO49='OT und Infos'!A286),OR(AO52='OT und Infos'!A285,AO52='OT und Infos'!A286)),'OT und Infos'!E286,IF(OR(AO53='OT und Infos'!A285,AO53='OT und Infos'!A286),0,SUM(AQ53,AT53)))","v":0},null,null,null,null,null,null,null,null,null,null,null,{"$f":"IF(OR(BF53='Einführung & Hilfe'!$B$65,BF53='Einführung & Hilfe'!$C$65,BF53='Einführung & Hilfe'!$D$65,BF53='Einführung & Hilfe'!$E$65),0,BF53*INDIRECT($B$56&$A$56&$A$57))","v":0},null,null,null,{"$f":"IF(OR(BJ53='Einführung & Hilfe'!$B$65,BJ53='Einführung & Hilfe'!$C$65,BJ53='Einführung & Hilfe'!$D$65,BJ53='Einführung & Hilfe'!$E$65),0,BJ53*INDIRECT($B$56&$A$56&$A$57))","v":0},null,null,null,{"$f":"IF(OR(BN53='Einführung & Hilfe'!$B$65,BN53='Einführung & Hilfe'!$C$65,BN53='Einführung & Hilfe'!$D$65,BN53='Einführung & Hilfe'!$E$65),0,BN53*INDIRECT($B$56&$A$56&$A$57))","v":0},null,null,null,{"$f":"IF(OR(BR53='Einführung & Hilfe'!$B$65,BR53='Einführung & Hilfe'!$C$65,BR53='Einführung & Hilfe'!$D$65,BR53='Einführung & Hilfe'!$E$65),0,BR53*INDIRECT($B$56&$A$56&$A$57))","v":0}]
[{"$f":"IF('OT und Infos'!D11=INDIRECT(B56&A56&11),\"Fachwissen Spuren lesen\",\"Spuren lesen\")","v":"Spuren lesen"},null,null,{"$f":"INDIRECT(B56&A56&80)","v":"EXP"},null,null,"Summe gesamt:",null,null,null,null,null,{"$f":"SUM(M50:M53)","v":0},"Summe Beeinflussung:",null,null,null,{"$f":"SUM(SUMIF(Q36:Q53,\">0\",R36:R53),SUMIF(Q36:Q53,\"EXP\",R36:R53))","v":0},null,"Immunität",null,"I",null,null,null,null,null,null,null,null,{"$f":"T54","v":"Immunität"},null,{"$f":"V54","v":"I"},null,null,null,null,null,null,"Boni / Mali",null,null,null,null,null,null,0,null,null,null,null,null,null,null,null,null,null,null,{"$f":"IF(OR(BF54='Einführung & Hilfe'!$B$65,BF54='Einführung & Hilfe'!$C$65,BF54='Einführung & Hilfe'!$D$65,BF54='Einführung & Hilfe'!$E$65),0,BF54*INDIRECT($B$56&$A$56&$A$57))","v":0},null,null,null,{"$f":"IF(OR(BJ54='Einführung & Hilfe'!$B$65,BJ54='Einführung & Hilfe'!$C$65,BJ54='Einführung & Hilfe'!$D$65,BJ54='Einführung & Hilfe'!$E$65),0,BJ54*INDIRECT($B$56&$A$56&$A$57))","v":0},null,null,null,{"$f":"IF(OR(BN54='Einführung & Hilfe'!$B$65,BN54='Einführung & Hilfe'!$C$65,BN54='Einführung & Hilfe'!$D$65,BN54='Einführung & Hilfe'!$E$65),0,BN54*INDIRECT($B$56&$A$56&$A$57))","v":0},null,null,null,{"$f":"IF(OR(BR54='Einführung & Hilfe'!$B$65,BR54='Einführung & Hilfe'!$C$65,BR54='Einführung & Hilfe'!$D$65,BR54='Einführung & Hilfe'!$E$65),0,BR54*INDIRECT($B$56&$A$56&$A$57))","v":0}]
["Summe II:",null,null,null,{"$f":"SUM(SUMIF(D29:D54,\">0\",E29:E54),SUMIF(D29:D54,\"EXP\",E29:E54))","v":0},null,"Summe verfügbar:",null,null,null,null,null,{"$f":"SUM(M6+M7-M54)","v":50},null,null,null,null,null,null,"Angeborene Fähigkeit",null,"A",null,null,null,null,null,null,null,null,{"$f":"T55","v":"Angeborene Fähigkeit"},null,{"$f":"V55","v":"A"},null,null,null,null,null,null,"Gesamt",null,null,null,null,null,null,{"$f":"IF(SUM(AU44:AU54)<'OT und Infos'!E289,ROUNDDOWN(SUM(AU44:AU54,IF('OT und Infos'!E288=\"Ja\",0.5,0)),0),'OT und Infos'!E289)","v":0},null,null,null,null,null,null,null,null,"Summe:",null,null,{"$f":"SUM(BG3:BG54)","v":0},"Summe:",null,null,{"$f":"SUM(BK3:BK54)","v":0},"Summe:",null,null,{"$f":"SUM(BO3:BO54)","v":0},"Summe:",null,null,{"$f":"SUM(BS3:BS54)","v":0}]
[{"$f":"IF(F7='OT und Infos'!C9,\"C\",IF(F7='OT und Infos'!D9,\"D\",IF(F7='OT und Infos'!E9,\"E\",IF(F7='OT und Infos'!F9,\"F\",IF(F7='OT und Infos'!G9,\"G\",IF(F7='OT und Infos'!H9,\"H\"))))))","v":"E"},"'OT und Infos'!"]
[{"$f":"IF(B7='OT und Infos'!A16,\"19\",IF(B7='OT und Infos'!A20,\"23\",IF(B7='OT und Infos'!A24,\"27\",IF(B7='OT und Infos'!A28,\"31\"))))","v":"19"},null,null,null,null,null,null,null,null,null,null,null,null,null,null,{"$f":"INDIRECT($B$56&$A$56&96)","v":1},{"$f":"INDIRECT($B$56&$A$56&103)","v":20},null,null,null,null,null,{"$f":"INDIRECT($B$56&$A$56&154)","v":5},null,null,null,null,{"$f":"INDIRECT($B$56&$A$56&192)","v":30},null,null,null,null,null,{"$f":"INDIRECT($B$56&$A$56&229)","v":30},null,null,null,null,null,null,{"$f":"'OT und Infos'!A280","v":"Platte"},{"$f":"'OT und Infos'!A296","v":"Voll"}]
[{"$f":"IF(B7='OT und Infos'!A16,\"17\",IF(B7='OT und Infos'!A20,\"21\",IF(B7='OT und Infos'!A24,\"25\",IF(B7='OT und Infos'!A28,\"29\"))))","v":"17"},null,null,null,null,null,null,null,null,null,null,null,null,null,null,{"$f":"INDIRECT($B$56&$A$56&98)","v":2},{"$f":"INDIRECT($B$56&$A$56&104)","v":200},null,null,null,null,null,{"$f":"INDIRECT($B$56&$A$56&155)","v":5},null,null,null,null,{"$f":"INDIRECT($B$56&$A$56&193)","v":20},null,null,null,null,null,{"$f":"INDIRECT($B$56&$A$56&230)","v":50},null,null,null,null,null,null,{"$f":"'OT und Infos'!A281","v":"Lamellar"},{"$f":"'OT und Infos'!A297","v":"Drei / Viertel"}]
[null,null,null,null,null,null,null,null,null,null,null,null,null,null,null,null,{"$f":"INDIRECT($B$56&$A$56&105)","v":70},null,null,null,null,null,{"$f":"INDIRECT($B$56&$A$56&156)","v":5},null,null,null,null,{"$f":"INDIRECT($B$56&$A$56&194)","v":40},null,null,null,null,null,{"$f":"INDIRECT($B$56&$A$56&231)","v":100},null,null,null,null,null,null,{"$f":"'OT und Infos'!A282","v":"Kette"},{"$f":"'OT und Infos'!A298","v":"Halb"}]
[null,null,null,null,null,null,null,null,null,null,null,null,null,null,null,null,{"$f":"INDIRECT($B$56&$A$56&106)","v":200},null,null,null,null,null,{"$f":"INDIRECT($B$56&$A$56&157)","v":5},null,null,null,null,{"$f":"INDIRECT($B$56&$A$56&195)","v":40},null,null,null,null,null,{"$f":"INDIRECT($B$56&$A$56&232)","v":30},null,null,null,null,null,null,{"$f":"'OT und Infos'!A283","v":"Leder"},{"$f":"'OT und Infos'!A299","v":"Ein / Viertel"}]
[null,null,null,null,null,null,null,null,null,null,null,null,null,null,null,null,{"$f":"INDIRECT($B$56&$A$56&107)","v":40},null,null,null,null,null,{"$f":"INDIRECT($B$56&$A$56&158)","v":5},null,null,null,null,{"$f":"INDIRECT($B$56&$A$56&196)","v":30},null,null,null,null,null,{"$f":"INDIRECT($B$56&$A$56&233)","v":50},null,null,null,null,null,null,{"$f":"'OT und Infos'!A284","v":"Gambeson"}]
[null,null,null,null,null,null,null,null,null,null,null,null,null,null,null,null,{"$f":"INDIRECT($B$56&$A$56&108)","v":100},null,null,null,null,null,{"$f":"INDIRECT($B$56&$A$56&159)","v":5},null,null,null,null,{"$f":"INDIRECT($B$56&$A$56&197)","v":50},null,null,null,null,null,{"$f":"INDIRECT($B$56&$A$56&234)","v":50},null,null,null,null,null,null,{"$f":"'OT und Infos'!A285","v":"Ungerüstet"}]
[null,null,null,null,null,null,null,null,null,null,null,null,null,null,null,null,{"$f":"INDIRECT($B$56&$A$56&109)","v":40},null,null,null,null,null,{"$f":"INDIRECT($B$56&$A$56&160)","v":5},null,null,null,null,{"$f":"INDIRECT($B$56&$A$56&198)","v":10},null,null,null,null,null,{"$f":"INDIRECT($B$56&$A$56&235)","v":100},null,null,null,null,null,null,{"$f":"'OT und Infos'!A286","v":"Unbekleidet"}]
[null,null,null,null,null,null,null,null,null,null,null,null,null,null,null,null,{"$f":"INDIRECT($B$56&$A$56&110)","v":50},null,null,null,null,null,{"$f":"INDIRECT($B$56&$A$56&161)","v":5},null,null,null,null,{"$f":"INDIRECT($B$56&$A$56&199)","v":10},null,null,null,null,null,{"$f":"INDIRECT($B$56&$A$56&236)","v":150}]
[null,null,null,null,null,null,null,null,null,null,null,null,null,null,null,null,{"$f":"INDIRECT($B$56&$A$56&111)","v":100},null,null,null,null,null,{"$f":"INDIRECT($B$56&$A$56&162)","v":5},null,null,null,null,{"$f":"INDIRECT($B$56&$A$56&200)","v":30},null,null,null,null,null,{"$f":"INDIRECT($B$56&$A$56&237)","v":10}]
[null,null,null,null,null,null,null,null,null,null,null,null,null,null,null,null,{"$f":"INDIRECT($B$56&$A$56&112)","v":40},null,null,null,null,null,{"$f":"INDIRECT($B$56&$A$56&163)","v":5},null,null,null,null,{"$f":"INDIRECT($B$56&$A$56&201)","v":50},null,null,null,null,null,{"$f":"INDIRECT($B$56&$A$56&238)","v":20}]
[null,null,null,null,null,null,null,null,null,null,null,null,null,null,null,null,{"$f":"INDIRECT($B$56&$A$56&113)","v":100},null,null,null,null,null,{"$f":"INDIRECT($B$56&$A$56&164)","v":5},null,null,null,null,{"$f":"INDIRECT($B$56&$A$56&202)","v":"X"},null,null,null,null,null,{"$f":"INDIRECT($B$56&$A$56&239)","v":30}]
[null,null,null,null,null,null,null,null,null,null,null,null,null,null,null,null,{"$f":"INDIRECT($B$56&$A$56&114)","v":50},null,null,null,null,null,{"$f":"INDIRECT($B$56&$A$56&165)","v":5},null,null,null,null,{"$f":"INDIRECT($B$56&$A$56&203)","v":150},null,null,null,null,null,{"$f":"INDIRECT($B$56&$A$56&240)","v":40}]
[null,null,null,null,null,null,null,null,null,null,null,null,null,null,null,null,{"$f":"INDIRECT($B$56&$A$56&115)","v":20},null,null,null,null,null,null,null,null,null,null,{"$f":"INDIRECT($B$56&$A$56&204)","v":100},null,null,null,null,null,{"$f":"INDIRECT($B$56&$A$56&241)","v":50}]
[null,null,null,null,null,null,null,null,null,null,null,null,null,null,null,null,{"$f":"INDIRECT($B$56&$A$56&116)","v":30},null,null,null,null,null,null,null,null,null,null,{"$f":"INDIRECT($B$56&$A$56&205)","v":20},null,null,null,null,null,{"$f":"INDIRECT($B$56&$A$56&242)","v":60}]
[null,null,null,null,null,null,null,null,null,null,null,null,null,null,null,null,{"$f":"INDIRECT($B$56&$A$56&117)","v":40},null,null,null,null,null,null,null,null,null,null,{"$f":"INDIRECT($B$56&$A$56&206)","v":30},null,null,null,null,null,{"$f":"INDIRECT($B$56&$A$56&243)","v":20}]
[null,null,null,null,null,null,null,null,null,null,null,null,null,null,null,null,{"$f":"INDIRECT($B$56&$A$56&118)","v":100},null,null,null,null,null,{"$f":"INDIRECT($B$56&$A$56&168)","v":20},null,null,null,null,{"$f":"INDIRECT($B$56&$A$56&207)","v":40},null,null,null,null,null,{"$f":"INDIRECT($B$56&$A$56&244)","v":40}]
[null,null,null,null,null,null,null,null,null,null,null,null,null,null,null,null,{"$f":"INDIRECT($B$56&$A$56&119)","v":30},null,null,null,null,null,{"$f":"INDIRECT($B$56&$A$56&169)","v":20},null,null,null,null,{"$f":"INDIRECT($B$56&$A$56&208)","v":40},null,null,null,null,null,{"$f":"INDIRECT($B$56&$A$56&245)","v":70}]
[null,null,null,null,null,null,null,null,null,null,null,null,null,null,null,null,{"$f":"INDIRECT($B$56&$A$56&120)","v":20},null,null,null,null,null,{"$f":"INDIRECT($B$56&$A$56&170)","v":30},null,null,null,null,{"$f":"INDIRECT($B$56&$A$56&209)","v":30},null,null,null,null,null,{"$f":"INDIRECT($B$56&$A$56&246)","v":100}]
[null,null,null,null,null,null,null,null,null,null,null,null,null,null,null,null,{"$f":"INDIRECT($B$56&$A$56&121)","v":10},null,null,null,null,null,{"$f":"INDIRECT($B$56&$A$56&171)","v":30},null,null,null,null,{"$f":"INDIRECT($B$56&$A$56&210)","v":50},null,null,null,null,null,{"$f":"INDIRECT($B$56&$A$56&247)","v":150}]
[null,null,null,null,null,null,null,null,null,null,null,null,null,null,null,null,{"$f":"INDIRECT($B$56&$A$56&122)","v":30},null,null,null,null,null,{"$f":"INDIRECT($B$56&$A$56&172)","v":250},null,null,null,null,{"$f":"INDIRECT($B$56&$A$56&211)","v":20},null,null,null,null,null,{"$f":"INDIRECT($B$56&$A$56&248)","v":200}]
[null,null,null,null,null,null,null,null,null,null,null,null,null,null,null,null,{"$f":"INDIRECT($B$56&$A$56&123)","v":50},null,null,null,null,null,{"$f":"INDIRECT($B$56&$A$56&173)","v":10},null,null,null,null,{"$f":"INDIRECT($B$56&$A$56&212)","v":10},null,null,null,null,null,{"$f":"INDIRECT($B$56&$A$56&249)","v":20}]
[null,null,null,null,null,null,null,null,null,null,null,null,null,null,null,null,{"$f":"INDIRECT($B$56&$A$56&124)","v":10},null,null,null,null,null,{"$f":"INDIRECT($B$56&$A$56&174)","v":50},null,null,null,null,{"$f":"INDIRECT($B$56&$A$56&213)","v":50},null,null,null,null,null,{"$f":"INDIRECT($B$56&$A$56&250)","v":100}]
[null,null,null,null,null,null,null,null,null,null,null,null,null,null,null,null,{"$f":"INDIRECT($B$56&$A$56&125)","v":30},null,null,null,null,null,{"$f":"INDIRECT($B$56&$A$56&175)","v":40},null,null,null,null,{"$f":"INDIRECT($B$56&$A$56&214)","v":50},null,null,null,null,null,{"$f":"INDIRECT($B$56&$A$56&251)","v":500}]
[null,null,null,null,null,null,null,null,null,null,null,null,null,null,null,null,{"$f":"INDIRECT($B$56&$A$56&126)","v":20},null,null,null,null,null,{"$f":"INDIRECT($B$56&$A$56&176)","v":250},null,null,null,null,{"$f":"INDIRECT($B$56&$A$56&215)","v":50},null,null,null,null,null,{"$f":"INDIRECT($B$56&$A$56&252)","v":300}]
[null,null,null,null,null,null,null,null,null,null,null,null,null,null,null,null,{"$f":"INDIRECT($B$56&$A$56&127)","v":30},null,null,null,null,null,{"$f":"INDIRECT($B$56&$A$56&177)","v":100},null,null,null,null,{"$f":"INDIRECT($B$56&$A$56&216)","v":20},null,null,null,null,null,{"$f":"INDIRECT($B$56&$A$56&253)","v":200}]
[null,null,null,null,null,null,null,null,null,null,null,null,null,null,null,null,{"$f":"INDIRECT($B$56&$A$56&128)","v":150},null,null,null,null,null,{"$f":"INDIRECT($B$56&$A$56&178)","v":50},null,null,null,null,{"$f":"INDIRECT($B$56&$A$56&217)","v":40},null,null,null,null,null,{"$f":"INDIRECT($B$56&$A$56&254)","v":40}]
[null,null,null,null,null,null,null,null,null,null,null,null,null,null,null,null,{"$f":"INDIRECT($B$56&$A$56&129)","v":30},null,null,null,null,null,{"$f":"INDIRECT($B$56&$A$56&179)","v":20},null,null,null,null,{"$f":"INDIRECT($B$56&$A$56&218)","v":40},null,null,null,null,null,{"$f":"INDIRECT($B$56&$A$56&255)","v":80}]
[null,null,null,null,null,null,null,null,null,null,null,null,null,null,null,null,{"$f":"INDIRECT($B$56&$A$56&130)","v":50},null,null,null,null,null,{"$f":"INDIRECT($B$56&$A$56&180)","v":10},null,null,null,null,{"$f":"INDIRECT($B$56&$A$56&219)","v":30},null,null,null,null,null,{"$f":"INDIRECT($B$56&$A$56&256)","v":140}]
[null,null,null,null,null,null,null,null,null,null,null,null,null,null,null,null,{"$f":"INDIRECT($B$56&$A$56&131)","v":40},null,null,null,null,null,{"$f":"INDIRECT($B$56&$A$56&181)","v":10},null,null,null,null,{"$f":"INDIRECT($B$56&$A$56&220)","v":40},null,null,null,null,null,{"$f":"INDIRECT($B$56&$A$56&257)","v":200}]
[null,null,null,null,null,null,null,null,null,null,null,null,null,null,null,null,null,null,null,null,null,null,{"$f":"INDIRECT($B$56&$A$56&182)","v":40},null,null,null,null,{"$f":"INDIRECT($B$56&$A$56&221)","v":100},null,null,null,null,null,{"$f":"INDIRECT($B$56&$A$56&258)","v":300}]
[null,null,null,null,null,null,null,null,null,null,null,null,null,null,null,null,null,null,null,null,null,null,{"$f":"INDIRECT($B$56&$A$56&183)","v":30},null,null,null,null,{"$f":"INDIRECT($B$56&$A$56&222)","v":50},null,null,null,null,null,{"$f":"INDIRECT($B$56&$A$56&259)","v":400}]
[null,null,null,null,null,null,null,null,null,null,null,null,null,null,null,null,null,null,null,null,null,null,{"$f":"INDIRECT($B$56&$A$56&184)","v":50},null,null,null,null,{"$f":"INDIRECT($B$56&$A$56&223)","v":40},null,null,null,null,null,{"$f":"INDIRECT($B$56&$A$56&260)","v":30}]
[null,null,null,null,null,null,null,null,null,null,null,null,null,null,null,null,{"$f":"INDIRECT($B$56&$A$56&134)","v":100},null,null,null,null,null,{"$f":"INDIRECT($B$56&$A$56&185)","v":100},null,null,null,null,{"$f":"INDIRECT($B$56&$A$56&224)","v":20}]
[null,null,null,null,null,null,null,null,null,null,null,null,null,null,null,null,{"$f":"INDIRECT($B$56&$A$56&135)","v":10},null,null,null,null,null,null,null,null,null,null,{"$f":"INDIRECT($B$56&$A$56&225)","v":20}]
[null,null,null,null,null,null,null,null,null,null,null,null,null,null,null,null,{"$f":"INDIRECT($B$56&$A$56&136)","v":20},null,null,null,null,null,null,null,null,null,null,{"$f":"INDIRECT($B$56&$A$56&226)","v":60}]
[null,null,null,null,null,null,null,null,null,null,null,null,null,null,null,null,{"$f":"INDIRECT($B$56&$A$56&137)","v":30}]
[null,null,null,null,null,null,null,null,null,null,null,null,null,null,null,null,{"$f":"INDIRECT($B$56&$A$56&138)","v":50},null,null,null,null,null,{"$f":"INDIRECT($B$56&$A$56&188)","v":20}]
[null,null,null,null,null,null,null,null,null,null,null,null,null,null,null,null,{"$f":"INDIRECT($B$56&$A$56&139)","v":10},null,null,null,null,null,{"$f":"INDIRECT($B$56&$A$56&189)","v":60}]
[null,null,null,null,null,null,null,null,null,null,null,null,null,null,null,null,{"$f":"INDIRECT($B$56&$A$56&140)","v":20}]
[null,null,null,null,null,null,null,null,null,null,null,null,null,null,null,null,{"$f":"INDIRECT($B$56&$A$56&141)","v":20}]
[null,null,null,null,null,null,null,null,null,null,null,null,null,null,null,null,{"$f":"INDIRECT($B$56&$A$56&142)","v":250}]
[null,null,null,null,null,null,null,null,null,null,null,null,null,null,null,null,{"$f":"INDIRECT($B$56&$A$56&143)","v":100}]
[null,null,null,null,null,null,null,null,null,null,null,null,null,null,null,null,{"$f":"INDIRECT($B$56&$A$56&144)","v":30}]
[null,null,null,null,null,null,null,null,null,null,null,null,null,null,null,null,{"$f":"INDIRECT($B$56&$A$56&145)","v":"X"}]
[null,null,null,null,null,null,null,null,null,null,null,null,null,null,null,null,{"$f":"INDIRECT($B$56&$A$56&146)","v":20}]
[null,null,null,null,null,null,null,null,null,null,null,null,null,null,null,null,{"$f":"INDIRECT($B$56&$A$56&147)","v":20}]
[null,null,null,null,null,null,null,null,null,null,null,null,null,null,null,null,{"$f":"INDIRECT($B$56&$A$56&148)","v":30}]
[null,null,null,null,null,null,null,null,null,null,null,null,null,null,null,null,{"$f":"INDIRECT($B$56&$A$56&149)","v":20}]
[null,null,null,null,null,null,null,null,null,null,null,null,null,null,null,null,{"$f":"INDIRECT($B$56&$A$56&150)","v":50}]
[null,null,null,null,null,null,null,null,null,null,null,null,null,null,null,null,{"$f":"INDIRECT($B$56&$A$56&151)","v":40}]

{"sheet":"Charakterdetails Vorlage","index":3,"n_rows":106,"n_cols":71,"rows_kept":106,"cut":false,"hidden":true,"merged":[[0,55,0,58],[0,59,0,62],[0,63,0,66],[0,67,0,70],[1,5,1,6],[1,9,1,11],[1,13,1,23],[1,24,1,34],[1,39,38,46],[1,47,54,54],[0,0,0,12],[0,13,0,23],[0,24,0,34],[0,35,0,38],[0,39,0,46],[0,47,0,54],[2,0,2,12],[2,13,2,17],[2,19,2,23],[2,24,2,28],[2,30,2,34],[3,0,3,12],[3,13,3,14],[3,19,3,20],[3,24,3,25],[3,30,3,31],[4,30,4,31],[5,2,5,4],[5,5,5,6],[5,9,5,10],[5,13,5,14],[5,19,5,20],[5,24,5,25],[5,30,5,31],[4,2,4,4],[4,5,4,6],[4,9,4,10],[4,13,4,14],[4,19,4,20],[4,24,4,25],[6,30,6,31],[7,0,7,12],[7,13,7,14],[7,19,7,20],[7,24,7,25],[7,30,7,31],[6,2,6,4],[6,5,6,6],[6,9,6,10],[6,13,6,14],[6,19,6,20],[6,24,6,25],[9,0,9,1],[9,6,9,10],[9,13,9,14],[9,19,9,20],[9,24,9,25],[9,30,9,31],[8,0,8,4],[8,6,8,12],[8,13,8,14],[8,19,8,20],[8,24,8,25],[8,30,8,31],[11,0,11,1],[11,6,11,10],[11,13,11,14],[11,19,11,20],[11,24,11,25],[11,30,11,31],[10,0,10,1],[10,6,10,10],[10,13,10,14],[10,19,10,20],[10,24,10,25],[10,30,10,31],[13,0,13,1],[13,6,13,11],[13,13,13,14],[13,19,13,20],[13,24,13,25],[13,30,13,31],[12,0,12,1],[12,6,12,11],[12,13,12,14],[12,19,12,20],[12,24,12,25],[12,30,12,31],[15,0,15,1],[15,6,15,11],[15,13,15,14],[15,19,15,22],[15,24,15,25],[15,30,15,31],[14,0,14,1],[14,6,14,11],[14,13,14,14],[14,19,14,20],[14,24,14,25],[14,30,14,31],[17,0,17,1],[17,6,17,12],[17,13,17,14],[17,19,17,23],[17,24,17,25],[17,30,17,31],[16,0,16,1],[16,6,16,12],[16,13,16,14],[16,19,16,23],[16,24,16,25],[16,30,16,31],[19,0,19,1],[19,6,19,9],[19,13,19,14],[19,19,19,20],[19,24,19,25],[19,30,19,31],[18,0,18,1],[18,6,18,9],[18,13,18,14],[18,19,18,20],[18,24,18,25],[18,30,18,31],[21,0,21,1],[21,6,21,8],[21,13,21,14],[21,19,21,20],[21,24,21,25],[21,30,21,31],[20,0,20,1],[20,6,20,9],[20,13,20,14],[20,19,20,20],[20,24,20,25],[20,30,20,31],[23,0,23,1],[23,6,23,8],[23,13,23,14],[23,19,23,20],[23,24,23,25],[23,30,23,31],[22,0,22,1],[22,6,22,8],[22,13,22,14],[22,19,22,20],[22,24,22,25],[22,30,22,31],[24,0,24,2],[24,6,24,8],[24,13,24,14],[24,19,24,20],[24,24,24,25],[25,0,25,3],[25,6,25,8],[25,13,25,14],[25,19,25,20],[25,24,25,25],[27,0,27,4],[27,6,27,8],[27,13,27,14],[27,19,27,20],[27,24,27,25],[27,30,27,31],[25,30,25,31],[26,0,26,4],[26,6,26,8],[26,13,26,14],[26,19,26,20],[26,24,26,25],[26,30,26,31],[29,0,29,2],[29,6,29,8],[29,13,29,14],[29,19,29,20],[29,24,29,25],[29,30,29,31],[28,0,28,2],[28,6,28,8],[28,13,28,14],[28,19,28,20],[28,24,28,25],[28,30,28,31],[31,0,31,2],[31,6,31,8],[31,13,31,14],[31,19,31,20],[31,24,31,25],[31,30,31,31],[30,0,30,2],[30,6,30,8],[30,13,30,14],[30,19,30,20],[30,24,30,25],[30,30,30,31],[33,0,33,2],[33,6,33,8],[33,13,33,17],[33,19,33,20],[33,24,33,25],[33,30,33,31],[32,0,32,2],[32,6,32,8],[32,13,32,16],[32,19,32,20],[32,24,32,25],[32,30,32,31],[35,0,35,1],[35,6,35,8],[35,13,35,14],[35,19,35,20],[35,24,35,25],[35,30,35,33],[34,0,34,2],[34,6,34,8],[34,13,34,17],[34,19,34,20],[34,24,34,25],[34,30,34,31],[36,0,36,1],[36,6,36,8],[36,19,36,22],[36,24,36,25],[36,30,36,34],[37,0,37,1],[37,6,37,8],[37,19,37,23],[37,24,37,27],[37,30,37,34],[39,39,39,46],[40,0,40,2],[40,6,40,8],[40,19,40,20],[40,24,40,28],[40,30,40,34],[40,39,40,46],[38,0,38,2],[38,6,38,8],[38,19,38,23],[38,24,38,28],[38,30,38,34],[39,0,39,2],[39,6,39,8],[39,19,39,20],[39,24,39,28],[39,30,39,34],[41,40,41,42],[41,43,41,45],[41,46,42,46],[42,0,42,1],[42,6,42,8],[42,19,42,23],[42,24,42,28],[42,30,42,34],[41,0,41,1],[41,6,41,8],[41,19,41,22],[41,24,41,28],[41,30,41,34],[41,39,42,39],[44,0,44,1],[44,6,44,8],[44,13,44,14],[44,19,44,23],[44,24,44,28],[44,30,44,34],[43,0,43,1],[43,6,43,8],[43,13,43,14],[43,19,43,23],[43,24,43,28],[43,30,43,34],[45,0,45,1],[45,6,45,8],[45,19,45,23],[45,24,45,28],[45,30,45,34],[46,0,46,1],[46,6,46,11],[46,19,46,23],[46,24,46,28],[46,30,46,34],[47,0,47,1],[47,6,47,12],[47,19,47,23],[47,24,47,28],[47,30,47,34],[48,0,48,1],[48,6,48,12],[48,19,48,23],[48,24,48,28],[48,30,48,34],[49,0,49,2],[49,6,49,11],[49,19,49,23],[49,24,49,28],[49,30,49,34],[50,0,50,2],[50,6,50,11],[50,19,50,23],[50,24,50,28],[50,30,50,34],[52,30,52,31],[53,0,53,2],[53,6,53,11],[53,13,53,16],[53,19,53,20],[53,24,53,28],[53,30,53,31],[51,0,51,2],[51,6,51,11],[51,19,51,23],[51,24,51,28],[52,0,52,2],[52,6,52,11],[52,19,52,20],[52,24,52,28],[54,55,54,57],[54,59,54,61],[54,63,54,65],[54,67,54,69],[54,0,54,3],[54,6,54,11],[54,13,54,17],[54,19,54,20],[54,24,54,28],[54,30,54,31]]}
["Spieler",null,null,null,null,null,null,null,null,null,null,null,null,"IV. Zauber / Immunitäten / Sonderfähigkeiten nach Arcanum Magnum und Liber Magicae",null,null,null,null,null,null,null,null,null,null,"IV. Zauber / Immunitäten / Sonderfähigkeiten nach Arcanum Magnum und Liber Magicae",null,null,null,null,null,null,null,null,null,null,{"$f":"CONCATENATE(\"Besitztümer \",F5,\" \",B5)","v":"Besitztümer  "},null,null,null,{"$f":"CONCATENATE(\"Charakterfoto \",F5,\" \",B5)","v":"Charakterfoto  "},null,null,null,null,null,null,null,{"$f":"CONCATENATE(\"Charaktergeschichte \",F5,\" \",B5)","v":"Charaktergeschichte  "},null,null,null,null,null,null,null,{"$f":"CONCATENATE(F5,\" \",B5)","v":" "},null,null,null,{"$f":"BD1","v":" "},null,null,null,{"$f":"BD1","v":" "},null,null,null,{"$f":"BD1","v":" "}]
["Name:",{"$f":"'OT und Infos'!B2","v":"Nachname"},"Vorname:",null,null,{"$f":"'OT und Infos'!B3","v":"Vorname"},null,"Alter:",{"$f":"TODAY()-'OT und Infos'!B5","v":"1935-06-01"},"Con-Tage:",null,null,{"$f":"'OT und Infos'!B6","v":0},null,null,null,null,null,null,null,null,null,null,null,null,null,null,null,null,null,null,null,null,null,null,"Gegenstand",null,"Erhalten auf Con",null,null,null,null,null,null,null,null,null,null,null,null,null,null,null,null,null,"Vergangene & Zukünftige Veranstaltungen","Datum","Con-Tage","Exp",{"$f":"$BD$2","v":"Vergangene & Zukünftige Veranstaltungen"},{"$f":"$BE$2","v":"Datum"},{"$f":"$BF$2","v":"Con-Tage"},{"$f":"$BG$2","v":"Exp"},{"$f":"$BD$2","v":"Vergangene & Zukünftige Veranstaltungen"},{"$f":"$BE$2","v":"Datum"},{"$f":"$BF$2","v":"Con-Tage"},{"$f":"$BG$2","v":"Exp"},{"$f":"$BD$2","v":"Vergangene & Zukünftige Veranstaltungen"},{"$f":"$BE$2","v":"Datum"},{"$f":"$BF$2","v":"Con-Tage"},{"$f":"$BG$2","v":"Exp"}]
[null,null,null,null,null,null,null,null,null,null,null,null,null,"Allgemein",null,null,null,null,null,"Lehrling",null,null,null,null,"Kampf",null,null,null,null,null,"Schutz",null,null,null,null,null,null,null,null,null,null,null,null,null,null,null,null,null,null,null,null,null,null,null,null,null,null,null,{"$f":"IF(OR(BF3='Einführung & Hilfe'!$B$65,BF3='Einführung & Hilfe'!$C$65,BF3='Einführung & Hilfe'!$D$65,BF3='Einführung & Hilfe'!$E$65),0,BF3*INDIRECT($B$56&$A$56&$A$57))","v":0},null,null,null,{"$f":"IF(OR(BJ3='Einführung & Hilfe'!$B$65,BJ3='Einführung & Hilfe'!$C$65,BJ3='Einführung & Hilfe'!$D$65,BJ3='Einführung & Hilfe'!$E$65),0,BJ3*INDIRECT($B$56&$A$56&$A$57))","v":0},null,null,null,{"$f":"IF(OR(BN3='Einführung & Hilfe'!$B$65,BN3='Einführung & Hilfe'!$C$65,BN3='Einführung & Hilfe'!$D$65,BN3='Einführung & Hilfe'!$E$65),0,BN3*INDIRECT($B$56&$A$56&$A$57))","v":0},null,null,null,{"$f":"IF(OR(BR3='Einführung & Hilfe'!$B$65,BR3='Einführung & Hilfe'!$C$65,BR3='Einführung & Hilfe'!$D$65,BR3='Einführung & Hilfe'!$E$65),0,BR3*INDIRECT($B$56&$A$56&$A$57))","v":0}]
["Charakter",null,null,null,null,null,null,null,null,null,null,null,null,"Alarm",null,null,{"$f":"IF($L$21=$M$21,0,IF(AND($L$20=$M$20,Q57<=50),0,IF(AND($L$19=$M$19,Q57<=20),0,IF(AND($L$11=$M$11,P4=$V$53,Q57<=20),0,IF(AND($L$10=$M$10,P4=$V$53,Q57<=5),0,IF(Q57=\"X\",\"X\",IF(P4=$V$54,$P$57*Q57,IF(P4=$V$55,$P$58*Q57,Q57))))))))","v":20},null,null,"Aura spüren",null,null,{"$f":"IF($L$21=$M$21,0,IF(AND($L$20=$M$20,W57<=50),0,IF(AND($L$19=$M$19,W57<=20),0,IF(AND($L$11=$M$11,V4=$V$53,W57<=20),0,IF(AND($L$10=$M$10,V4=$V$53,W57<=5),0,IF(W57=\"X\",\"X\",IF(V4=$V$54,$P$57*W57,IF(V4=$V$55,$P$58*W57,W57))))))))","v":5},null,"Binden",null,null,{"$f":"IF($L$21=$M$21,0,IF(AND($L$20=$M$20,AB57<=50),0,IF(AND($L$19=$M$19,AB57<=20),0,IF(AND($L$11=$M$11,AA4=$V$53,AB57<=20),0,IF(AND($L$10=$M$10,AA4=$V$53,AB57<=5),0,IF(AB57=\"X\",\"X\",IF(AA4=$V$54,$P$57*AB57,IF(AA4=$V$55,$P$58*AB57,AB57))))))))","v":30},null,null,"Abstand",null,null,{"$f":"IF($L$21=$M$21,0,IF(AND($L$20=$M$20,AH57<=50),0,IF(AND($L$19=$M$19,AH57<=20),0,IF(AND($L$11=$M$11,AG4=$V$53,AH57<=20),0,IF(AND($L$10=$M$10,AG4=$V$53,AH57<=5),0,IF(AH57=\"X\",\"X\",IF(AG4=$V$54,$P$57*AH57,IF(AG4=$V$55,$P$58*AH57,AH57))))))))","v":30},null,null,null,null,null,null,null,null,null,null,null,null,null,null,null,null,null,null,null,null,null,null,null,null,{"$f":"IF(OR(BF4='Einführung & Hilfe'!$B$65,BF4='Einführung & Hilfe'!$C$65,BF4='Einführung & Hilfe'!$D$65,BF4='Einführung & Hilfe'!$E$65),0,BF4*INDIRECT($B$56&$A$56&$A$57))","v":0},null,null,null,{"$f":"IF(OR(BJ4='Einführung & Hilfe'!$B$65,BJ4='Einführung & Hilfe'!$C$65,BJ4='Einführung & Hilfe'!$D$65,BJ4='Einführung & Hilfe'!$E$65),0,BJ4*INDIRECT($B$56&$A$56&$A$57))","v":0},null,null,null,{"$f":"IF(OR(BN4='Einführung & Hilfe'!$B$65,BN4='Einführung & Hilfe'!$C$65,BN4='Einführung & Hilfe'!$D$65,BN4='Einführung & Hilfe'!$E$65),0,BN4*INDIRECT($B$56&$A$56&$A$57))","v":0},null,null,null,{"$f":"IF(OR(BR4='Einführung & Hilfe'!$B$65,BR4='Einführung & Hilfe'!$C$65,BR4='Einführung & Hilfe'!$D$65,BR4='Einführung & Hilfe'!$E$65),0,BR4*INDIRECT($B$56&$A$56&$A$57))","v":0}]
["Name:",null,"Vorname:",null,null,null,null,"Geschlecht:",null,{"$f":"'OT und Infos'!B4","v":"M/W"},null,"Alter:",{"$f":"TODAY()-'OT und Infos'!B5","v":"1935-06-01"},"Astrale Verfestigung",null,null,{"$f":"IF($L$21=$M$21,0,IF(AND($L$20=$M$20,Q58<=50),0,IF(AND($L$19=$M$19,Q58<=20),0,IF(AND($L$11=$M$11,P5=$V$53,Q58<=20),0,IF(AND($L$10=$M$10,P5=$V$53,Q58<=5),0,IF(Q58=\"X\",\"X\",IF(P5=$V$54,$P$57*Q58,IF(P5=$V$55,$P$58*Q58,Q58))))))))","v":200},null,null,"Blutung stoppen",null,null,5,null,"Blindheit",null,null,20,null,null,"Eisschutz I",null,null,50,null,null,null,null,null,null,null,null,null,null,null,null,null,null,null,null,null,null,null,null,null,null,null,null,{"$f":"IF(OR(BF5='Einführung & Hilfe'!$B$65,BF5='Einführung & Hilfe'!$C$65,BF5='Einführung & Hilfe'!$D$65,BF5='Einführung & Hilfe'!$E$65),0,BF5*INDIRECT($B$56&$A$56&$A$57))","v":0},null,null,null,{"$f":"IF(OR(BJ5='Einführung & Hilfe'!$B$65,BJ5='Einführung & Hilfe'!$C$65,BJ5='Einführung & Hilfe'!$D$65,BJ5='Einführung & Hilfe'!$E$65),0,BJ5*INDIRECT($B$56&$A$56&$A$57))","v":0},null,null,null,{"$f":"IF(OR(BN5='Einführung & Hilfe'!$B$65,BN5='Einführung & Hilfe'!$C$65,BN5='Einführung & Hilfe'!$D$65,BN5='Einführung & Hilfe'!$E$65),0,BN5*INDIRECT($B$56&$A$56&$A$57))","v":0},null,null,null,{"$f":"IF(OR(BR5='Einführung & Hilfe'!$B$65,BR5='Einführung & Hilfe'!$C$65,BR5='Einführung & Hilfe'!$D$65,BR5='Einführung & Hilfe'!$E$65),0,BR5*INDIRECT($B$56&$A$56&$A$57))","v":0}]
["Berufung:",null,"Rasse:",null,null,null,null,"Con-Tage:",null,{"$f":"SUM(BF3:BF54,BJ3:BJ54,BN3:BN54,BR3:BR54)","v":0},null,"Exp:",{"$f":"SUM(INDIRECT($B$56&$A$56&$A$58),BG55,BK55,BO55,BS55)","v":50},"Astralsicht",null,null,70,null,null,"Feuerfinger",null,null,5,null,"Blitzstrahl",null,null,40,null,null,"Eisschutz II",null,null,100,null,null,null,null,null,null,null,null,null,null,null,null,null,null,null,null,null,null,null,null,null,null,null,null,{"$f":"IF(OR(BF6='Einführung & Hilfe'!$B$65,BF6='Einführung & Hilfe'!$C$65,BF6='Einführung & Hilfe'!$D$65,BF6='Einführung & Hilfe'!$E$65),0,BF6*INDIRECT($B$56&$A$56&$A$57))","v":0},null,null,null,{"$f":"IF(OR(BJ6='Einführung & Hilfe'!$B$65,BJ6='Einführung & Hilfe'!$C$65,BJ6='Einführung & Hilfe'!$D$65,BJ6='Einführung & Hilfe'!$E$65),0,BJ6*INDIRECT($B$56&$A$56&$A$57))","v":0},null,null,null,{"$f":"IF(OR(BN6='Einführung & Hilfe'!$B$65,BN6='Einführung & Hilfe'!$C$65,BN6='Einführung & Hilfe'!$D$65,BN6='Einführung & Hilfe'!$E$65),0,BN6*INDIRECT($B$56&$A$56&$A$57))","v":0},null,null,null,{"$f":"IF(OR(BR6='Einführung & Hilfe'!$B$65,BR6='Einführung & Hilfe'!$C$65,BR6='Einführung & Hilfe'!$D$65,BR6='Einführung & Hilfe'!$E$65),0,BR6*INDIRECT($B$56&$A$56&$A$57))","v":0}]
["Klasse:","Universell","Regelwerk:",null,null,"Offenes DragonSys",null,"NSC Bonus:",null,0,null,"NExp:",{"$f":"J7*INDIRECT($B$56&$A$56&$A$57)*(SUM(NSC!C3:C50)+SUM(NSC!G3:G50))","v":0},"Astraltor",null,null,200,null,null,"Geister spüren",null,null,5,null,"Einfangen",null,null,40,null,null,"Energiefeld",null,null,30,null,null,null,null,null,null,null,null,null,null,null,null,null,null,null,null,null,null,null,null,null,null,null,null,{"$f":"IF(OR(BF7='Einführung & Hilfe'!$B$65,BF7='Einführung & Hilfe'!$C$65,BF7='Einführung & Hilfe'!$D$65,BF7='Einführung & Hilfe'!$E$65),0,BF7*INDIRECT($B$56&$A$56&$A$57))","v":0},null,null,null,{"$f":"IF(OR(BJ7='Einführung & Hilfe'!$B$65,BJ7='Einführung & Hilfe'!$C$65,BJ7='Einführung & Hilfe'!$D$65,BJ7='Einführung & Hilfe'!$E$65),0,BJ7*INDIRECT($B$56&$A$56&$A$57))","v":0},null,null,null,{"$f":"IF(OR(BN7='Einführung & Hilfe'!$B$65,BN7='Einführung & Hilfe'!$C$65,BN7='Einführung & Hilfe'!$D$65,BN7='Einführung & Hilfe'!$E$65),0,BN7*INDIRECT($B$56&$A$56&$A$57))","v":0},null,null,null,{"$f":"IF(OR(BR7='Einführung & Hilfe'!$B$65,BR7='Einführung & Hilfe'!$C$65,BR7='Einführung & Hilfe'!$D$65,BR7='Einführung & Hilfe'!$E$65),0,BR7*INDIRECT($B$56&$A$56&$A$57))","v":0}]
[{"$f":"IF(INDIRECT($B$56&$A$56&$A$58)=0,\"Die Gewählte Klasse ist in diesem Regelwerk nicht verfügbar!\",\"\")","v":""},null,null,null,null,null,null,null,null,null,null,null,null,"Aura lesen",null,null,40,null,null,"Gift spüren",null,null,5,null,"Eisball I",null,null,30,null,null,"Feuerschild",null,null,50,null,null,null,null,null,null,null,null,null,null,null,null,null,null,null,null,null,null,null,null,null,null,null,null,{"$f":"IF(OR(BF8='Einführung & Hilfe'!$B$65,BF8='Einführung & Hilfe'!$C$65,BF8='Einführung & Hilfe'!$D$65,BF8='Einführung & Hilfe'!$E$65),0,BF8*INDIRECT($B$56&$A$56&$A$57))","v":0},null,null,null,{"$f":"IF(OR(BJ8='Einführung & Hilfe'!$B$65,BJ8='Einführung & Hilfe'!$C$65,BJ8='Einführung & Hilfe'!$D$65,BJ8='Einführung & Hilfe'!$E$65),0,BJ8*INDIRECT($B$56&$A$56&$A$57))","v":0},null,null,null,{"$f":"IF(OR(BN8='Einführung & Hilfe'!$B$65,BN8='Einführung & Hilfe'!$C$65,BN8='Einführung & Hilfe'!$D$65,BN8='Einführung & Hilfe'!$E$65),0,BN8*INDIRECT($B$56&$A$56&$A$57))","v":0},null,null,null,{"$f":"IF(OR(BR8='Einführung & Hilfe'!$B$65,BR8='Einführung & Hilfe'!$C$65,BR8='Einführung & Hilfe'!$D$65,BR8='Einführung & Hilfe'!$E$65),0,BR8*INDIRECT($B$56&$A$56&$A$57))","v":0}]
["I. Kämpferfertigkeiten",null,null,null,null,null,"III. Magierfertigkeiten",null,null,null,null,null,null,"Auramaske",null,null,100,null,null,"Licht",null,null,5,null,"Eisball II",null,null,50,null,null,"Feuerschutz I",null,null,50,null,null,null,null,null,null,null,null,null,null,null,null,null,null,null,null,null,null,null,null,null,null,null,null,{"$f":"IF(OR(BF9='Einführung & Hilfe'!$B$65,BF9='Einführung & Hilfe'!$C$65,BF9='Einführung & Hilfe'!$D$65,BF9='Einführung & Hilfe'!$E$65),0,BF9*INDIRECT($B$56&$A$56&$A$57))","v":0},null,null,null,{"$f":"IF(OR(BJ9='Einführung & Hilfe'!$B$65,BJ9='Einführung & Hilfe'!$C$65,BJ9='Einführung & Hilfe'!$D$65,BJ9='Einführung & Hilfe'!$E$65),0,BJ9*INDIRECT($B$56&$A$56&$A$57))","v":0},null,null,null,{"$f":"IF(OR(BN9='Einführung & Hilfe'!$B$65,BN9='Einführung & Hilfe'!$C$65,BN9='Einführung & Hilfe'!$D$65,BN9='Einführung & Hilfe'!$E$65),0,BN9*INDIRECT($B$56&$A$56&$A$57))","v":0},null,null,null,{"$f":"IF(OR(BR9='Einführung & Hilfe'!$B$65,BR9='Einführung & Hilfe'!$C$65,BR9='Einführung & Hilfe'!$D$65,BR9='Einführung & Hilfe'!$E$65),0,BR9*INDIRECT($B$56&$A$56&$A$57))","v":0}]
["Berserker",null,1,{"$f":"INDIRECT(B56&A56&35)","v":20},null,null,"Meisterprüfung",null,null,null,null,{"$f":"INDIRECT(B56&A56&83)","v":50},null,{"$f":"IF('OT und Infos'!D11=INDIRECT(B56&A56&11),\"Übernatürliches Wesen beschw.\",\"Dämon beschwören\")","v":"Dämon beschwören"},null,null,40,null,null,"Magie spüren",null,null,5,null,"Energiebolzen",null,null,10,null,null,"Feuerschutz II",null,null,100,null,null,null,null,null,null,null,null,null,null,null,null,null,null,null,null,null,null,null,null,null,null,null,null,{"$f":"IF(OR(BF10='Einführung & Hilfe'!$B$65,BF10='Einführung & Hilfe'!$C$65,BF10='Einführung & Hilfe'!$D$65,BF10='Einführung & Hilfe'!$E$65),0,BF10*INDIRECT($B$56&$A$56&$A$57))","v":0},null,null,null,{"$f":"IF(OR(BJ10='Einführung & Hilfe'!$B$65,BJ10='Einführung & Hilfe'!$C$65,BJ10='Einführung & Hilfe'!$D$65,BJ10='Einführung & Hilfe'!$E$65),0,BJ10*INDIRECT($B$56&$A$56&$A$57))","v":0},null,null,null,{"$f":"IF(OR(BN10='Einführung & Hilfe'!$B$65,BN10='Einführung & Hilfe'!$C$65,BN10='Einführung & Hilfe'!$D$65,BN10='Einführung & Hilfe'!$E$65),0,BN10*INDIRECT($B$56&$A$56&$A$57))","v":0},null,null,null,{"$f":"IF(OR(BR10='Einführung & Hilfe'!$B$65,BR10='Einführung & Hilfe'!$C$65,BR10='Einführung & Hilfe'!$D$65,BR10='Einführung & Hilfe'!$E$65),0,BR10*INDIRECT($B$56&$A$56&$A$57))","v":0}]
[null,null,2,{"$f":"INDIRECT(B56&A56&36)","v":30},null,null,"Großmeisterfähigkeit",null,null,null,null,{"$f":"INDIRECT(B56&A56&84)","v":100},null,{"$f":"IF('OT und Infos'!D11=INDIRECT(B56&A56&11),\"Übernatürliches Wesen kontroll.\",\"Dämonenauftrag\")","v":"Dämonenauftrag"},null,null,50,null,null,"Untote spüren",null,null,5,null,"Energiehand",null,null,10,null,null,"Feuerschutz III",null,null,150,null,null,null,null,null,null,null,null,null,null,null,null,null,null,null,null,null,null,null,null,null,null,null,null,{"$f":"IF(OR(BF11='Einführung & Hilfe'!$B$65,BF11='Einführung & Hilfe'!$C$65,BF11='Einführung & Hilfe'!$D$65,BF11='Einführung & Hilfe'!$E$65),0,BF11*INDIRECT($B$56&$A$56&$A$57))","v":0},null,null,null,{"$f":"IF(OR(BJ11='Einführung & Hilfe'!$B$65,BJ11='Einführung & Hilfe'!$C$65,BJ11='Einführung & Hilfe'!$D$65,BJ11='Einführung & Hilfe'!$E$65),0,BJ11*INDIRECT($B$56&$A$56&$A$57))","v":0},null,null,null,{"$f":"IF(OR(BN11='Einführung & Hilfe'!$B$65,BN11='Einführung & Hilfe'!$C$65,BN11='Einführung & Hilfe'!$D$65,BN11='Einführung & Hilfe'!$E$65),0,BN11*INDIRECT($B$56&$A$56&$A$57))","v":0},null,null,null,{"$f":"IF(OR(BR11='Einführung & Hilfe'!$B$65,BR11='Einführung & Hilfe'!$C$65,BR11='Einführung & Hilfe'!$D$65,BR11='Einführung & Hilfe'!$E$65),0,BR11*INDIRECT($B$56&$A$56&$A$57))","v":0}]
[null,null,3,{"$f":"INDIRECT(B56&A56&37)","v":50},null,null,"Erhöhung der Magiepunkte",null,null,null,null,{"$f":"INDIRECT(B56&A56&85)","v":0},null,"Dämonenbefehl",null,null,100,null,null,"Verbände reinigen",null,null,5,null,{"$f":"IF('OT und Infos'!D11=INDIRECT(B56&A56&11),\"Feuerball\",\"Feuerball I\")","v":"Feuerball I"},null,null,{"$f":"IF($L$21=$M$21,0,IF(AND($L$20=$M$20,IF(AB67=\"X\",AB65,AB67)<=50),0,IF(AND($L$19=$M$19,IF(AB67=\"X\",AB65,AB67)<=20),0,IF(AND($L$11=$M$11,AA12=$V$53,IF(AB67=\"X\",AB65,AB67)<=20),0,IF(AND($L$10=$M$10,AA12=$V$53,IF(AB67=\"X\",AB65,AB67)<=5),0,IF(IF(AB67=\"X\",AB65,AB67)=\"X\",\"X\",IF(AA12=$V$54,$P$57*IF(AB67=\"X\",AB65,AB67),IF(AA12=$V$55,$P$58*IF(AB67=\"X\",AB65,AB67),IF(AB67=\"X\",AB65,AB67)))))))))","v":30},null,null,"Kampfschutz I",null,null,10,null,null,null,null,null,null,null,null,null,null,null,null,null,null,null,null,null,null,null,null,null,null,null,null,{"$f":"IF(OR(BF12='Einführung & Hilfe'!$B$65,BF12='Einführung & Hilfe'!$C$65,BF12='Einführung & Hilfe'!$D$65,BF12='Einführung & Hilfe'!$E$65),0,BF12*INDIRECT($B$56&$A$56&$A$57))","v":0},null,null,null,{"$f":"IF(OR(BJ12='Einführung & Hilfe'!$B$65,BJ12='Einführung & Hilfe'!$C$65,BJ12='Einführung & Hilfe'!$D$65,BJ12='Einführung & Hilfe'!$E$65),0,BJ12*INDIRECT($B$56&$A$56&$A$57))","v":0},null,null,null,{"$f":"IF(OR(BN12='Einführung & Hilfe'!$B$65,BN12='Einführung & Hilfe'!$C$65,BN12='Einführung & Hilfe'!$D$65,BN12='Einführung & Hilfe'!$E$65),0,BN12*INDIRECT($B$56&$A$56&$A$57))","v":0},null,null,null,{"$f":"IF(OR(BR12='Einführung & Hilfe'!$B$65,BR12='Einführung & Hilfe'!$C$65,BR12='Einführung & Hilfe'!$D$65,BR12='Einführung & Hilfe'!$E$65),0,BR12*INDIRECT($B$56&$A$56&$A$57))","v":0}]
[null,null,4,{"$f":"INDIRECT(B56&A56&38)","v":100},null,null,"Magiepunkte aus Spruchfertigkeiten",null,null,null,null,null,{"$f":"SUM(SUMIF(K22:K46,\"Z\",M22:M46),SUMIF(P4:P32,\"Z\",R4:R32),SUMIF(P36:P53,\"Z\",R36:R53),SUMIF(V4:V15,\"Z\",X4:X15),SUMIF(V19:V36,\"Z\",X19:X36),SUMIF(V40:V41,\"Z\",X40:X41),SUMIF(AA4:AA37,\"Z\",AC4:AC37),SUMIF(AG4:AG35,\"Z\",AI4:AI35))","v":0},"Energiewall",null,null,40,null,null,"Wasser reinigen",null,null,5,null,"Feuerball II",null,null,50,null,null,"Kampfschutz II",null,null,20,null,null,null,null,null,null,null,null,null,null,null,null,null,null,null,null,null,null,null,null,null,null,null,null,{"$f":"IF(OR(BF13='Einführung & Hilfe'!$B$65,BF13='Einführung & Hilfe'!$C$65,BF13='Einführung & Hilfe'!$D$65,BF13='Einführung & Hilfe'!$E$65),0,BF13*INDIRECT($B$56&$A$56&$A$57))","v":0},null,null,null,{"$f":"IF(OR(BJ13='Einführung & Hilfe'!$B$65,BJ13='Einführung & Hilfe'!$C$65,BJ13='Einführung & Hilfe'!$D$65,BJ13='Einführung & Hilfe'!$E$65),0,BJ13*INDIRECT($B$56&$A$56&$A$57))","v":0},null,null,null,{"$f":"IF(OR(BN13='Einführung & Hilfe'!$B$65,BN13='Einführung & Hilfe'!$C$65,BN13='Einführung & Hilfe'!$D$65,BN13='Einführung & Hilfe'!$E$65),0,BN13*INDIRECT($B$56&$A$56&$A$57))","v":0},null,null,null,{"$f":"IF(OR(BR13='Einführung & Hilfe'!$B$65,BR13='Einführung & Hilfe'!$C$65,BR13='Einführung & Hilfe'!$D$65,BR13='Einführung & Hilfe'!$E$65),0,BR13*INDIRECT($B$56&$A$56&$A$57))","v":0}]
[null,null,5,{"$f":"INDIRECT(B56&A56&39)","v":"X"},null,null,"Summe Magiepunkte",null,null,null,null,null,{"$f":"SUM(M12:M13)","v":0},"Exorzismus",null,null,100,null,null,"Wunde reinigen",null,null,5,null,"Feuersturm",null,null,{"$f":"IF($L$21=$M$21,0,IF(AND($L$20=$M$20,AB68<=50),0,IF(AND($L$19=$M$19,AB68<=20),0,IF(AND($L$11=$M$11,AA14=$V$53,AB68<=20),0,IF(AND($L$10=$M$10,AA14=$V$53,AB68<=5),0,IF(AB68=\"X\",\"X\",IF(AA14=$V$54,$P$57*AB68,IF(AA14=$V$55,$P$58*AB68,AB68))))))))","v":150},null,null,"Kampfschutz III",null,null,30,null,null,null,null,null,null,null,null,null,null,null,null,null,null,null,null,null,null,null,null,null,null,null,null,{"$f":"IF(OR(BF14='Einführung & Hilfe'!$B$65,BF14='Einführung & Hilfe'!$C$65,BF14='Einführung & Hilfe'!$D$65,BF14='Einführung & Hilfe'!$E$65),0,BF14*INDIRECT($B$56&$A$56&$A$57))","v":0},null,null,null,{"$f":"IF(OR(BJ14='Einführung & Hilfe'!$B$65,BJ14='Einführung & Hilfe'!$C$65,BJ14='Einführung & Hilfe'!$D$65,BJ14='Einführung & Hilfe'!$E$65),0,BJ14*INDIRECT($B$56&$A$56&$A$57))","v":0},null,null,null,{"$f":"IF(OR(BN14='Einführung & Hilfe'!$B$65,BN14='Einführung & Hilfe'!$C$65,BN14='Einführung & Hilfe'!$D$65,BN14='Einführung & Hilfe'!$E$65),0,BN14*INDIRECT($B$56&$A$56&$A$57))","v":0},null,null,null,{"$f":"IF(OR(BR14='Einführung & Hilfe'!$B$65,BR14='Einführung & Hilfe'!$C$65,BR14='Einführung & Hilfe'!$D$65,BR14='Einführung & Hilfe'!$E$65),0,BR14*INDIRECT($B$56&$A$56&$A$57))","v":0}]
["Kämpferschutz",null,1,{"$f":"INDIRECT(B56&A56&40)","v":30},null,null,"Summe Ritualpunkte",null,null,null,null,null,{"$f":"ROUNDDOWN(M14/5+0.5,0)","v":0},"Göttliche Weisheiten",null,null,50,null,null,"Zaubertrick",null,null,5,null,"Flammenwaffe",null,null,{"$f":"IF($L$21=$M$21,0,IF(AND($L$20=$M$20,AB69<=50),0,IF(AND($L$19=$M$19,AB69<=20),0,IF(AND($L$11=$M$11,AA15=$V$53,AB69<=20),0,IF(AND($L$10=$M$10,AA15=$V$53,AB69<=5),0,IF(AB69=\"X\",\"X\",IF(AA15=$V$54,$P$57*AB69,IF(AA15=$V$55,$P$58*AB69,AB69))))))))","v":100},null,null,"Kampfschutz IV",null,null,40,null,null,null,null,null,null,null,null,null,null,null,null,null,null,null,null,null,null,null,null,null,null,null,null,{"$f":"IF(OR(BF15='Einführung & Hilfe'!$B$65,BF15='Einführung & Hilfe'!$C$65,BF15='Einführung & Hilfe'!$D$65,BF15='Einführung & Hilfe'!$E$65),0,BF15*INDIRECT($B$56&$A$56&$A$57))","v":0},null,null,null,{"$f":"IF(OR(BJ15='Einführung & Hilfe'!$B$65,BJ15='Einführung & Hilfe'!$C$65,BJ15='Einführung & Hilfe'!$D$65,BJ15='Einführung & Hilfe'!$E$65),0,BJ15*INDIRECT($B$56&$A$56&$A$57))","v":0},null,null,null,{"$f":"IF(OR(BN15='Einführung & Hilfe'!$B$65,BN15='Einführung & Hilfe'!$C$65,BN15='Einführung & Hilfe'!$D$65,BN15='Einführung & Hilfe'!$E$65),0,BN15*INDIRECT($B$56&$A$56&$A$57))","v":0},null,null,null,{"$f":"IF(OR(BR15='Einführung & Hilfe'!$B$65,BR15='Einführung & Hilfe'!$C$65,BR15='Einführung & Hilfe'!$D$65,BR15='Einführung & Hilfe'!$E$65),0,BR15*INDIRECT($B$56&$A$56&$A$57))","v":0}]
[null,null,2,{"$f":"INDIRECT(B56&A56&41)","v":50},null,null,"Summe III:",null,null,null,null,null,{"$f":"SUM(SUMIF(L10:L12,\">0\",M10:M12),SUMIF(L10:L12,\"EXP\",M10:M12))","v":0},"Magie aufheben",null,null,20,null,null,"Summe Lehrling:",null,null,null,{"$f":"SUM(SUMIF(W4:W15,\">0\",X4:X15),SUMIF(W4:W15,\"EXP\",X4:X15))","v":0},"Furcht",null,null,20,null,null,"Kampfschutz V",null,null,50,null,null,null,null,null,null,null,null,null,null,null,null,null,null,null,null,null,null,null,null,null,null,null,null,{"$f":"IF(OR(BF16='Einführung & Hilfe'!$B$65,BF16='Einführung & Hilfe'!$C$65,BF16='Einführung & Hilfe'!$D$65,BF16='Einführung & Hilfe'!$E$65),0,BF16*INDIRECT($B$56&$A$56&$A$57))","v":0},null,null,null,{"$f":"IF(OR(BJ16='Einführung & Hilfe'!$B$65,BJ16='Einführung & Hilfe'!$C$65,BJ16='Einführung & Hilfe'!$D$65,BJ16='Einführung & Hilfe'!$E$65),0,BJ16*INDIRECT($B$56&$A$56&$A$57))","v":0},null,null,null,{"$f":"IF(OR(BN16='Einführung & Hilfe'!$B$65,BN16='Einführung & Hilfe'!$C$65,BN16='Einführung & Hilfe'!$D$65,BN16='Einführung & Hilfe'!$E$65),0,BN16*INDIRECT($B$56&$A$56&$A$57))","v":0},null,null,null,{"$f":"IF(OR(BR16='Einführung & Hilfe'!$B$65,BR16='Einführung & Hilfe'!$C$65,BR16='Einführung & Hilfe'!$D$65,BR16='Einführung & Hilfe'!$E$65),0,BR16*INDIRECT($B$56&$A$56&$A$57))","v":0}]
[null,null,3,{"$f":"INDIRECT(B56&A56&42)","v":70},null,null,null,null,null,null,null,null,null,"Magie Identifizieren",null,null,30,null,null,null,null,null,null,null,"Krankheit",null,null,30,null,null,"Kampfschutz VI",null,null,60,null,null,null,null,null,null,null,null,null,null,null,null,null,null,null,null,null,null,null,null,null,null,null,null,{"$f":"IF(OR(BF17='Einführung & Hilfe'!$B$65,BF17='Einführung & Hilfe'!$C$65,BF17='Einführung & Hilfe'!$D$65,BF17='Einführung & Hilfe'!$E$65),0,BF17*INDIRECT($B$56&$A$56&$A$57))","v":0},null,null,null,{"$f":"IF(OR(BJ17='Einführung & Hilfe'!$B$65,BJ17='Einführung & Hilfe'!$C$65,BJ17='Einführung & Hilfe'!$D$65,BJ17='Einführung & Hilfe'!$E$65),0,BJ17*INDIRECT($B$56&$A$56&$A$57))","v":0},null,null,null,{"$f":"IF(OR(BN17='Einführung & Hilfe'!$B$65,BN17='Einführung & Hilfe'!$C$65,BN17='Einführung & Hilfe'!$D$65,BN17='Einführung & Hilfe'!$E$65),0,BN17*INDIRECT($B$56&$A$56&$A$57))","v":0},null,null,null,{"$f":"IF(OR(BR17='Einführung & Hilfe'!$B$65,BR17='Einführung & Hilfe'!$C$65,BR17='Einführung & Hilfe'!$D$65,BR17='Einführung & Hilfe'!$E$65),0,BR17*INDIRECT($B$56&$A$56&$A$57))","v":0}]
[null,null,4,{"$f":"INDIRECT(B56&A56&43)","v":100},null,null,"IV. Besondere Zauber / Immunitäten / Sonderf.",null,null,null,null,null,null,"Magie Zerstören",null,null,40,null,null,"Heilung",null,null,null,null,"Lähmung",null,null,40,null,null,"Magische Rüstung I",null,null,20,null,null,null,null,null,null,null,null,null,null,null,null,null,null,null,null,null,null,null,null,null,null,null,null,{"$f":"IF(OR(BF18='Einführung & Hilfe'!$B$65,BF18='Einführung & Hilfe'!$C$65,BF18='Einführung & Hilfe'!$D$65,BF18='Einführung & Hilfe'!$E$65),0,BF18*INDIRECT($B$56&$A$56&$A$57))","v":0},null,null,null,{"$f":"IF(OR(BJ18='Einführung & Hilfe'!$B$65,BJ18='Einführung & Hilfe'!$C$65,BJ18='Einführung & Hilfe'!$D$65,BJ18='Einführung & Hilfe'!$E$65),0,BJ18*INDIRECT($B$56&$A$56&$A$57))","v":0},null,null,null,{"$f":"IF(OR(BN18='Einführung & Hilfe'!$B$65,BN18='Einführung & Hilfe'!$C$65,BN18='Einführung & Hilfe'!$D$65,BN18='Einführung & Hilfe'!$E$65),0,BN18*INDIRECT($B$56&$A$56&$A$57))","v":0},null,null,null,{"$f":"IF(OR(BR18='Einführung & Hilfe'!$B$65,BR18='Einführung & Hilfe'!$C$65,BR18='Einführung & Hilfe'!$D$65,BR18='Einführung & Hilfe'!$E$65),0,BR18*INDIRECT($B$56&$A$56&$A$57))","v":0}]
[null,null,5,{"$f":"INDIRECT(B56&A56&44)","v":200},null,null,"Immunität gegen Lehrlingszauber",null,null,null,"I",{"$f":"INDIRECT(B56&A56&88)","v":50},null,"Magieraub",null,null,100,null,null,"Eisatem",null,null,{"$f":"IF($L$21=$M$21,0,IF(AND($L$20=$M$20,W72<=50),0,IF(AND($L$19=$M$19,W72<=20),0,IF(AND($L$11=$M$11,V19=$V$53,W72<=20),0,IF(AND($L$10=$M$10,V19=$V$53,W72<=5),0,IF(W72=\"X\",\"X\",IF(V19=$V$54,$P$57*W72,IF(V19=$V$55,$P$58*W72,W72))))))))","v":20},null,"Magiespiegel",null,null,40,null,null,"Magische Rüstung II",null,null,40,null,null,null,null,null,null,null,null,null,null,null,null,null,null,null,null,null,null,null,null,null,null,null,null,{"$f":"IF(OR(BF19='Einführung & Hilfe'!$B$65,BF19='Einführung & Hilfe'!$C$65,BF19='Einführung & Hilfe'!$D$65,BF19='Einführung & Hilfe'!$E$65),0,BF19*INDIRECT($B$56&$A$56&$A$57))","v":0},null,null,null,{"$f":"IF(OR(BJ19='Einführung & Hilfe'!$B$65,BJ19='Einführung & Hilfe'!$C$65,BJ19='Einführung & Hilfe'!$D$65,BJ19='Einführung & Hilfe'!$E$65),0,BJ19*INDIRECT($B$56&$A$56&$A$57))","v":0},null,null,null,{"$f":"IF(OR(BN19='Einführung & Hilfe'!$B$65,BN19='Einführung & Hilfe'!$C$65,BN19='Einführung & Hilfe'!$D$65,BN19='Einführung & Hilfe'!$E$65),0,BN19*INDIRECT($B$56&$A$56&$A$57))","v":0},null,null,null,{"$f":"IF(OR(BR19='Einführung & Hilfe'!$B$65,BR19='Einführung & Hilfe'!$C$65,BR19='Einführung & Hilfe'!$D$65,BR19='Einführung & Hilfe'!$E$65),0,BR19*INDIRECT($B$56&$A$56&$A$57))","v":0}]
[null,null,6,{"$f":"INDIRECT(B56&A56&45)","v":400},null,null,"Immunität gegen Meisterzauber",null,null,null,"I",{"$f":"INDIRECT(B56&A56&89)","v":150},null,"Magiesicherung",null,null,30,null,null,"Erwachen",null,null,20,null,"Mentaler Bolzen",null,null,30,null,null,"Magische Rüstung III",null,null,70,null,null,null,null,null,null,null,null,null,null,null,null,null,null,null,null,null,null,null,null,null,null,null,null,{"$f":"IF(OR(BF20='Einführung & Hilfe'!$B$65,BF20='Einführung & Hilfe'!$C$65,BF20='Einführung & Hilfe'!$D$65,BF20='Einführung & Hilfe'!$E$65),0,BF20*INDIRECT($B$56&$A$56&$A$57))","v":0},null,null,null,{"$f":"IF(OR(BJ20='Einführung & Hilfe'!$B$65,BJ20='Einführung & Hilfe'!$C$65,BJ20='Einführung & Hilfe'!$D$65,BJ20='Einführung & Hilfe'!$E$65),0,BJ20*INDIRECT($B$56&$A$56&$A$57))","v":0},null,null,null,{"$f":"IF(OR(BN20='Einführung & Hilfe'!$B$65,BN20='Einführung & Hilfe'!$C$65,BN20='Einführung & Hilfe'!$D$65,BN20='Einführung & Hilfe'!$E$65),0,BN20*INDIRECT($B$56&$A$56&$A$57))","v":0},null,null,null,{"$f":"IF(OR(BR20='Einführung & Hilfe'!$B$65,BR20='Einführung & Hilfe'!$C$65,BR20='Einführung & Hilfe'!$D$65,BR20='Einführung & Hilfe'!$E$65),0,BR20*INDIRECT($B$56&$A$56&$A$57))","v":0}]
["Regeneration",null,1,{"$f":"INDIRECT(B56&A56&46)","v":50},null,null,"Immunität gegen alle Magie",null,null,null,"I",{"$f":"INDIRECT(B56&A56&90)","v":500},null,"Magische Suche",null,null,20,null,null,"Gift neutralisieren",null,null,30,null,"Mentaler Dolch",null,null,50,null,null,"Magische Rüstung IV",null,null,100,null,null,null,null,null,null,null,null,null,null,null,null,null,null,null,null,null,null,null,null,null,null,null,null,{"$f":"IF(OR(BF21='Einführung & Hilfe'!$B$65,BF21='Einführung & Hilfe'!$C$65,BF21='Einführung & Hilfe'!$D$65,BF21='Einführung & Hilfe'!$E$65),0,BF21*INDIRECT($B$56&$A$56&$A$57))","v":0},null,null,null,{"$f":"IF(OR(BJ21='Einführung & Hilfe'!$B$65,BJ21='Einführung & Hilfe'!$C$65,BJ21='Einführung & Hilfe'!$D$65,BJ21='Einführung & Hilfe'!$E$65),0,BJ21*INDIRECT($B$56&$A$56&$A$57))","v":0},null,null,null,{"$f":"IF(OR(BN21='Einführung & Hilfe'!$B$65,BN21='Einführung & Hilfe'!$C$65,BN21='Einführung & Hilfe'!$D$65,BN21='Einführung & Hilfe'!$E$65),0,BN21*INDIRECT($B$56&$A$56&$A$57))","v":0},null,null,null,{"$f":"IF(OR(BR21='Einführung & Hilfe'!$B$65,BR21='Einführung & Hilfe'!$C$65,BR21='Einführung & Hilfe'!$D$65,BR21='Einführung & Hilfe'!$E$65),0,BR21*INDIRECT($B$56&$A$56&$A$57))","v":0}]
[null,null,2,{"$f":"INDIRECT(B56&A56&47)","v":100},null,null,null,null,null,null,null,null,null,"Magische Waffe I",null,null,10,null,null,"Körper heilen",null,null,30,null,"Mentaler Nagel",null,null,20,null,null,"Magische Rüstung V",null,null,150,null,null,null,null,null,null,null,null,null,null,null,null,null,null,null,null,null,null,null,null,null,null,null,null,{"$f":"IF(OR(BF22='Einführung & Hilfe'!$B$65,BF22='Einführung & Hilfe'!$C$65,BF22='Einführung & Hilfe'!$D$65,BF22='Einführung & Hilfe'!$E$65),0,BF22*INDIRECT($B$56&$A$56&$A$57))","v":0},null,null,null,{"$f":"IF(OR(BJ22='Einführung & Hilfe'!$B$65,BJ22='Einführung & Hilfe'!$C$65,BJ22='Einführung & Hilfe'!$D$65,BJ22='Einführung & Hilfe'!$E$65),0,BJ22*INDIRECT($B$56&$A$56&$A$57))","v":0},null,null,null,{"$f":"IF(OR(BN22='Einführung & Hilfe'!$B$65,BN22='Einführung & Hilfe'!$C$65,BN22='Einführung & Hilfe'!$D$65,BN22='Einführung & Hilfe'!$E$65),0,BN22*INDIRECT($B$56&$A$56&$A$57))","v":0},null,null,null,{"$f":"IF(OR(BR22='Einführung & Hilfe'!$B$65,BR22='Einführung & Hilfe'!$C$65,BR22='Einführung & Hilfe'!$D$65,BR22='Einführung & Hilfe'!$E$65),0,BR22*INDIRECT($B$56&$A$56&$A$57))","v":0}]
[null,null,3,{"$f":"INDIRECT(B56&A56&48)","v":150},null,null,null,null,null,null,null,null,null,"Magische Waffe II",null,null,30,null,null,"Leben für Leben",null,null,250,null,{"$f":"IF('OT und Infos'!D11=INDIRECT(B56&A56&11),\"Waffe erhitzen\",\"Metall erhitzen I\")","v":"Metall erhitzen I"},null,null,10,null,null,"Magische Rüstung VI",null,null,200,null,null,null,null,null,null,null,null,null,null,null,null,null,null,null,null,null,null,null,null,null,null,null,null,{"$f":"IF(OR(BF23='Einführung & Hilfe'!$B$65,BF23='Einführung & Hilfe'!$C$65,BF23='Einführung & Hilfe'!$D$65,BF23='Einführung & Hilfe'!$E$65),0,BF23*INDIRECT($B$56&$A$56&$A$57))","v":0},null,null,null,{"$f":"IF(OR(BJ23='Einführung & Hilfe'!$B$65,BJ23='Einführung & Hilfe'!$C$65,BJ23='Einführung & Hilfe'!$D$65,BJ23='Einführung & Hilfe'!$E$65),0,BJ23*INDIRECT($B$56&$A$56&$A$57))","v":0},null,null,null,{"$f":"IF(OR(BN23='Einführung & Hilfe'!$B$65,BN23='Einführung & Hilfe'!$C$65,BN23='Einführung & Hilfe'!$D$65,BN23='Einführung & Hilfe'!$E$65),0,BN23*INDIRECT($B$56&$A$56&$A$57))","v":0},null,null,null,{"$f":"IF(OR(BR23='Einführung & Hilfe'!$B$65,BR23='Einführung & Hilfe'!$C$65,BR23='Einführung & Hilfe'!$D$65,BR23='Einführung & Hilfe'!$E$65),0,BR23*INDIRECT($B$56&$A$56&$A$57))","v":0}]
[null,null,4,{"$f":"INDIRECT(B56&A56&49)","v":200},null,null,null,null,null,null,null,null,null,"Magischer Gegenstand",null,null,50,null,null,"Lösen",null,null,10,null,"Metall erhitzen II",null,null,50,null,null,"Magischer Zirkel",null,null,20,null,null,null,null,null,null,null,null,null,null,null,null,null,null,null,null,null,null,null,null,null,null,null,null,{"$f":"IF(OR(BF24='Einführung & Hilfe'!$B$65,BF24='Einführung & Hilfe'!$C$65,BF24='Einführung & Hilfe'!$D$65,BF24='Einführung & Hilfe'!$E$65),0,BF24*INDIRECT($B$56&$A$56&$A$57))","v":0},null,null,null,{"$f":"IF(OR(BJ24='Einführung & Hilfe'!$B$65,BJ24='Einführung & Hilfe'!$C$65,BJ24='Einführung & Hilfe'!$D$65,BJ24='Einführung & Hilfe'!$E$65),0,BJ24*INDIRECT($B$56&$A$56&$A$57))","v":0},null,null,null,{"$f":"IF(OR(BN24='Einführung & Hilfe'!$B$65,BN24='Einführung & Hilfe'!$C$65,BN24='Einführung & Hilfe'!$D$65,BN24='Einführung & Hilfe'!$E$65),0,BN24*INDIRECT($B$56&$A$56&$A$57))","v":0},null,null,null,{"$f":"IF(OR(BR24='Einführung & Hilfe'!$B$65,BR24='Einführung & Hilfe'!$C$65,BR24='Einführung & Hilfe'!$D$65,BR24='Einführung & Hilfe'!$E$65),0,BR24*INDIRECT($B$56&$A$56&$A$57))","v":0}]
["Seelenschutz",null,null,{"$f":"INDIRECT(B56&A56&50)","v":50},null,null,null,null,null,null,null,null,null,"Magischer Riegel",null,null,10,null,null,"Magie übertragen",null,null,50,null,"Ogerstärke",null,null,50,null,null,{"$f":"IF('OT und Infos'!D11=INDIRECT(B56&A56&11),\"Schutz vor Magie\",\"Meisterschutz\")","v":"Meisterschutz"},{"$f":"IF(AND(OR(B7='OT und Infos'!A24,B7='OT und Infos'!A16),M11=100),\"(Großmeister)\",\"\")","v":""},null,{"$f":"IF(OR($L$21=$M$21,$L$11=$M$11),0,IF(AND($L$20=$M$20,AH78<=50),0,IF(AND($L$19=$M$19,AH78<=20),0,IF(AND($L$11=$M$11,AG25=$V$53,AH78<=20),0,IF(AND($L$10=$M$10,AG25=$V$53,AH78<=5),0,IF(AH78=\"X\",\"X\",IF(AG25=$V$54,$P$57*AH78,IF(AG25=$V$55,$P$58*AH78,AH78))))))))","v":100},null,null,null,null,null,null,null,null,null,null,null,null,null,null,null,null,null,null,null,null,null,null,null,null,{"$f":"IF(OR(BF25='Einführung & Hilfe'!$B$65,BF25='Einführung & Hilfe'!$C$65,BF25='Einführung & Hilfe'!$D$65,BF25='Einführung & Hilfe'!$E$65),0,BF25*INDIRECT($B$56&$A$56&$A$57))","v":0},null,null,null,{"$f":"IF(OR(BJ25='Einführung & Hilfe'!$B$65,BJ25='Einführung & Hilfe'!$C$65,BJ25='Einführung & Hilfe'!$D$65,BJ25='Einführung & Hilfe'!$E$65),0,BJ25*INDIRECT($B$56&$A$56&$A$57))","v":0},null,null,null,{"$f":"IF(OR(BN25='Einführung & Hilfe'!$B$65,BN25='Einführung & Hilfe'!$C$65,BN25='Einführung & Hilfe'!$D$65,BN25='Einführung & Hilfe'!$E$65),0,BN25*INDIRECT($B$56&$A$56&$A$57))","v":0},null,null,null,{"$f":"IF(OR(BR25='Einführung & Hilfe'!$B$65,BR25='Einführung & Hilfe'!$C$65,BR25='Einführung & Hilfe'!$D$65,BR25='Einführung & Hilfe'!$E$65),0,BR25*INDIRECT($B$56&$A$56&$A$57))","v":0}]
["Summe I:",null,null,null,{"$f":"SUM(SUMIF(D10:D25,\">0\",E10:E25),SUMIF(D10:D25,\"EXP\",E10:E25))","v":0},null,null,null,null,null,null,null,null,"Magisches Schloss",null,null,30,null,null,"Regeneration",null,null,40,null,"Orkanböe",null,null,50,null,null,"Schutz vor heil. / göttl. Waffen",null,null,500,null,null,null,null,null,null,null,null,null,null,null,null,null,null,null,null,null,null,null,null,null,null,null,null,{"$f":"IF(OR(BF26='Einführung & Hilfe'!$B$65,BF26='Einführung & Hilfe'!$C$65,BF26='Einführung & Hilfe'!$D$65,BF26='Einführung & Hilfe'!$E$65),0,BF26*INDIRECT($B$56&$A$56&$A$57))","v":0},null,null,null,{"$f":"IF(OR(BJ26='Einführung & Hilfe'!$B$65,BJ26='Einführung & Hilfe'!$C$65,BJ26='Einführung & Hilfe'!$D$65,BJ26='Einführung & Hilfe'!$E$65),0,BJ26*INDIRECT($B$56&$A$56&$A$57))","v":0},null,null,null,{"$f":"IF(OR(BN26='Einführung & Hilfe'!$B$65,BN26='Einführung & Hilfe'!$C$65,BN26='Einführung & Hilfe'!$D$65,BN26='Einführung & Hilfe'!$E$65),0,BN26*INDIRECT($B$56&$A$56&$A$57))","v":0},null,null,null,{"$f":"IF(OR(BR26='Einführung & Hilfe'!$B$65,BR26='Einführung & Hilfe'!$C$65,BR26='Einführung & Hilfe'!$D$65,BR26='Einführung & Hilfe'!$E$65),0,BR26*INDIRECT($B$56&$A$56&$A$57))","v":0}]
[null,null,null,null,null,null,null,null,null,null,null,null,null,"Mit Toten sprechen",null,null,20,null,null,"Traum des ewigen Lebens",null,null,250,null,"Schlaf",null,null,20,null,null,"Schutz vor mag. / gew. Waffen",null,null,300,null,null,null,null,null,null,null,null,null,null,null,null,null,null,null,null,null,null,null,null,null,null,null,null,{"$f":"IF(OR(BF27='Einführung & Hilfe'!$B$65,BF27='Einführung & Hilfe'!$C$65,BF27='Einführung & Hilfe'!$D$65,BF27='Einführung & Hilfe'!$E$65),0,BF27*INDIRECT($B$56&$A$56&$A$57))","v":0},null,null,null,{"$f":"IF(OR(BJ27='Einführung & Hilfe'!$B$65,BJ27='Einführung & Hilfe'!$C$65,BJ27='Einführung & Hilfe'!$D$65,BJ27='Einführung & Hilfe'!$E$65),0,BJ27*INDIRECT($B$56&$A$56&$A$57))","v":0},null,null,null,{"$f":"IF(OR(BN27='Einführung & Hilfe'!$B$65,BN27='Einführung & Hilfe'!$C$65,BN27='Einführung & Hilfe'!$D$65,BN27='Einführung & Hilfe'!$E$65),0,BN27*INDIRECT($B$56&$A$56&$A$57))","v":0},null,null,null,{"$f":"IF(OR(BR27='Einführung & Hilfe'!$B$65,BR27='Einführung & Hilfe'!$C$65,BR27='Einführung & Hilfe'!$D$65,BR27='Einführung & Hilfe'!$E$65),0,BR27*INDIRECT($B$56&$A$56&$A$57))","v":0}]
["II. Abenteurerfertigkeiten",null,null,null,null,null,null,null,null,null,null,null,null,"Schloss öffnen",null,null,30,null,null,"Wiederbeleben",null,null,100,null,"Schmerz",null,null,40,null,null,"Schutz vor normalen Waffen",null,null,200,null,null,null,null,null,null,null,null,null,null,null,null,null,null,null,null,null,null,null,null,null,null,null,null,{"$f":"IF(OR(BF28='Einführung & Hilfe'!$B$65,BF28='Einführung & Hilfe'!$C$65,BF28='Einführung & Hilfe'!$D$65,BF28='Einführung & Hilfe'!$E$65),0,BF28*INDIRECT($B$56&$A$56&$A$57))","v":0},null,null,null,{"$f":"IF(OR(BJ28='Einführung & Hilfe'!$B$65,BJ28='Einführung & Hilfe'!$C$65,BJ28='Einführung & Hilfe'!$D$65,BJ28='Einführung & Hilfe'!$E$65),0,BJ28*INDIRECT($B$56&$A$56&$A$57))","v":0},null,null,null,{"$f":"IF(OR(BN28='Einführung & Hilfe'!$B$65,BN28='Einführung & Hilfe'!$C$65,BN28='Einführung & Hilfe'!$D$65,BN28='Einführung & Hilfe'!$E$65),0,BN28*INDIRECT($B$56&$A$56&$A$57))","v":0},null,null,null,{"$f":"IF(OR(BR28='Einführung & Hilfe'!$B$65,BR28='Einführung & Hilfe'!$C$65,BR28='Einführung & Hilfe'!$D$65,BR28='Einführung & Hilfe'!$E$65),0,BR28*INDIRECT($B$56&$A$56&$A$57))","v":0}]
["Adel",null,null,{"$f":"INDIRECT(B56&A56&53)","v":"EXP"},null,null,null,null,null,null,null,null,null,"Seelenbann",null,null,150,null,null,"Wiederkehr",null,null,50,null,"Schreckensbolzen",null,null,40,null,null,"Seelenrüstung I",null,null,40,null,null,null,null,null,null,null,null,null,null,null,null,null,null,null,null,null,null,null,null,null,null,null,null,{"$f":"IF(OR(BF29='Einführung & Hilfe'!$B$65,BF29='Einführung & Hilfe'!$C$65,BF29='Einführung & Hilfe'!$D$65,BF29='Einführung & Hilfe'!$E$65),0,BF29*INDIRECT($B$56&$A$56&$A$57))","v":0},null,null,null,{"$f":"IF(OR(BJ29='Einführung & Hilfe'!$B$65,BJ29='Einführung & Hilfe'!$C$65,BJ29='Einführung & Hilfe'!$D$65,BJ29='Einführung & Hilfe'!$E$65),0,BJ29*INDIRECT($B$56&$A$56&$A$57))","v":0},null,null,null,{"$f":"IF(OR(BN29='Einführung & Hilfe'!$B$65,BN29='Einführung & Hilfe'!$C$65,BN29='Einführung & Hilfe'!$D$65,BN29='Einführung & Hilfe'!$E$65),0,BN29*INDIRECT($B$56&$A$56&$A$57))","v":0},null,null,null,{"$f":"IF(OR(BR29='Einführung & Hilfe'!$B$65,BR29='Einführung & Hilfe'!$C$65,BR29='Einführung & Hilfe'!$D$65,BR29='Einführung & Hilfe'!$E$65),0,BR29*INDIRECT($B$56&$A$56&$A$57))","v":0}]
["Alchemie / Giftkunde / Trankkunde",null,null,{"$f":"INDIRECT(B56&A56&54)","v":"EXP"},null,null,null,null,null,null,null,null,null,"Zauber binden",null,null,30,null,null,"Wunde heilen",null,null,20,null,"Schreckenshand",null,null,30,null,null,"Seelenrüstung II",null,null,80,null,null,null,null,null,null,null,null,null,null,null,null,null,null,null,null,null,null,null,null,null,null,null,null,{"$f":"IF(OR(BF30='Einführung & Hilfe'!$B$65,BF30='Einführung & Hilfe'!$C$65,BF30='Einführung & Hilfe'!$D$65,BF30='Einführung & Hilfe'!$E$65),0,BF30*INDIRECT($B$56&$A$56&$A$57))","v":0},null,null,null,{"$f":"IF(OR(BJ30='Einführung & Hilfe'!$B$65,BJ30='Einführung & Hilfe'!$C$65,BJ30='Einführung & Hilfe'!$D$65,BJ30='Einführung & Hilfe'!$E$65),0,BJ30*INDIRECT($B$56&$A$56&$A$57))","v":0},null,null,null,{"$f":"IF(OR(BN30='Einführung & Hilfe'!$B$65,BN30='Einführung & Hilfe'!$C$65,BN30='Einführung & Hilfe'!$D$65,BN30='Einführung & Hilfe'!$E$65),0,BN30*INDIRECT($B$56&$A$56&$A$57))","v":0},null,null,null,{"$f":"IF(OR(BR30='Einführung & Hilfe'!$B$65,BR30='Einführung & Hilfe'!$C$65,BR30='Einführung & Hilfe'!$D$65,BR30='Einführung & Hilfe'!$E$65),0,BR30*INDIRECT($B$56&$A$56&$A$57))","v":0}]
["Entfesseln",null,null,{"$f":"INDIRECT(B56&A56&55)","v":50},null,null,null,null,null,null,null,null,null,"Zeitkontrolle",null,null,50,null,null,"Wunde übertragen",null,null,10,null,"Schreckenswaffe",null,null,40,null,null,"Seelenrüstung III",null,null,140,null,null,null,null,null,null,null,null,null,null,null,null,null,null,null,null,null,null,null,null,null,null,null,null,{"$f":"IF(OR(BF31='Einführung & Hilfe'!$B$65,BF31='Einführung & Hilfe'!$C$65,BF31='Einführung & Hilfe'!$D$65,BF31='Einführung & Hilfe'!$E$65),0,BF31*INDIRECT($B$56&$A$56&$A$57))","v":0},null,null,null,{"$f":"IF(OR(BJ31='Einführung & Hilfe'!$B$65,BJ31='Einführung & Hilfe'!$C$65,BJ31='Einführung & Hilfe'!$D$65,BJ31='Einführung & Hilfe'!$E$65),0,BJ31*INDIRECT($B$56&$A$56&$A$57))","v":0},null,null,null,{"$f":"IF(OR(BN31='Einführung & Hilfe'!$B$65,BN31='Einführung & Hilfe'!$C$65,BN31='Einführung & Hilfe'!$D$65,BN31='Einführung & Hilfe'!$E$65),0,BN31*INDIRECT($B$56&$A$56&$A$57))","v":0},null,null,null,{"$f":"IF(OR(BR31='Einführung & Hilfe'!$B$65,BR31='Einführung & Hilfe'!$C$65,BR31='Einführung & Hilfe'!$D$65,BR31='Einführung & Hilfe'!$E$65),0,BR31*INDIRECT($B$56&$A$56&$A$57))","v":0}]
["Fallenkunde",null,null,{"$f":"INDIRECT(B56&A56&56)","v":"EXP"},null,null,null,null,null,null,null,null,null,"Zweites Gesicht",null,null,40,null,null,"Wunde verschieben",null,null,10,null,"Todeshand",null,null,100,null,null,"Seelenrüstung IV",null,null,200,null,null,null,null,null,null,null,null,null,null,null,null,null,null,null,null,null,null,null,null,null,null,null,null,{"$f":"IF(OR(BF32='Einführung & Hilfe'!$B$65,BF32='Einführung & Hilfe'!$C$65,BF32='Einführung & Hilfe'!$D$65,BF32='Einführung & Hilfe'!$E$65),0,BF32*INDIRECT($B$56&$A$56&$A$57))","v":0},null,null,null,{"$f":"IF(OR(BJ32='Einführung & Hilfe'!$B$65,BJ32='Einführung & Hilfe'!$C$65,BJ32='Einführung & Hilfe'!$D$65,BJ32='Einführung & Hilfe'!$E$65),0,BJ32*INDIRECT($B$56&$A$56&$A$57))","v":0},null,null,null,{"$f":"IF(OR(BN32='Einführung & Hilfe'!$B$65,BN32='Einführung & Hilfe'!$C$65,BN32='Einführung & Hilfe'!$D$65,BN32='Einführung & Hilfe'!$E$65),0,BN32*INDIRECT($B$56&$A$56&$A$57))","v":0},null,null,null,{"$f":"IF(OR(BR32='Einführung & Hilfe'!$B$65,BR32='Einführung & Hilfe'!$C$65,BR32='Einführung & Hilfe'!$D$65,BR32='Einführung & Hilfe'!$E$65),0,BR32*INDIRECT($B$56&$A$56&$A$57))","v":0}]
["Feuer machen",null,null,{"$f":"INDIRECT(B56&A56&57)","v":10},null,null,null,null,null,null,null,null,null,"Summe Allgemein:",null,null,null,{"$f":"SUM(SUMIF(Q4:Q32,\">0\",R4:R32),SUMIF(Q4:Q32,\"EXP\",R4:R32))","v":0},null,"Wunde zufügen",null,null,40,null,"Versteinern",null,null,50,null,null,"Seelenrüstung V",null,null,300,null,null,null,null,null,null,null,null,null,null,null,null,null,null,null,null,null,null,null,null,null,null,null,null,{"$f":"IF(OR(BF33='Einführung & Hilfe'!$B$65,BF33='Einführung & Hilfe'!$C$65,BF33='Einführung & Hilfe'!$D$65,BF33='Einführung & Hilfe'!$E$65),0,BF33*INDIRECT($B$56&$A$56&$A$57))","v":0},null,null,null,{"$f":"IF(OR(BJ33='Einführung & Hilfe'!$B$65,BJ33='Einführung & Hilfe'!$C$65,BJ33='Einführung & Hilfe'!$D$65,BJ33='Einführung & Hilfe'!$E$65),0,BJ33*INDIRECT($B$56&$A$56&$A$57))","v":0},null,null,null,{"$f":"IF(OR(BN33='Einführung & Hilfe'!$B$65,BN33='Einführung & Hilfe'!$C$65,BN33='Einführung & Hilfe'!$D$65,BN33='Einführung & Hilfe'!$E$65),0,BN33*INDIRECT($B$56&$A$56&$A$57))","v":0},null,null,null,{"$f":"IF(OR(BR33='Einführung & Hilfe'!$B$65,BR33='Einführung & Hilfe'!$C$65,BR33='Einführung & Hilfe'!$D$65,BR33='Einführung & Hilfe'!$E$65),0,BR33*INDIRECT($B$56&$A$56&$A$57))","v":0}]
[{"$f":"IF('OT und Infos'!D11=INDIRECT(B56&A56&11),\"Fachwissen Geschichten/Legenden\",\"Geschichten & Legenden\")","v":"Geschichten & Legenden"},null,null,{"$f":"INDIRECT(B56&A56&58)","v":"EXP"},null,null,null,null,null,null,null,null,null,null,null,null,null,null,null,"Zombie I",null,null,30,null,"Verwandeln",null,null,40,null,null,"Seelenrüstung VI",null,null,400,null,null,null,null,null,null,null,null,null,null,null,null,null,null,null,null,null,null,null,null,null,null,null,null,{"$f":"IF(OR(BF34='Einführung & Hilfe'!$B$65,BF34='Einführung & Hilfe'!$C$65,BF34='Einführung & Hilfe'!$D$65,BF34='Einführung & Hilfe'!$E$65),0,BF34*INDIRECT($B$56&$A$56&$A$57))","v":0},null,null,null,{"$f":"IF(OR(BJ34='Einführung & Hilfe'!$B$65,BJ34='Einführung & Hilfe'!$C$65,BJ34='Einführung & Hilfe'!$D$65,BJ34='Einführung & Hilfe'!$E$65),0,BJ34*INDIRECT($B$56&$A$56&$A$57))","v":0},null,null,null,{"$f":"IF(OR(BN34='Einführung & Hilfe'!$B$65,BN34='Einführung & Hilfe'!$C$65,BN34='Einführung & Hilfe'!$D$65,BN34='Einführung & Hilfe'!$E$65),0,BN34*INDIRECT($B$56&$A$56&$A$57))","v":0},null,null,null,{"$f":"IF(OR(BR34='Einführung & Hilfe'!$B$65,BR34='Einführung & Hilfe'!$C$65,BR34='Einführung & Hilfe'!$D$65,BR34='Einführung & Hilfe'!$E$65),0,BR34*INDIRECT($B$56&$A$56&$A$57))","v":0}]
[{"$f":"IF('OT und Infos'!D11=INDIRECT(B56&A56&11),\"Fachwissen Handel\",\"Handel\")","v":"Handel"},null,null,{"$f":"INDIRECT(B56&A56&59)","v":"EXP"},null,null,null,null,null,null,null,null,null,"Beeinflussung",null,null,null,null,null,"Zombie II",null,null,50,null,"Verwurzeln",null,null,20,null,null,"Totaler Magieschutz",null,null,30,null,null,null,null,null,null,null,null,null,null,null,null,null,null,null,null,null,null,null,null,null,null,null,null,{"$f":"IF(OR(BF35='Einführung & Hilfe'!$B$65,BF35='Einführung & Hilfe'!$C$65,BF35='Einführung & Hilfe'!$D$65,BF35='Einführung & Hilfe'!$E$65),0,BF35*INDIRECT($B$56&$A$56&$A$57))","v":0},null,null,null,{"$f":"IF(OR(BJ35='Einführung & Hilfe'!$B$65,BJ35='Einführung & Hilfe'!$C$65,BJ35='Einführung & Hilfe'!$D$65,BJ35='Einführung & Hilfe'!$E$65),0,BJ35*INDIRECT($B$56&$A$56&$A$57))","v":0},null,null,null,{"$f":"IF(OR(BN35='Einführung & Hilfe'!$B$65,BN35='Einführung & Hilfe'!$C$65,BN35='Einführung & Hilfe'!$D$65,BN35='Einführung & Hilfe'!$E$65),0,BN35*INDIRECT($B$56&$A$56&$A$57))","v":0},null,null,null,{"$f":"IF(OR(BR35='Einführung & Hilfe'!$B$65,BR35='Einführung & Hilfe'!$C$65,BR35='Einführung & Hilfe'!$D$65,BR35='Einführung & Hilfe'!$E$65),0,BR35*INDIRECT($B$56&$A$56&$A$57))","v":0}]
[{"$f":"IF(INDIRECT(B56&A56&60)=\"X\",\"Heilkunde\",\"Erste Hilfe (10) / Heilkunde (30)\")","v":"Erste Hilfe (10) / Heilkunde (30)"},null,{"$f":"IF(INDIRECT(B56&A56&61)=\"X\",\"\",1)","v":""},{"$f":"IF(INDIRECT(B56&A56&60)=\"X\",INDIRECT(B56&A56&61),INDIRECT(B56&A56&60))","v":30},null,null,null,null,null,null,null,null,null,"Auftrag",null,null,{"$f":"IF($L$21=$M$21,0,IF(AND($L$20=$M$20,Q89<=50),0,IF(AND($L$19=$M$19,Q89<=20),0,IF(AND($L$11=$M$11,P36=$V$53,Q89<=20),0,IF(AND($L$10=$M$10,P36=$V$53,Q89<=5),0,IF(Q89=\"X\",\"X\",IF(P36=$V$54,$P$57*Q89,IF(P36=$V$55,$P$58*Q89,Q89))))))))","v":100},null,null,"Zombie III",null,null,100,null,"Windstoß",null,null,20,null,null,"Summe Schutz:",null,null,null,{"$f":"SUM(SUMIF(AH4:AH35,\">0\",AI4:AI35),SUMIF(AH4:AH35,\"EXP\",AI4:AI35))","v":0},null,null,null,null,null,null,null,null,null,null,null,null,null,null,null,null,null,null,null,null,null,null,null,{"$f":"IF(OR(BF36='Einführung & Hilfe'!$B$65,BF36='Einführung & Hilfe'!$C$65,BF36='Einführung & Hilfe'!$D$65,BF36='Einführung & Hilfe'!$E$65),0,BF36*INDIRECT($B$56&$A$56&$A$57))","v":0},null,null,null,{"$f":"IF(OR(BJ36='Einführung & Hilfe'!$B$65,BJ36='Einführung & Hilfe'!$C$65,BJ36='Einführung & Hilfe'!$D$65,BJ36='Einführung & Hilfe'!$E$65),0,BJ36*INDIRECT($B$56&$A$56&$A$57))","v":0},null,null,null,{"$f":"IF(OR(BN36='Einführung & Hilfe'!$B$65,BN36='Einführung & Hilfe'!$C$65,BN36='Einführung & Hilfe'!$D$65,BN36='Einführung & Hilfe'!$E$65),0,BN36*INDIRECT($B$56&$A$56&$A$57))","v":0},null,null,null,{"$f":"IF(OR(BR36='Einführung & Hilfe'!$B$65,BR36='Einführung & Hilfe'!$C$65,BR36='Einführung & Hilfe'!$D$65,BR36='Einführung & Hilfe'!$E$65),0,BR36*INDIRECT($B$56&$A$56&$A$57))","v":0}]
["Heilkunde",null,2,{"$f":"INDIRECT(B56&A56&62)","v":"X"},null,null,null,null,null,null,null,null,null,"Berserker I",{"$f":"IF(D25=E25,\"(Seelenschutz)\",\"\")","v":""},null,10,null,null,"Summe Heilung:",null,null,null,{"$f":"SUM(SUMIF(W19:W36,\">0\",X19:X36),SUMIF(W19:W36,\"EXP\",X19:X36))","v":0},"Zerstören",null,null,60,null,null,null,null,null,null,null,null,null,null,null,null,null,null,null,null,null,null,null,null,null,null,null,null,null,null,null,null,null,null,{"$f":"IF(OR(BF37='Einführung & Hilfe'!$B$65,BF37='Einführung & Hilfe'!$C$65,BF37='Einführung & Hilfe'!$D$65,BF37='Einführung & Hilfe'!$E$65),0,BF37*INDIRECT($B$56&$A$56&$A$57))","v":0},null,null,null,{"$f":"IF(OR(BJ37='Einführung & Hilfe'!$B$65,BJ37='Einführung & Hilfe'!$C$65,BJ37='Einführung & Hilfe'!$D$65,BJ37='Einführung & Hilfe'!$E$65),0,BJ37*INDIRECT($B$56&$A$56&$A$57))","v":0},null,null,null,{"$f":"IF(OR(BN37='Einführung & Hilfe'!$B$65,BN37='Einführung & Hilfe'!$C$65,BN37='Einführung & Hilfe'!$D$65,BN37='Einführung & Hilfe'!$E$65),0,BN37*INDIRECT($B$56&$A$56&$A$57))","v":0},null,null,null,{"$f":"IF(OR(BR37='Einführung & Hilfe'!$B$65,BR37='Einführung & Hilfe'!$C$65,BR37='Einführung & Hilfe'!$D$65,BR37='Einführung & Hilfe'!$E$65),0,BR37*INDIRECT($B$56&$A$56&$A$57))","v":0}]
["Heilkunde",null,3,{"$f":"INDIRECT(B56&A56&63)","v":"X"},null,null,null,null,null,null,null,null,null,"Berserker II",{"$f":"IF(D25=E25,\"(Seelenschutz)\",\"\")","v":""},null,20,null,null,null,null,null,null,null,"Summe Kampf:",null,null,null,{"$f":"SUM(SUMIF(AB4:AB37,\">0\",AC4:AC37),SUMIF(AB4:AB37,\"EXP\",AC4:AC37))","v":0},null,null,null,null,null,null,null,null,null,null,null,null,null,null,null,null,null,null,null,null,null,null,null,null,null,null,null,null,null,{"$f":"IF(OR(BF38='Einführung & Hilfe'!$B$65,BF38='Einführung & Hilfe'!$C$65,BF38='Einführung & Hilfe'!$D$65,BF38='Einführung & Hilfe'!$E$65),0,BF38*INDIRECT($B$56&$A$56&$A$57))","v":0},null,null,null,{"$f":"IF(OR(BJ38='Einführung & Hilfe'!$B$65,BJ38='Einführung & Hilfe'!$C$65,BJ38='Einführung & Hilfe'!$D$65,BJ38='Einführung & Hilfe'!$E$65),0,BJ38*INDIRECT($B$56&$A$56&$A$57))","v":0},null,null,null,{"$f":"IF(OR(BN38='Einführung & Hilfe'!$B$65,BN38='Einführung & Hilfe'!$C$65,BN38='Einführung & Hilfe'!$D$65,BN38='Einführung & Hilfe'!$E$65),0,BN38*INDIRECT($B$56&$A$56&$A$57))","v":0},null,null,null,{"$f":"IF(OR(BR38='Einführung & Hilfe'!$B$65,BR38='Einführung & Hilfe'!$C$65,BR38='Einführung & Hilfe'!$D$65,BR38='Einführung & Hilfe'!$E$65),0,BR38*INDIRECT($B$56&$A$56&$A$57))","v":0}]
[{"$f":"IF('OT und Infos'!D11=INDIRECT(B56&A56&11),\"Immunität gegen Tränke\",\"Immunität gegen Gift\")","v":"Immunität gegen Gift"},null,null,{"$f":"INDIRECT(B56&A56&64)","v":"EXP"},null,null,null,null,null,null,null,null,null,"Berserker III",{"$f":"IF(D25=E25,\"(Seelenschutz)\",\"\")","v":""},null,30,null,null,"Klerikal",null,null,null,null,null,null,null,null,null,null,null,null,null,null,null,null,null,null,null,null,null,null,null,null,null,null,null,null,null,null,null,null,null,null,null,null,null,null,{"$f":"IF(OR(BF39='Einführung & Hilfe'!$B$65,BF39='Einführung & Hilfe'!$C$65,BF39='Einführung & Hilfe'!$D$65,BF39='Einführung & Hilfe'!$E$65),0,BF39*INDIRECT($B$56&$A$56&$A$57))","v":0},null,null,null,{"$f":"IF(OR(BJ39='Einführung & Hilfe'!$B$65,BJ39='Einführung & Hilfe'!$C$65,BJ39='Einführung & Hilfe'!$D$65,BJ39='Einführung & Hilfe'!$E$65),0,BJ39*INDIRECT($B$56&$A$56&$A$57))","v":0},null,null,null,{"$f":"IF(OR(BN39='Einführung & Hilfe'!$B$65,BN39='Einführung & Hilfe'!$C$65,BN39='Einführung & Hilfe'!$D$65,BN39='Einführung & Hilfe'!$E$65),0,BN39*INDIRECT($B$56&$A$56&$A$57))","v":0},null,null,null,{"$f":"IF(OR(BR39='Einführung & Hilfe'!$B$65,BR39='Einführung & Hilfe'!$C$65,BR39='Einführung & Hilfe'!$D$65,BR39='Einführung & Hilfe'!$E$65),0,BR39*INDIRECT($B$56&$A$56&$A$57))","v":0}]
["Kräuterkunde",null,null,{"$f":"INDIRECT(B56&A56&65)","v":"EXP"},null,null,null,null,null,null,null,null,null,"Berserker IV",{"$f":"IF(D25=E25,\"(Seelenschutz)\",\"\")","v":""},null,50,null,null,"Waffe segnen",null,null,{"$f":"IF($L$21=$M$21,0,IF(AND($L$20=$M$20,W93<=50),0,IF(AND($L$19=$M$19,W93<=20),0,IF(AND($L$11=$M$11,V40=$V$53,W93<=20),0,IF(AND($L$10=$M$10,V40=$V$53,W93<=5),0,IF(W93=\"X\",\"X\",IF(V40=$V$54,$P$57*W93,IF(V40=$V$55,$P$58*W93,W93))))))))","v":20},null,null,null,null,null,null,null,null,null,null,null,null,null,null,null,null,null,null,null,null,null,null,null,null,null,null,null,null,null,null,null,null,null,null,null,{"$f":"IF(OR(BF40='Einführung & Hilfe'!$B$65,BF40='Einführung & Hilfe'!$C$65,BF40='Einführung & Hilfe'!$D$65,BF40='Einführung & Hilfe'!$E$65),0,BF40*INDIRECT($B$56&$A$56&$A$57))","v":0},null,null,null,{"$f":"IF(OR(BJ40='Einführung & Hilfe'!$B$65,BJ40='Einführung & Hilfe'!$C$65,BJ40='Einführung & Hilfe'!$D$65,BJ40='Einführung & Hilfe'!$E$65),0,BJ40*INDIRECT($B$56&$A$56&$A$57))","v":0},null,null,null,{"$f":"IF(OR(BN40='Einführung & Hilfe'!$B$65,BN40='Einführung & Hilfe'!$C$65,BN40='Einführung & Hilfe'!$D$65,BN40='Einführung & Hilfe'!$E$65),0,BN40*INDIRECT($B$56&$A$56&$A$57))","v":0},null,null,null,{"$f":"IF(OR(BR40='Einführung & Hilfe'!$B$65,BR40='Einführung & Hilfe'!$C$65,BR40='Einführung & Hilfe'!$D$65,BR40='Einführung & Hilfe'!$E$65),0,BR40*INDIRECT($B$56&$A$56&$A$57))","v":0}]
["Magischer Gegenstand",null,null,{"$f":"INDIRECT(B56&A56&66)","v":"EXP"},null,null,null,null,null,null,null,null,null,"Feueraugen",{"$f":"IF(D25=E25,\"(Seelenschutz)\",\"\")","v":""},null,10,null,null,"Waffe weihen",null,null,{"$f":"IF(INDIRECT($B$56&$A$56&189)=\"X\",\"X\",IF(V41=$V$54,INDIRECT($B$56&$A$56&96)*INDIRECT($B$56&$A$56&189),IF(AND(V41=$V$55,INDIRECT($B$56&$A$56&189)<=INDIRECT($B$56&$A$56&99)),INDIRECT($B$56&$A$56&98)*INDIRECT($B$56&$A$56&189),INDIRECT($B$56&$A$56&189))))","v":60},null,null,null,null,null,null,null,null,null,null,null,null,null,null,null,null,{"$f":"CONCATENATE(\"Rüstungswertigkeit \",F5,\" \",B5)","v":"Rüstungswertigkeit  "},null,null,null,null,null,null,null,null,null,null,null,null,null,null,null,null,null,null,{"$f":"IF(OR(BF41='Einführung & Hilfe'!$B$65,BF41='Einführung & Hilfe'!$C$65,BF41='Einführung & Hilfe'!$D$65,BF41='Einführung & Hilfe'!$E$65),0,BF41*INDIRECT($B$56&$A$56&$A$57))","v":0},null,null,null,{"$f":"IF(OR(BJ41='Einführung & Hilfe'!$B$65,BJ41='Einführung & Hilfe'!$C$65,BJ41='Einführung & Hilfe'!$D$65,BJ41='Einführung & Hilfe'!$E$65),0,BJ41*INDIRECT($B$56&$A$56&$A$57))","v":0},null,null,null,{"$f":"IF(OR(BN41='Einführung & Hilfe'!$B$65,BN41='Einführung & Hilfe'!$C$65,BN41='Einführung & Hilfe'!$D$65,BN41='Einführung & Hilfe'!$E$65),0,BN41*INDIRECT($B$56&$A$56&$A$57))","v":0},null,null,null,{"$f":"IF(OR(BR41='Einführung & Hilfe'!$B$65,BR41='Einführung & Hilfe'!$C$65,BR41='Einführung & Hilfe'!$D$65,BR41='Einführung & Hilfe'!$E$65),0,BR41*INDIRECT($B$56&$A$56&$A$57))","v":0}]
["Meucheln",null,{"$f":"IF(INDIRECT(B56&A56&68)=\"X\",\"\",1)","v":1},{"$f":"IF(INDIRECT(B56&A56&67)=\"X\",INDIRECT(B56&A56&68),INDIRECT(B56&A56&67))","v":20},null,null,null,null,null,null,null,null,null,{"$f":"IF('OT und Infos'!D11=INDIRECT(B56&A56&11),\"Fluch I\",\"Fluch\")","v":"Fluch"},{"$f":"IF(D25=E25,\"(Seelenschutz)\",\"\")","v":""},null,20,null,null,"Summe Klerikal:",null,null,null,{"$f":"SUM(SUMIF(W40:W41,\">0\",X40:X41),SUMIF(W40:W41,\"EXP\",X40:X41))","v":0},null,null,null,null,null,null,null,null,null,null,null,null,null,null,null,"Zone","Hauptrüstung",null,null,"Unter- / Nebenrüstung",null,null,"Gesamt",null,null,null,null,null,null,null,null,null,null,null,{"$f":"IF(OR(BF42='Einführung & Hilfe'!$B$65,BF42='Einführung & Hilfe'!$C$65,BF42='Einführung & Hilfe'!$D$65,BF42='Einführung & Hilfe'!$E$65),0,BF42*INDIRECT($B$56&$A$56&$A$57))","v":0},null,null,null,{"$f":"IF(OR(BJ42='Einführung & Hilfe'!$B$65,BJ42='Einführung & Hilfe'!$C$65,BJ42='Einführung & Hilfe'!$D$65,BJ42='Einführung & Hilfe'!$E$65),0,BJ42*INDIRECT($B$56&$A$56&$A$57))","v":0},null,null,null,{"$f":"IF(OR(BN42='Einführung & Hilfe'!$B$65,BN42='Einführung & Hilfe'!$C$65,BN42='Einführung & Hilfe'!$D$65,BN42='Einführung & Hilfe'!$E$65),0,BN42*INDIRECT($B$56&$A$56&$A$57))","v":0},null,null,null,{"$f":"IF(OR(BR42='Einführung & Hilfe'!$B$65,BR42='Einführung & Hilfe'!$C$65,BR42='Einführung & Hilfe'!$D$65,BR42='Einführung & Hilfe'!$E$65),0,BR42*INDIRECT($B$56&$A$56&$A$57))","v":0}]
[null,null,2,{"$f":"INDIRECT(B56&A56&69)","v":30},null,null,null,null,null,null,null,null,null,"Freundschaft",{"$f":"IF(D25=E25,\"(Seelenschutz)\",\"\")","v":""},null,20,null,null,null,null,null,null,null,null,null,null,null,null,null,null,null,null,null,null,null,null,null,null,null,"Typ","Abdeckung","Punkte","Typ","Abdeckung","Punkte",null,null,null,null,null,null,null,null,null,null,null,null,{"$f":"IF(OR(BF43='Einführung & Hilfe'!$B$65,BF43='Einführung & Hilfe'!$C$65,BF43='Einführung & Hilfe'!$D$65,BF43='Einführung & Hilfe'!$E$65),0,BF43*INDIRECT($B$56&$A$56&$A$57))","v":0},null,null,null,{"$f":"IF(OR(BJ43='Einführung & Hilfe'!$B$65,BJ43='Einführung & Hilfe'!$C$65,BJ43='Einführung & Hilfe'!$D$65,BJ43='Einführung & Hilfe'!$E$65),0,BJ43*INDIRECT($B$56&$A$56&$A$57))","v":0},null,null,null,{"$f":"IF(OR(BN43='Einführung & Hilfe'!$B$65,BN43='Einführung & Hilfe'!$C$65,BN43='Einführung & Hilfe'!$D$65,BN43='Einführung & Hilfe'!$E$65),0,BN43*INDIRECT($B$56&$A$56&$A$57))","v":0},null,null,null,{"$f":"IF(OR(BR43='Einführung & Hilfe'!$B$65,BR43='Einführung & Hilfe'!$C$65,BR43='Einführung & Hilfe'!$D$65,BR43='Einführung & Hilfe'!$E$65),0,BR43*INDIRECT($B$56&$A$56&$A$57))","v":0}]
[null,null,3,{"$f":"INDIRECT(B56&A56&70)","v":50},null,null,null,null,null,null,null,null,null,"Götterbann",null,null,250,null,null,null,null,null,null,null,null,null,null,null,null,null,null,null,null,null,null,null,null,null,null,"Kopf","Ungerüstet","Voll",{"$f":"IF(AO44='OT und Infos'!A280,'OT und Infos'!E280*IF(AP44='OT und Infos'!A296,1,IF(AP44='OT und Infos'!A297,0.75,IF(AP44='OT und Infos'!A298,0.5,IF(AP44='OT und Infos'!A299,0.25)))),IF(AO44='OT und Infos'!A281,'OT und Infos'!E281*IF(AP44='OT und Infos'!A296,1,IF(AP44='OT und Infos'!A297,0.75,IF(AP44='OT und Infos'!A298,0.5,IF(AP44='OT und Infos'!A299,0.25)))),IF(AO44='OT und Infos'!A282,'OT und Infos'!E282*IF(AP44='OT und Infos'!A296,1,IF(AP44='OT und Infos'!A297,0.75,IF(AP44='OT und Infos'!A298,0.5,IF(AP44='OT und Infos'!A299,0.25)))),IF(AO44='OT und Infos'!A283,'OT und Infos'!E283*IF(AP44='OT und Infos'!A296,1,IF(AP44='OT und Infos'!A297,0.75,IF(AP44='OT und Infos'!A298,0.5,IF(AP44='OT und Infos'!A299,0.25)))),IF(AO44='OT und Infos'!A284,'OT und Infos'!E284*IF(OR(AP44='OT und Infos'!A296,AP44='OT und Infos'!A297),1,IF(OR(AP44='OT und Infos'!A298,AP44='OT und Infos'!A299),0.5)),IF(AO44='OT und Infos'!A285,'OT und Infos'!E285))))))","v":0},"Ungerüstet","Voll",{"$f":"IF(AR44='OT und Infos'!A280,'OT und Infos'!E280*'OT und Infos'!G280*IF(AS44='OT und Infos'!A296,1,IF(AS44='OT und Infos'!A297,0.75,IF(AS44='OT und Infos'!A298,0.5,IF(AS44='OT und Infos'!A299,0.25)))),IF(AR44='OT und Infos'!A281,'OT und Infos'!E281*'OT und Infos'!G281*IF(AS44='OT und Infos'!A296,1,IF(AS44='OT und Infos'!A297,0.75,IF(AS44='OT und Infos'!A298,0.5,IF(AS44='OT und Infos'!A299,0.25)))),IF(AR44='OT und Infos'!A282,'OT und Infos'!E282*'OT und Infos'!G282*IF(AS44='OT und Infos'!A296,1,IF(AS44='OT und Infos'!A297,0.75,IF(AS44='OT und Infos'!A298,0.5,IF(AS44='OT und Infos'!A299,0.25)))),IF(AR44='OT und Infos'!A283,'OT und Infos'!G283*IF(AS44='OT und Infos'!A296,1,IF(AS44='OT und Infos'!A297,0.75,IF(AS44='OT und Infos'!A298,0.5,IF(AS44='OT und Infos'!A299,0.25)))),IF(AR44='OT und Infos'!A284,'OT und Infos'!G284*IF(OR(AS44='OT und Infos'!A296,AS44='OT und Infos'!A297),1,IF(OR(AS44='OT und Infos'!A298,AS44='OT und Infos'!A299),0.5)),IF(AR44='OT und Infos'!A285,'OT und Infos'!E285))))))","v":0},{"$f":"IF(AND(OR(AO45='OT und Infos'!A286,AO46='OT und Infos'!A286,AO49='OT und Infos'!A286,AO52='OT und Infos'!A286,AO53='OT und Infos'!A286),NOT(OR(AO45='OT und Infos'!A280,AO45='OT und Infos'!A281,AO45='OT und Infos'!A282,AO45='OT und Infos'!A283,AO45='OT und Infos'!A284,AO46='OT und Infos'!A280,AO46='OT und Infos'!A281,AO46='OT und Infos'!A282,AO46='OT und Infos'!A283,AO46='OT und Infos'!A284,AO49='OT und Infos'!A280,AO49='OT und Infos'!A281,AO49='OT und Infos'!A282,AO49='OT und Infos'!A283,AO49='OT und Infos'!A284,AO52='OT und Infos'!A280,AO52='OT und Infos'!A281,AO52='OT und Infos'!A282,AO52='OT und Infos'!A283,AO52='OT und Infos'!A284,AO53='OT und Infos'!A280,AO53='OT und Infos'!A281,AO53='OT und Infos'!A282,AO53='OT und Infos'!A283,AO53='OT und Infos'!A284))),0,IF(NOT(AO44=A41),SUM(AQ44,AT44),0))","v":0},null,null,null,null,null,null,null,null,null,null,null,{"$f":"IF(OR(BF44='Einführung & Hilfe'!$B$65,BF44='Einführung & Hilfe'!$C$65,BF44='Einführung & Hilfe'!$D$65,BF44='Einführung & Hilfe'!$E$65),0,BF44*INDIRECT($B$56&$A$56&$A$57))","v":0},null,null,null,{"$f":"IF(OR(BJ44='Einführung & Hilfe'!$B$65,BJ44='Einführung & Hilfe'!$C$65,BJ44='Einführung & Hilfe'!$D$65,BJ44='Einführung & Hilfe'!$E$65),0,BJ44*INDIRECT($B$56&$A$56&$A$57))","v":0},null,null,null,{"$f":"IF(OR(BN44='Einführung & Hilfe'!$B$65,BN44='Einführung & Hilfe'!$C$65,BN44='Einführung & Hilfe'!$D$65,BN44='Einführung & Hilfe'!$E$65),0,BN44*INDIRECT($B$56&$A$56&$A$57))","v":0},null,null,null,{"$f":"IF(OR(BR44='Einführung & Hilfe'!$B$65,BR44='Einführung & Hilfe'!$C$65,BR44='Einführung & Hilfe'!$D$65,BR44='Einführung & Hilfe'!$E$65),0,BR44*INDIRECT($B$56&$A$56&$A$57))","v":0}]
[null,null,4,{"$f":"INDIRECT(B56&A56&71)","v":50},null,null,null,null,null,null,null,null,null,{"$f":"IF('OT und Infos'!D11=INDIRECT(B56&A56&11),\"Fluch II\",\"Götterfluch\")","v":"Götterfluch"},null,null,100,null,null,null,null,null,null,null,null,null,null,null,null,null,null,null,null,null,null,null,null,null,null,"Torso","Ungerüstet","Voll",{"$f":"IF(AO45='OT und Infos'!A280,'OT und Infos'!E280*IF(AP45='OT und Infos'!A296,1,IF(AP45='OT und Infos'!A297,0.75,IF(AP45='OT und Infos'!A298,0.5,IF(AP45='OT und Infos'!A299,0.25)))),IF(AO45='OT und Infos'!A281,'OT und Infos'!E281*IF(AP45='OT und Infos'!A296,1,IF(AP45='OT und Infos'!A297,0.75,IF(AP45='OT und Infos'!A298,0.5,IF(AP45='OT und Infos'!A299,0.25)))),IF(AO45='OT und Infos'!A282,'OT und Infos'!E282*IF(AP45='OT und Infos'!A296,1,IF(AP45='OT und Infos'!A297,0.75,IF(AP45='OT und Infos'!A298,0.5,IF(AP45='OT und Infos'!A299,0.25)))),IF(AO45='OT und Infos'!A283,'OT und Infos'!E283*IF(AP45='OT und Infos'!A296,1,IF(AP45='OT und Infos'!A297,0.75,IF(AP45='OT und Infos'!A298,0.5,IF(AP45='OT und Infos'!A299,0.25)))),IF(AO45='OT und Infos'!A284,'OT und Infos'!E284*IF(OR(AP45='OT und Infos'!A296,AP45='OT und Infos'!A297),1,IF(OR(AP45='OT und Infos'!A298,AP45='OT und Infos'!A299),0.5)),IF(OR(AO45='OT und Infos'!A285,AO45='OT und Infos'!A286),'OT und Infos'!E285))))))","v":0},"Ungerüstet","Voll",{"$f":"IF(AR45='OT und Infos'!A280,'OT und Infos'!E280*'OT und Infos'!G280*IF(AS45='OT und Infos'!A296,1,IF(AS45='OT und Infos'!A297,0.75,IF(AS45='OT und Infos'!A298,0.5,IF(AS45='OT und Infos'!A299,0.25)))),IF(AR45='OT und Infos'!A281,'OT und Infos'!E281*IF(AS45='OT und Infos'!A296,1,IF(AS45='OT und Infos'!A297,0.75,IF(AS45='OT und Infos'!A298,0.5,IF(AS45='OT und Infos'!A299,0.25)))),IF(AR45='OT und Infos'!A282,'OT und Infos'!E282*IF(AS45='OT und Infos'!A296,1,IF(AS45='OT und Infos'!A297,0.75,IF(AS45='OT und Infos'!A298,0.5,IF(AS45='OT und Infos'!A299,0.25)))),IF(AR45='OT und Infos'!A283,'OT und Infos'!H283*IF(AS45='OT und Infos'!A296,1,IF(AS45='OT und Infos'!A297,0.75,IF(AS45='OT und Infos'!A298,0.5,IF(AS45='OT und Infos'!A299,0.25)))),IF(AR45='OT und Infos'!A284,'OT und Infos'!H284*IF(OR(AS45='OT und Infos'!A296,AS45='OT und Infos'!A297),1,IF(OR(AS45='OT und Infos'!A298,AS45='OT und Infos'!A299),0.5)),IF(AR45='OT und Infos'!A285,'OT und Infos'!E285))))))","v":0},{"$f":"IF(AND(AO45='OT und Infos'!A286,OR(AO46='OT und Infos'!A285,AO46='OT und Infos'!A286),OR(AO49='OT und Infos'!A285,AO49='OT und Infos'!A286),OR(AO52='OT und Infos'!A285,AO52='OT und Infos'!A286),OR(AO53='OT und Infos'!A285,AO53='OT und Infos'!A286)),'OT und Infos'!E286,IF(OR(AO45='OT und Infos'!A285,AO45='OT und Infos'!A286),0,SUM(AQ45,AT45)))","v":0},null,null,null,null,null,null,null,null,null,null,null,{"$f":"IF(OR(BF45='Einführung & Hilfe'!$B$65,BF45='Einführung & Hilfe'!$C$65,BF45='Einführung & Hilfe'!$D$65,BF45='Einführung & Hilfe'!$E$65),0,BF45*INDIRECT($B$56&$A$56&$A$57))","v":0},null,null,null,{"$f":"IF(OR(BJ45='Einführung & Hilfe'!$B$65,BJ45='Einführung & Hilfe'!$C$65,BJ45='Einführung & Hilfe'!$D$65,BJ45='Einführung & Hilfe'!$E$65),0,BJ45*INDIRECT($B$56&$A$56&$A$57))","v":0},null,null,null,{"$f":"IF(OR(BN45='Einführung & Hilfe'!$B$65,BN45='Einführung & Hilfe'!$C$65,BN45='Einführung & Hilfe'!$D$65,BN45='Einführung & Hilfe'!$E$65),0,BN45*INDIRECT($B$56&$A$56&$A$57))","v":0},null,null,null,{"$f":"IF(OR(BR45='Einführung & Hilfe'!$B$65,BR45='Einführung & Hilfe'!$C$65,BR45='Einführung & Hilfe'!$D$65,BR45='Einführung & Hilfe'!$E$65),0,BR45*INDIRECT($B$56&$A$56&$A$57))","v":0}]
[null,null,5,{"$f":"INDIRECT(B56&A56&72)","v":70},null,null,null,null,null,null,null,null,null,"Mag. Schutz I",{"$f":"IF(D25=E25,\"(Seelenschutz)\",\"\")","v":""},null,30,null,null,{"$f":"IF(SUM(SUMIFS(M22:M46,K22:K46,\"A\",M22:M46,\">\"&(INDIRECT($B$56&$A$56&98)*INDIRECT($B$56&$A$56&99))),SUMIFS(R4:R32,P4:P32,\"A\",R4:R32,\">\"&(INDIRECT($B$56&$A$56&98)*INDIRECT($B$56&$A$56&99))),SUMIFS(R36:R53,P36:P53,\"A\",R36:R53,\">\"&(INDIRECT($B$56&$A$56&98)*INDIRECT($B$56&$A$56&99))),SUMIFS(X4:X15,V4:V15,\"A\",X4:X15,\">\"&(INDIRECT($B$56&$A$56&98)*INDIRECT($B$56&$A$56&99))),SUMIFS(X19:X36,V19:V36,\"A\",X19:X36,\">\"&(INDIRECT($B$56&$A$56&98)*INDIRECT($B$56&$A$56&99))),SUMIFS(X40:X41,V40:V41,\"A\",X40:X41,\">\"&(INDIRECT($B$56&$A$56&98)*INDIRECT($B$56&$A$56&99))),SUMIFS(AC4:AC37,AA4:AA37,\"A\",AC4:AC37,\">\"&(INDIRECT($B$56&$A$56&98)*INDIRECT($B$56&$A$56&99))),SUMIFS(AI4:AI35,AG4:AG35,\"A\",AI4:AI35,\">\"&(INDIRECT($B$56&$A$56&98)*INDIRECT($B$56&$A$56&99))))>1,\"Zu starke angeborene Fähigkeit(en)\",\"\")","v":""},null,null,null,null,null,null,null,null,null,null,{"$f":"T46","v":""},null,null,null,null,null,null,null,null,"Arm Rechts","Ungerüstet","Ein / Viertel",{"$f":"IF(AO46='OT und Infos'!A280,'OT und Infos'!E280*IF(AP46='OT und Infos'!A296,1,IF(AP46='OT und Infos'!A297,0.75,IF(AP46='OT und Infos'!A298,0.5,IF(AP46='OT und Infos'!A299,0.25)))),IF(AO46='OT und Infos'!A281,'OT und Infos'!E281*IF(AP46='OT und Infos'!A296,1,IF(AP46='OT und Infos'!A297,0.75,IF(AP46='OT und Infos'!A298,0.5,IF(AP46='OT und Infos'!A299,0.25)))),IF(AO46='OT und Infos'!A282,'OT und Infos'!E282*IF(AP46='OT und Infos'!A296,1,IF(AP46='OT und Infos'!A297,0.75,IF(AP46='OT und Infos'!A298,0.5,IF(AP46='OT und Infos'!A299,0.25)))),IF(AO46='OT und Infos'!A283,'OT und Infos'!E283*IF(AP46='OT und Infos'!A296,1,IF(AP46='OT und Infos'!A297,0.75,IF(AP46='OT und Infos'!A298,0.5,IF(AP46='OT und Infos'!A299,0.25)))),IF(AO46='OT und Infos'!A284,'OT und Infos'!E284*IF(OR(AP46='OT und Infos'!A296,AP46='OT und Infos'!A297),1,IF(OR(AP46='OT und Infos'!A298,AP46='OT und Infos'!A299),0.5)),IF(OR(AO46='OT und Infos'!A285,AO46='OT und Infos'!A286),'OT und Infos'!E285))))))","v":0},"Ungerüstet","Voll",{"$f":"IF(AR46='OT und Infos'!A280,'OT und Infos'!E280*'OT und Infos'!G280*IF(AS46='OT und Infos'!A296,1,IF(AS46='OT und Infos'!A297,0.75,IF(AS46='OT und Infos'!A298,0.5,IF(AS46='OT und Infos'!A299,0.25)))),IF(AR46='OT und Infos'!A281,'OT und Infos'!E281*'OT und Infos'!G281*IF(AS46='OT und Infos'!A296,1,IF(AS46='OT und Infos'!A297,0.75,IF(AS46='OT und Infos'!A298,0.5,IF(AS46='OT und Infos'!A299,0.25)))),IF(AR46='OT und Infos'!A282,'OT und Infos'!E282*'OT und Infos'!G282*IF(AS46='OT und Infos'!A296,1,IF(AS46='OT und Infos'!A297,0.75,IF(AS46='OT und Infos'!A298,0.5,IF(AS46='OT und Infos'!A299,0.25)))),IF(AR46='OT und Infos'!A283,'OT und Infos'!G283*IF(AS46='OT und Infos'!A296,1,IF(AS46='OT und Infos'!A297,0.75,IF(AS46='OT und Infos'!A298,0.5,IF(AS46='OT und Infos'!A299,0.25)))),IF(AR46='OT und Infos'!A284,'OT und Infos'!G284*IF(OR(AS46='OT und Infos'!A296,AS46='OT und Infos'!A297),1,IF(OR(AS46='OT und Infos'!A298,AS46='OT und Infos'!A299),0.5)),IF(AR46='OT und Infos'!A285,'OT und Infos'!E285))))))","v":0},{"$f":"IF(AND(AO46='OT und Infos'!A286,OR(AO45='OT und Infos'!A285,AO45='OT und Infos'!A286),OR(AO49='OT und Infos'!A285,AO49='OT und Infos'!A286),OR(AO52='OT und Infos'!A285,AO52='OT und Infos'!A286),OR(AO53='OT und Infos'!A285,AO53='OT und Infos'!A286)),'OT und Infos'!E286,IF(OR(AO46='OT und Infos'!A285,AO46='OT und Infos'!A286),0,SUM(AQ46,AT46)))","v":0},null,null,null,null,null,null,null,null,null,null,null,{"$f":"IF(OR(BF46='Einführung & Hilfe'!$B$65,BF46='Einführung & Hilfe'!$C$65,BF46='Einführung & Hilfe'!$D$65,BF46='Einführung & Hilfe'!$E$65),0,BF46*INDIRECT($B$56&$A$56&$A$57))","v":0},null,null,null,{"$f":"IF(OR(BJ46='Einführung & Hilfe'!$B$65,BJ46='Einführung & Hilfe'!$C$65,BJ46='Einführung & Hilfe'!$D$65,BJ46='Einführung & Hilfe'!$E$65),0,BJ46*INDIRECT($B$56&$A$56&$A$57))","v":0},null,null,null,{"$f":"IF(OR(BN46='Einführung & Hilfe'!$B$65,BN46='Einführung & Hilfe'!$C$65,BN46='Einführung & Hilfe'!$D$65,BN46='Einführung & Hilfe'!$E$65),0,BN46*INDIRECT($B$56&$A$56&$A$57))","v":0},null,null,null,{"$f":"IF(OR(BR46='Einführung & Hilfe'!$B$65,BR46='Einführung & Hilfe'!$C$65,BR46='Einführung & Hilfe'!$D$65,BR46='Einführung & Hilfe'!$E$65),0,BR46*INDIRECT($B$56&$A$56&$A$57))","v":0}]
[null,null,6,{"$f":"INDIRECT(B56&A56&73)","v":80},null,null,"Summe Besondere:",null,null,null,null,null,{"$f":"SUM(SUMIF(L19:L46,\">0\",M19:M46),SUMIF(L19:L46,\"EXP\",M19:M46))","v":0},"Mag. Schutz II",{"$f":"IF(D25=E25,\"(Seelenschutz)\",\"\")","v":""},null,"X",null,null,{"$f":"IF(SUM(SUMIFS(M22:M46,K22:K46,\"A\",M22:M46,\">\"&(INDIRECT($B$56&$A$56&98)*INDIRECT($B$56&$A$56&99))),SUMIFS(R4:R32,P4:P32,\"A\",R4:R32,\">\"&(INDIRECT($B$56&$A$56&98)*INDIRECT($B$56&$A$56&99))),SUMIFS(R36:R53,P36:P53,\"A\",R36:R53,\">\"&(INDIRECT($B$56&$A$56&98)*INDIRECT($B$56&$A$56&99))),SUMIFS(X4:X15,V4:V15,\"A\",X4:X15,\">\"&(INDIRECT($B$56&$A$56&98)*INDIRECT($B$56&$A$56&99))),SUMIFS(X19:X36,V19:V36,\"A\",X19:X36,\">\"&(INDIRECT($B$56&$A$56&98)*INDIRECT($B$56&$A$56&99))),SUMIFS(X40:X41,V40:V41,\"A\",X40:X41,\">\"&(INDIRECT($B$56&$A$56&98)*INDIRECT($B$56&$A$56&99))),SUMIFS(AC4:AC37,AA4:AA37,\"A\",AC4:AC37,\">\"&(INDIRECT($B$56&$A$56&98)*INDIRECT($B$56&$A$56&99))),SUMIFS(AI4:AI35,AG4:AG35,\"A\",AI4:AI35,\">\"&(INDIRECT($B$56&$A$56&98)*INDIRECT($B$56&$A$56&99))))>1,\"für das gewählte Regelwerk!\",\"\")","v":""},null,null,null,null,null,null,null,null,null,null,{"$f":"T47","v":""},null,null,null,null,null,null,null,null,"- Teilzone","Ungerüstet","Ein / Viertel",{"$f":"IF(AO47='OT und Infos'!A280,'OT und Infos'!E280*IF(AP47='OT und Infos'!A297,0.75,IF(AP47='OT und Infos'!A298,0.5,IF(AP47='OT und Infos'!A299,0.25))),IF(AO47='OT und Infos'!A281,'OT und Infos'!E281*IF(AP47='OT und Infos'!A297,0.75,IF(AP47='OT und Infos'!A298,0.5,IF(AP47='OT und Infos'!A299,0.25))),IF(AO47='OT und Infos'!A282,'OT und Infos'!E282*IF(AP47='OT und Infos'!A297,0.75,IF(AP47='OT und Infos'!A298,0.5,IF(AP47='OT und Infos'!A299,0.25))),IF(AO47='OT und Infos'!A283,IF(AP47='OT und Infos'!A297,0.75,IF(AP47='OT und Infos'!A298,0.5,IF(AP47='OT und Infos'!A299,0.25))),IF(AO47='OT und Infos'!A284,IF(AP47='OT und Infos'!A297,0.5,IF(OR(AP47='OT und Infos'!A298,AP47='OT und Infos'!A299),0.25)),IF(AO47='OT und Infos'!A285,'OT und Infos'!E285))))))","v":0},null,null,null,{"$f":"IF(NOT(OR(AO47='OT und Infos'!A285,AO46='OT und Infos'!A285,AP46='OT und Infos'!A296)),AQ47,0)","v":0},null,null,null,null,null,null,null,null,null,null,null,{"$f":"IF(OR(BF47='Einführung & Hilfe'!$B$65,BF47='Einführung & Hilfe'!$C$65,BF47='Einführung & Hilfe'!$D$65,BF47='Einführung & Hilfe'!$E$65),0,BF47*INDIRECT($B$56&$A$56&$A$57))","v":0},null,null,null,{"$f":"IF(OR(BJ47='Einführung & Hilfe'!$B$65,BJ47='Einführung & Hilfe'!$C$65,BJ47='Einführung & Hilfe'!$D$65,BJ47='Einführung & Hilfe'!$E$65),0,BJ47*INDIRECT($B$56&$A$56&$A$57))","v":0},null,null,null,{"$f":"IF(OR(BN47='Einführung & Hilfe'!$B$65,BN47='Einführung & Hilfe'!$C$65,BN47='Einführung & Hilfe'!$D$65,BN47='Einführung & Hilfe'!$E$65),0,BN47*INDIRECT($B$56&$A$56&$A$57))","v":0},null,null,null,{"$f":"IF(OR(BR47='Einführung & Hilfe'!$B$65,BR47='Einführung & Hilfe'!$C$65,BR47='Einführung & Hilfe'!$D$65,BR47='Einführung & Hilfe'!$E$65),0,BR47*INDIRECT($B$56&$A$56&$A$57))","v":0}]
[null,null,7,{"$f":"INDIRECT(B56&A56&74)","v":100},null,null,null,null,null,null,null,null,null,"Mag. Segen",{"$f":"IF(D25=E25,\"(Seelenschutz)\",\"\")","v":""},null,20,null,null,{"$f":"IF(AND(INDIRECT($B$56&$A$56&100)=\"Ja\",SUM(SUMIF(K22:K46,\"A\",M22:M46),SUMIF(P4:P32,\"A\",R4:R32),SUMIF(P36:P53,\"A\",R36:R53),SUMIF(V4:V15,\"A\",X4:X15),SUMIF(V19:V36,\"A\",X19:X36),SUMIF(V40:V41,\"A\",X40:X41),SUMIF(AA4:AA37,\"A\",AC4:AC37),SUMIF(AG4:AG35,\"A\",AI4:AI35))>INDIRECT($B$56&$A$56&$A$58)),\"Begrenzung auf Startpunkte wurde mit\",\"\")","v":""},null,null,null,null,null,null,null,null,null,null,{"$f":"T48","v":""},null,null,null,null,null,null,null,null,"- Teilzone","Ungerüstet",{"$f":"'OT und Infos'!A299","v":"Ein / Viertel"},{"$f":"IF(AO48='OT und Infos'!A280,'OT und Infos'!E280*IF(AP48='OT und Infos'!A297,0.75,IF(AP48='OT und Infos'!A298,0.5,IF(AP48='OT und Infos'!A299,0.25))),IF(AO48='OT und Infos'!A281,'OT und Infos'!E281*IF(AP48='OT und Infos'!A297,0.75,IF(AP48='OT und Infos'!A298,0.5,IF(AP48='OT und Infos'!A299,0.25))),IF(AO48='OT und Infos'!A282,'OT und Infos'!E282*IF(AP48='OT und Infos'!A297,0.75,IF(AP48='OT und Infos'!A298,0.5,IF(AP48='OT und Infos'!A299,0.25))),IF(AO48='OT und Infos'!A283,IF(AP48='OT und Infos'!A297,0.75,IF(AP48='OT und Infos'!A298,0.5,IF(AP48='OT und Infos'!A299,0.25))),IF(AO48='OT und Infos'!A284,IF(AP48='OT und Infos'!A297,0.5,IF(OR(AP48='OT und Infos'!A298,AP48='OT und Infos'!A299),0.25)),IF(AO48='OT und Infos'!A285,'OT und Infos'!E285))))))","v":0},null,null,null,{"$f":"IF(NOT(OR(AO48='OT und Infos'!A285,AO46='OT und Infos'!A285,AP46='OT und Infos'!A296,OR(AND(AP46='OT und Infos'!A297,AP47='OT und Infos'!A299),AND(AP46='OT und Infos'!A298,AP47='OT und Infos'!A298),AND(AP46='OT und Infos'!A299,AP47='OT und Infos'!A297)))),AQ48,0)","v":0},null,null,null,null,null,null,null,null,null,null,null,{"$f":"IF(OR(BF48='Einführung & Hilfe'!$B$65,BF48='Einführung & Hilfe'!$C$65,BF48='Einführung & Hilfe'!$D$65,BF48='Einführung & Hilfe'!$E$65),0,BF48*INDIRECT($B$56&$A$56&$A$57))","v":0},null,null,null,{"$f":"IF(OR(BJ48='Einführung & Hilfe'!$B$65,BJ48='Einführung & Hilfe'!$C$65,BJ48='Einführung & Hilfe'!$D$65,BJ48='Einführung & Hilfe'!$E$65),0,BJ48*INDIRECT($B$56&$A$56&$A$57))","v":0},null,null,null,{"$f":"IF(OR(BN48='Einführung & Hilfe'!$B$65,BN48='Einführung & Hilfe'!$C$65,BN48='Einführung & Hilfe'!$D$65,BN48='Einführung & Hilfe'!$E$65),0,BN48*INDIRECT($B$56&$A$56&$A$57))","v":0},null,null,null,{"$f":"IF(OR(BR48='Einführung & Hilfe'!$B$65,BR48='Einführung & Hilfe'!$C$65,BR48='Einführung & Hilfe'!$D$65,BR48='Einführung & Hilfe'!$E$65),0,BR48*INDIRECT($B$56&$A$56&$A$57))","v":0}]
[null,null,8,{"$f":"INDIRECT(B56&A56&75)","v":200},null,null,"V. Summe der verbrauchten Exp",null,null,null,null,null,null,"Schweigen",{"$f":"IF(D25=E25,\"(Seelenschutz)\",\"\")","v":""},null,20,null,null,{"$f":"IF(AND(INDIRECT($B$56&$A$56&100)=\"Ja\",SUM(SUMIF(K22:K46,\"A\",M22:M46),SUMIF(P4:P32,\"A\",R4:R32),SUMIF(P36:P53,\"A\",R36:R53),SUMIF(V4:V15,\"A\",X4:X15),SUMIF(V19:V36,\"A\",X19:X36),SUMIF(V40:V41,\"A\",X40:X41),SUMIF(AA4:AA37,\"A\",AC4:AC37),SUMIF(AG4:AG35,\"A\",AI4:AI35))>INDIRECT($B$56&$A$56&$A$58)),\"angeborenen Fähigkeiten überschritten!\",\"\")","v":""},null,null,null,null,null,null,null,null,null,null,{"$f":"T49","v":""},null,null,null,null,null,null,null,null,"Arm Links","Ungerüstet","Ein / Viertel",{"$f":"IF(AO49='OT und Infos'!A280,'OT und Infos'!E280*IF(AP49='OT und Infos'!A296,1,IF(AP49='OT und Infos'!A297,0.75,IF(AP49='OT und Infos'!A298,0.5,IF(AP49='OT und Infos'!A299,0.25)))),IF(AO49='OT und Infos'!A281,'OT und Infos'!E281*IF(AP49='OT und Infos'!A296,1,IF(AP49='OT und Infos'!A297,0.75,IF(AP49='OT und Infos'!A298,0.5,IF(AP49='OT und Infos'!A299,0.25)))),IF(AO49='OT und Infos'!A282,'OT und Infos'!E282*IF(AP49='OT und Infos'!A296,1,IF(AP49='OT und Infos'!A297,0.75,IF(AP49='OT und Infos'!A298,0.5,IF(AP49='OT und Infos'!A299,0.25)))),IF(AO49='OT und Infos'!A283,'OT und Infos'!E283*IF(AP49='OT und Infos'!A296,1,IF(AP49='OT und Infos'!A297,0.75,IF(AP49='OT und Infos'!A298,0.5,IF(AP49='OT und Infos'!A299,0.25)))),IF(AO49='OT und Infos'!A284,'OT und Infos'!E284*IF(OR(AP49='OT und Infos'!A296,AP49='OT und Infos'!A297),1,IF(OR(AP49='OT und Infos'!A298,AP49='OT und Infos'!A299),0.5)),IF(OR(AO49='OT und Infos'!A285,AO49='OT und Infos'!A286),'OT und Infos'!E285))))))","v":0},"Ungerüstet","Voll",{"$f":"IF(AR49='OT und Infos'!A280,'OT und Infos'!E280*'OT und Infos'!G280*IF(AS49='OT und Infos'!A296,1,IF(AS49='OT und Infos'!A297,0.75,IF(AS49='OT und Infos'!A298,0.5,IF(AS49='OT und Infos'!A299,0.25)))),IF(AR49='OT und Infos'!A281,'OT und Infos'!E281*'OT und Infos'!G281*IF(AS49='OT und Infos'!A296,1,IF(AS49='OT und Infos'!A297,0.75,IF(AS49='OT und Infos'!A298,0.5,IF(AS49='OT und Infos'!A299,0.25)))),IF(AR49='OT und Infos'!A282,'OT und Infos'!E282*'OT und Infos'!G282*IF(AS49='OT und Infos'!A296,1,IF(AS49='OT und Infos'!A297,0.75,IF(AS49='OT und Infos'!A298,0.5,IF(AS49='OT und Infos'!A299,0.25)))),IF(AR49='OT und Infos'!A283,'OT und Infos'!G283*IF(AS49='OT und Infos'!A296,1,IF(AS49='OT und Infos'!A297,0.75,IF(AS49='OT und Infos'!A298,0.5,IF(AS49='OT und Infos'!A299,0.25)))),IF(AR49='OT und Infos'!A284,'OT und Infos'!G284*IF(OR(AS49='OT und Infos'!A296,AS49='OT und Infos'!A297),1,IF(OR(AS49='OT und Infos'!A298,AS49='OT und Infos'!A299),0.5)),IF(AR49='OT und Infos'!A285,'OT und Infos'!E285))))))","v":0},{"$f":"IF(AND(AO49='OT und Infos'!A286,OR(AO45='OT und Infos'!A285,AO45='OT und Infos'!A286),OR(AO46='OT und Infos'!A285,AO46='OT und Infos'!A286),OR(AO52='OT und Infos'!A285,AO52='OT und Infos'!A286),OR(AO53='OT und Infos'!A285,AO53='OT und Infos'!A286)),'OT und Infos'!E286,IF(OR(AO49='OT und Infos'!A285,AO49='OT und Infos'!A286),0,SUM(AQ49,AT49)))","v":0},null,null,null,null,null,null,null,null,null,null,null,{"$f":"IF(OR(BF49='Einführung & Hilfe'!$B$65,BF49='Einführung & Hilfe'!$C$65,BF49='Einführung & Hilfe'!$D$65,BF49='Einführung & Hilfe'!$E$65),0,BF49*INDIRECT($B$56&$A$56&$A$57))","v":0},null,null,null,{"$f":"IF(OR(BJ49='Einführung & Hilfe'!$B$65,BJ49='Einführung & Hilfe'!$C$65,BJ49='Einführung & Hilfe'!$D$65,BJ49='Einführung & Hilfe'!$E$65),0,BJ49*INDIRECT($B$56&$A$56&$A$57))","v":0},null,null,null,{"$f":"IF(OR(BN49='Einführung & Hilfe'!$B$65,BN49='Einführung & Hilfe'!$C$65,BN49='Einführung & Hilfe'!$D$65,BN49='Einführung & Hilfe'!$E$65),0,BN49*INDIRECT($B$56&$A$56&$A$57))","v":0},null,null,null,{"$f":"IF(OR(BR49='Einführung & Hilfe'!$B$65,BR49='Einführung & Hilfe'!$C$65,BR49='Einführung & Hilfe'!$D$65,BR49='Einführung & Hilfe'!$E$65),0,BR49*INDIRECT($B$56&$A$56&$A$57))","v":0}]
["Niederschlagen",null,null,{"$f":"INDIRECT(B56&A56&76)","v":25},null,null,"I. Kämpferfertigkeiten",null,null,null,null,null,{"$f":"E26","v":0},"Seelenspiegel",{"$f":"IF(D25=E25,\"(Seelenschutz)\",\"\")","v":""},null,30,null,null,{"$f":"IF(INDIRECT($B$56&$A$56&93)=\"X\",\"Keine Magie möglich in diesem Regelwerk!\",IF(INDIRECT($B$56&$A$56&94)=\"X\",\"Keine Fernmagie möglich in diesem Regelwerk!\",\"\"))","v":""},null,null,null,null,null,null,null,null,null,null,{"$f":"T50","v":""},null,null,null,null,null,null,null,null,"- Teilzone","Ungerüstet","Ein / Viertel",{"$f":"IF(AO50='OT und Infos'!A280,'OT und Infos'!E280*IF(AP50='OT und Infos'!A297,0.75,IF(AP50='OT und Infos'!A298,0.5,IF(AP50='OT und Infos'!A299,0.25))),IF(AO50='OT und Infos'!A281,'OT und Infos'!E281*IF(AP50='OT und Infos'!A297,0.75,IF(AP50='OT und Infos'!A298,0.5,IF(AP50='OT und Infos'!A299,0.25))),IF(AO50='OT und Infos'!A282,'OT und Infos'!E282*IF(AP50='OT und Infos'!A297,0.75,IF(AP50='OT und Infos'!A298,0.5,IF(AP50='OT und Infos'!A299,0.25))),IF(AO50='OT und Infos'!A283,IF(AP50='OT und Infos'!A297,0.75,IF(AP50='OT und Infos'!A298,0.5,IF(AP50='OT und Infos'!A299,0.25))),IF(AO50='OT und Infos'!A284,IF(AP50='OT und Infos'!A297,0.5,IF(OR(AP50='OT und Infos'!A298,AP50='OT und Infos'!A299),0.25)),IF(AO50='OT und Infos'!A285,'OT und Infos'!E285))))))","v":0},null,null,null,{"$f":"IF(NOT(OR(AO50='OT und Infos'!A285,AO49='OT und Infos'!A285,AP49='OT und Infos'!A296)),AQ50,0)","v":0},null,null,null,null,null,null,null,null,null,null,null,{"$f":"IF(OR(BF50='Einführung & Hilfe'!$B$65,BF50='Einführung & Hilfe'!$C$65,BF50='Einführung & Hilfe'!$D$65,BF50='Einführung & Hilfe'!$E$65),0,BF50*INDIRECT($B$56&$A$56&$A$57))","v":0},null,null,null,{"$f":"IF(OR(BJ50='Einführung & Hilfe'!$B$65,BJ50='Einführung & Hilfe'!$C$65,BJ50='Einführung & Hilfe'!$D$65,BJ50='Einführung & Hilfe'!$E$65),0,BJ50*INDIRECT($B$56&$A$56&$A$57))","v":0},null,null,null,{"$f":"IF(OR(BN50='Einführung & Hilfe'!$B$65,BN50='Einführung & Hilfe'!$C$65,BN50='Einführung & Hilfe'!$D$65,BN50='Einführung & Hilfe'!$E$65),0,BN50*INDIRECT($B$56&$A$56&$A$57))","v":0},null,null,null,{"$f":"IF(OR(BR50='Einführung & Hilfe'!$B$65,BR50='Einführung & Hilfe'!$C$65,BR50='Einführung & Hilfe'!$D$65,BR50='Einführung & Hilfe'!$E$65),0,BR50*INDIRECT($B$56&$A$56&$A$57))","v":0}]
["Rüstung reparieren",null,null,{"$f":"INDIRECT(B56&A56&77)","v":"EXP"},null,null,"II. Abenteurerfertigkeiten",null,null,null,null,null,{"$f":"E55","v":0},"Vergessen",{"$f":"IF(D25=E25,\"(Seelenschutz)\",\"\")","v":""},null,20,null,null,null,null,null,null,null,null,null,null,null,null,null,null,null,null,null,null,null,null,null,null,"- Teilzone","Ungerüstet",{"$f":"'OT und Infos'!A299","v":"Ein / Viertel"},{"$f":"IF(AO51='OT und Infos'!A280,'OT und Infos'!E280*IF(AP51='OT und Infos'!A297,0.75,IF(AP51='OT und Infos'!A298,0.5,IF(AP51='OT und Infos'!A299,0.25))),IF(AO51='OT und Infos'!A281,'OT und Infos'!E281*IF(AP51='OT und Infos'!A297,0.75,IF(AP51='OT und Infos'!A298,0.5,IF(AP51='OT und Infos'!A299,0.25))),IF(AO51='OT und Infos'!A282,'OT und Infos'!E282*IF(AP51='OT und Infos'!A297,0.75,IF(AP51='OT und Infos'!A298,0.5,IF(AP51='OT und Infos'!A299,0.25))),IF(AO51='OT und Infos'!A283,IF(AP51='OT und Infos'!A297,0.75,IF(AP51='OT und Infos'!A298,0.5,IF(AP51='OT und Infos'!A299,0.25))),IF(AO51='OT und Infos'!A284,IF(AP51='OT und Infos'!A297,0.5,IF(OR(AP51='OT und Infos'!A298,AP51='OT und Infos'!A299),0.25)),IF(AO51='OT und Infos'!A285,'OT und Infos'!E285))))))","v":0},null,null,null,{"$f":"IF(NOT(OR(AO51='OT und Infos'!A285,AO49='OT und Infos'!A285,AP49='OT und Infos'!A296,OR(AND(AP49='OT und Infos'!A297,AP50='OT und Infos'!A299),AND(AP49='OT und Infos'!A298,AP50='OT und Infos'!A298),AND(AP49='OT und Infos'!A299,AP50='OT und Infos'!A297)))),AQ51,0)","v":0},null,null,null,null,null,null,null,null,null,null,null,{"$f":"IF(OR(BF51='Einführung & Hilfe'!$B$65,BF51='Einführung & Hilfe'!$C$65,BF51='Einführung & Hilfe'!$D$65,BF51='Einführung & Hilfe'!$E$65),0,BF51*INDIRECT($B$56&$A$56&$A$57))","v":0},null,null,null,{"$f":"IF(OR(BJ51='Einführung & Hilfe'!$B$65,BJ51='Einführung & Hilfe'!$C$65,BJ51='Einführung & Hilfe'!$D$65,BJ51='Einführung & Hilfe'!$E$65),0,BJ51*INDIRECT($B$56&$A$56&$A$57))","v":0},null,null,null,{"$f":"IF(OR(BN51='Einführung & Hilfe'!$B$65,BN51='Einführung & Hilfe'!$C$65,BN51='Einführung & Hilfe'!$D$65,BN51='Einführung & Hilfe'!$E$65),0,BN51*INDIRECT($B$56&$A$56&$A$57))","v":0},null,null,null,{"$f":"IF(OR(BR51='Einführung & Hilfe'!$B$65,BR51='Einführung & Hilfe'!$C$65,BR51='Einführung & Hilfe'!$D$65,BR51='Einführung & Hilfe'!$E$65),0,BR51*INDIRECT($B$56&$A$56&$A$57))","v":0}]
["Schlösser",null,null,{"$f":"INDIRECT(B56&A56&78)","v":"EXP"},null,null,"III. Magierfertigkeiten",null,null,null,null,null,{"$f":"M16","v":0},"Voodoo",{"$f":"IF(D25=E25,\"(Seelenschutz)\",\"\")","v":""},null,50,null,null,"Legende der Markierung",null,null,null,null,null,null,null,null,null,null,{"$f":"T52","v":"Legende der Markierung"},null,null,null,null,null,null,null,null,"Bein Rechts","Ungerüstet","Voll",{"$f":"IF(AO52='OT und Infos'!A280,'OT und Infos'!E280*IF(AP52='OT und Infos'!A296,1,IF(AP52='OT und Infos'!A297,0.75,IF(AP52='OT und Infos'!A298,0.5,IF(AP52='OT und Infos'!A299,0.25)))),IF(AO52='OT und Infos'!A281,'OT und Infos'!E281*IF(AP52='OT und Infos'!A296,1,IF(AP52='OT und Infos'!A297,0.75,IF(AP52='OT und Infos'!A298,0.5,IF(AP52='OT und Infos'!A299,0.25)))),IF(AO52='OT und Infos'!A282,'OT und Infos'!E282*IF(AP52='OT und Infos'!A296,1,IF(AP52='OT und Infos'!A297,0.75,IF(AP52='OT und Infos'!A298,0.5,IF(AP52='OT und Infos'!A299,0.25)))),IF(AO52='OT und Infos'!A283,'OT und Infos'!E283*IF(AP52='OT und Infos'!A296,1,IF(AP52='OT und Infos'!A297,0.75,IF(AP52='OT und Infos'!A298,0.5,IF(AP52='OT und Infos'!A299,0.25)))),IF(AO52='OT und Infos'!A284,'OT und Infos'!E284*IF(OR(AP52='OT und Infos'!A296,AP52='OT und Infos'!A297),1,IF(OR(AP52='OT und Infos'!A298,AP52='OT und Infos'!A299),0.5)),IF(OR(AO52='OT und Infos'!A285,AO52='OT und Infos'!A286),'OT und Infos'!E285))))))","v":0},"Ungerüstet","Voll",{"$f":"IF(AR52='OT und Infos'!A280,'OT und Infos'!E280*'OT und Infos'!G280*IF(AS52='OT und Infos'!A296,1,IF(AS52='OT und Infos'!A297,0.75,IF(AS52='OT und Infos'!A298,0.5,IF(AS52='OT und Infos'!A299,0.25)))),IF(AR52='OT und Infos'!A281,'OT und Infos'!E281*'OT und Infos'!G281*IF(AS52='OT und Infos'!A296,1,IF(AS52='OT und Infos'!A297,0.75,IF(AS52='OT und Infos'!A298,0.5,IF(AS52='OT und Infos'!A299,0.25)))),IF(AR52='OT und Infos'!A282,'OT und Infos'!E282*'OT und Infos'!G282*IF(AS52='OT und Infos'!A296,1,IF(AS52='OT und Infos'!A297,0.75,IF(AS52='OT und Infos'!A298,0.5,IF(AS52='OT und Infos'!A299,0.25)))),IF(AR52='OT und Infos'!A283,'OT und Infos'!G283*IF(AS52='OT und Infos'!A296,1,IF(AS52='OT und Infos'!A297,0.75,IF(AS52='OT und Infos'!A298,0.5,IF(AS52='OT und Infos'!A299,0.25)))),IF(AR52='OT und Infos'!A284,'OT und Infos'!G284*IF(OR(AS52='OT und Infos'!A296,AS52='OT und Infos'!A297),1,IF(OR(AS52='OT und Infos'!A298,AS52='OT und Infos'!A299),0.5)),IF(AR52='OT und Infos'!A285,'OT und Infos'!E285))))))","v":0},{"$f":"IF(AND(AO52='OT und Infos'!A286,OR(AO45='OT und Infos'!A285,AO45='OT und Infos'!A286),OR(AO46='OT und Infos'!A285,AO46='OT und Infos'!A286),OR(AO49='OT und Infos'!A285,AO49='OT und Infos'!A286),OR(AO53='OT und Infos'!A285,AO53='OT und Infos'!A286)),'OT und Infos'!E286,IF(OR(AO52='OT und Infos'!A285,AO52='OT und Infos'!A286),0,SUM(AQ52,AT52)))","v":0},null,null,null,null,null,null,null,null,null,null,null,{"$f":"IF(OR(BF52='Einführung & Hilfe'!$B$65,BF52='Einführung & Hilfe'!$C$65,BF52='Einführung & Hilfe'!$D$65,BF52='Einführung & Hilfe'!$E$65),0,BF52*INDIRECT($B$56&$A$56&$A$57))","v":0},null,null,null,{"$f":"IF(OR(BJ52='Einführung & Hilfe'!$B$65,BJ52='Einführung & Hilfe'!$C$65,BJ52='Einführung & Hilfe'!$D$65,BJ52='Einführung & Hilfe'!$E$65),0,BJ52*INDIRECT($B$56&$A$56&$A$57))","v":0},null,null,null,{"$f":"IF(OR(BN52='Einführung & Hilfe'!$B$65,BN52='Einführung & Hilfe'!$C$65,BN52='Einführung & Hilfe'!$D$65,BN52='Einführung & Hilfe'!$E$65),0,BN52*INDIRECT($B$56&$A$56&$A$57))","v":0},null,null,null,{"$f":"IF(OR(BR52='Einführung & Hilfe'!$B$65,BR52='Einführung & Hilfe'!$C$65,BR52='Einführung & Hilfe'!$D$65,BR52='Einführung & Hilfe'!$E$65),0,BR52*INDIRECT($B$56&$A$56&$A$57))","v":0}]
[{"$f":"IF('OT und Infos'!D11=INDIRECT(B56&A56&11),\"Fachwissen Schriften\",\"Schriften\")","v":"Schriften"},null,null,{"$f":"INDIRECT(B56&A56&79)","v":"EXP"},null,null,"IV. Zauber / Immunitäten / Sonderf.",null,null,null,null,null,{"$f":"SUM(M47,R33,R54,X16,X37,X42,AC38,AI36)","v":0},"Wahrheit",{"$f":"IF(D25=E25,\"(Seelenschutz)\",\"\")","v":""},null,40,null,null,"Zauber",null,"Z",null,null,null,null,null,null,null,null,{"$f":"T53","v":"Zauber"},null,{"$f":"V53","v":"Z"},null,null,null,null,null,null,"Bein Links","Ungerüstet","Voll",{"$f":"IF(AO53='OT und Infos'!A280,'OT und Infos'!E280*IF(AP53='OT und Infos'!A296,1,IF(AP53='OT und Infos'!A297,0.75,IF(AP53='OT und Infos'!A298,0.5,IF(AP53='OT und Infos'!A299,0.25)))),IF(AO53='OT und Infos'!A281,'OT und Infos'!E281*IF(AP53='OT und Infos'!A296,1,IF(AP53='OT und Infos'!A297,0.75,IF(AP53='OT und Infos'!A298,0.5,IF(AP53='OT und Infos'!A299,0.25)))),IF(AO53='OT und Infos'!A282,'OT und Infos'!E282*IF(AP53='OT und Infos'!A296,1,IF(AP53='OT und Infos'!A297,0.75,IF(AP53='OT und Infos'!A298,0.5,IF(AP53='OT und Infos'!A299,0.25)))),IF(AO53='OT und Infos'!A283,'OT und Infos'!E283*IF(AP53='OT und Infos'!A296,1,IF(AP53='OT und Infos'!A297,0.75,IF(AP53='OT und Infos'!A298,0.5,IF(AP53='OT und Infos'!A299,0.25)))),IF(AO53='OT und Infos'!A284,'OT und Infos'!E284*IF(OR(AP53='OT und Infos'!A296,AP53='OT und Infos'!A297),1,IF(OR(AP53='OT und Infos'!A298,AP53='OT und Infos'!A299),0.5)),IF(OR(AO53='OT und Infos'!A285,AO53='OT und Infos'!A286),'OT und Infos'!E285))))))","v":0},"Ungerüstet","Voll",{"$f":"IF(AR53='OT und Infos'!A280,'OT und Infos'!E280*'OT und Infos'!G280*IF(AS53='OT und Infos'!A296,1,IF(AS53='OT und Infos'!A297,0.75,IF(AS53='OT und Infos'!A298,0.5,IF(AS53='OT und Infos'!A299,0.25)))),IF(AR53='OT und Infos'!A281,'OT und Infos'!E281*'OT und Infos'!G281*IF(AS53='OT und Infos'!A296,1,IF(AS53='OT und Infos'!A297,0.75,IF(AS53='OT und Infos'!A298,0.5,IF(AS53='OT und Infos'!A299,0.25)))),IF(AR53='OT und Infos'!A282,'OT und Infos'!E282*'OT und Infos'!G282*IF(AS53='OT und Infos'!A296,1,IF(AS53='OT und Infos'!A297,0.75,IF(AS53='OT und Infos'!A298,0.5,IF(AS53='OT und Infos'!A299,0.25)))),IF(AR53='OT und Infos'!A283,'OT und Infos'!G283*IF(AS53='OT und Infos'!A296,1,IF(AS53='OT und Infos'!A297,0.75,IF(AS53='OT und Infos'!A298,0.5,IF(AS53='OT und Infos'!A299,0.25)))),IF(AR53='OT und Infos'!A284,'OT und Infos'!G284*IF(OR(AS53='OT und Infos'!A296,AS53='OT und Infos'!A297),1,IF(OR(AS53='OT und Infos'!A298,AS53='OT und Infos'!A299),0.5)),IF(AR53='OT und Infos'!A285,'OT und Infos'!E285))))))","v":0},{"$f":"IF(AND(AO53='OT und Infos'!A286,OR(AO45='OT und Infos'!A285,AO45='OT und Infos'!A286),OR(AO46='OT und Infos'!A285,AO46='OT und Infos'!A286),OR(AO49='OT und Infos'!A285,AO49='OT und Infos'!A286),OR(AO52='OT und Infos'!A285,AO52='OT und Infos'!A286)),'OT und Infos'!E286,IF(OR(AO53='OT und Infos'!A285,AO53='OT und Infos'!A286),0,SUM(AQ53,AT53)))","v":0},null,null,null,null,null,null,null,null,null,null,null,{"$f":"IF(OR(BF53='Einführung & Hilfe'!$B$65,BF53='Einführung & Hilfe'!$C$65,BF53='Einführung & Hilfe'!$D$65,BF53='Einführung & Hilfe'!$E$65),0,BF53*INDIRECT($B$56&$A$56&$A$57))","v":0},null,null,null,{"$f":"IF(OR(BJ53='Einführung & Hilfe'!$B$65,BJ53='Einführung & Hilfe'!$C$65,BJ53='Einführung & Hilfe'!$D$65,BJ53='Einführung & Hilfe'!$E$65),0,BJ53*INDIRECT($B$56&$A$56&$A$57))","v":0},null,null,null,{"$f":"IF(OR(BN53='Einführung & Hilfe'!$B$65,BN53='Einführung & Hilfe'!$C$65,BN53='Einführung & Hilfe'!$D$65,BN53='Einführung & Hilfe'!$E$65),0,BN53*INDIRECT($B$56&$A$56&$A$57))","v":0},null,null,null,{"$f":"IF(OR(BR53='Einführung & Hilfe'!$B$65,BR53='Einführung & Hilfe'!$C$65,BR53='Einführung & Hilfe'!$D$65,BR53='Einführung & Hilfe'!$E$65),0,BR53*INDIRECT($B$56&$A$56&$A$57))","v":0}]
[{"$f":"IF('OT und Infos'!D11=INDIRECT(B56&A56&11),\"Fachwissen Spuren lesen\",\"Spuren lesen\")","v":"Spuren lesen"},null,null,{"$f":"INDIRECT(B56&A56&80)","v":"EXP"},null,null,"Summe gesamt:",null,null,null,null,null,{"$f":"SUM(M50:M53)","v":0},"Summe Beeinflussung:",null,null,null,{"$f":"SUM(SUMIF(Q36:Q53,\">0\",R36:R53),SUMIF(Q36:Q53,\"EXP\",R36:R53))","v":0},null,"Immunität",null,"I",null,null,null,null,null,null,null,null,{"$f":"T54","v":"Immunität"},null,{"$f":"V54","v":"I"},null,null,null,null,null,null,"Boni / Mali",null,null,null,null,null,null,0,null,null,null,null,null,null,null,null,null,null,null,{"$f":"IF(OR(BF54='Einführung & Hilfe'!$B$65,BF54='Einführung & Hilfe'!$C$65,BF54='Einführung & Hilfe'!$D$65,BF54='Einführung & Hilfe'!$E$65),0,BF54*INDIRECT($B$56&$A$56&$A$57))","v":0},null,null,null,{"$f":"IF(OR(BJ54='Einführung & Hilfe'!$B$65,BJ54='Einführung & Hilfe'!$C$65,BJ54='Einführung & Hilfe'!$D$65,BJ54='Einführung & Hilfe'!$E$65),0,BJ54*INDIRECT($B$56&$A$56&$A$57))","v":0},null,null,null,{"$f":"IF(OR(BN54='Einführung & Hilfe'!$B$65,BN54='Einführung & Hilfe'!$C$65,BN54='Einführung & Hilfe'!$D$65,BN54='Einführung & Hilfe'!$E$65),0,BN54*INDIRECT($B$56&$A$56&$A$57))","v":0},null,null,null,{"$f":"IF(OR(BR54='Einführung & Hilfe'!$B$65,BR54='Einführung & Hilfe'!$C$65,BR54='Einführung & Hilfe'!$D$65,BR54='Einführung & Hilfe'!$E$65),0,BR54*INDIRECT($B$56&$A$56&$A$57))","v":0}]
["Summe II:",null,null,null,{"$f":"SUM(SUMIF(D29:D54,\">0\",E29:E54),SUMIF(D29:D54,\"EXP\",E29:E54))","v":0},null,"Summe verfügbar:",null,null,null,null,null,{"$f":"SUM(M6+M7-M54)","v":50},null,null,null,null,null,null,"Angeborene Fähigkeit",null,"A",null,null,null,null,null,null,null,null,{"$f":"T55","v":"Angeborene Fähigkeit"},null,{"$f":"V55","v":"A"},null,null,null,null,null,null,"Gesamt",null,null,null,null,null,null,{"$f":"IF(SUM(AU44:AU54)<'OT und Infos'!E289,ROUNDDOWN(SUM(AU44:AU54,IF('OT und Infos'!E288=\"Ja\",0.5,0)),0),'OT und Infos'!E289)","v":0},null,null,null,null,null,null,null,null,"Summe:",null,null,{"$f":"SUM(BG3:BG54)","v":0},"Summe:",null,null,{"$f":"SUM(BK3:BK54)","v":0},"Summe:",null,null,{"$f":"SUM(BO3:BO54)","v":0},"Summe:",null,null,{"$f":"SUM(BS3:BS54)","v":0}]
[{"$f":"IF(F7='OT und Infos'!C9,\"C\",IF(F7='OT und Infos'!D9,\"D\",IF(F7='OT und Infos'!E9,\"E\",IF(F7='OT und Infos'!F9,\"F\",IF(F7='OT und Infos'!G9,\"G\",IF(F7='OT und Infos'!H9,\"H\"))))))","v":"E"},"'OT und Infos'!"]
[{"$f":"IF(B7='OT und Infos'!A16,\"19\",IF(B7='OT und Infos'!A20,\"23\",IF(B7='OT und Infos'!A24,\"27\",IF(B7='OT und Infos'!A28,\"31\"))))","v":"19"},null,null,null,null,null,null,null,null,null,null,null,null,null,null,{"$f":"INDIRECT($B$56&$A$56&96)","v":1},{"$f":"INDIRECT($B$56&$A$56&103)","v":20},null,null,null,null,null,{"$f":"INDIRECT($B$56&$A$56&154)","v":5},null,null,null,null,{"$f":"INDIRECT($B$56&$A$56&192)","v":30},null,null,null,null,null,{"$f":"INDIRECT($B$56&$A$56&229)","v":30},null,null,null,null,null,null,{"$f":"'OT und Infos'!A280","v":"Platte"},{"$f":"'OT und Infos'!A296","v":"Voll"}]
[{"$f":"IF(B7='OT und Infos'!A16,\"17\",IF(B7='OT und Infos'!A20,\"21\",IF(B7='OT und Infos'!A24,\"25\",IF(B7='OT und Infos'!A28,\"29\"))))","v":"17"},null,null,null,null,null,null,null,null,null,null,null,null,null,null,{"$f":"INDIRECT($B$56&$A$56&98)","v":2},{"$f":"INDIRECT($B$56&$A$56&104)","v":200},null,null,null,null,null,{"$f":"INDIRECT($B$56&$A$56&155)","v":5},null,null,null,null,{"$f":"INDIRECT($B$56&$A$56&193)","v":20},null,null,null,null,null,{"$f":"INDIRECT($B$56&$A$56&230)","v":50},null,null,null,null,null,null,{"$f":"'OT und Infos'!A281","v":"Lamellar"},{"$f":"'OT und Infos'!A297","v":"Drei / Viertel"}]
[null,null,null,null,null,null,null,null,null,null,null,null,null,null,null,null,{"$f":"INDIRECT($B$56&$A$56&105)","v":70},null,null,null,null,null,{"$f":"INDIRECT($B$56&$A$56&156)","v":5},null,null,null,null,{"$f":"INDIRECT($B$56&$A$56&194)","v":40},null,null,null,null,null,{"$f":"INDIRECT($B$56&$A$56&231)","v":100},null,null,null,null,null,null,{"$f":"'OT und Infos'!A282","v":"Kette"},{"$f":"'OT und Infos'!A298","v":"Halb"}]
[null,null,null,null,null,null,null,null,null,null,null,null,null,null,null,null,{"$f":"INDIRECT($B$56&$A$56&106)","v":200},null,null,null,null,null,{"$f":"INDIRECT($B$56&$A$56&157)","v":5},null,null,null,null,{"$f":"INDIRECT($B$56&$A$56&195)","v":40},null,null,null,null,null,{"$f":"INDIRECT($B$56&$A$56&232)","v":30},null,null,null,null,null,null,{"$f":"'OT und Infos'!A283","v":"Leder"},{"$f":"'OT und Infos'!A299","v":"Ein / Viertel"}]
[null,null,null,null,null,null,null,null,null,null,null,null,null,null,null,null,{"$f":"INDIRECT($B$56&$A$56&107)","v":40},null,null,null,null,null,{"$f":"INDIRECT($B$56&$A$56&158)","v":5},null,null,null,null,{"$f":"INDIRECT($B$56&$A$56&196)","v":30},null,null,null,null,null,{"$f":"INDIRECT($B$56&$A$56&233)","v":50},null,null,null,null,null,null,{"$f":"'OT und Infos'!A284","v":"Gambeson"}]
[null,null,null,null,null,null,null,null,null,null,null,null,null,null,null,null,{"$f":"INDIRECT($B$56&$A$56&108)","v":100},null,null,null,null,null,{"$f":"INDIRECT($B$56&$A$56&159)","v":5},null,null,null,null,{"$f":"INDIRECT($B$56&$A$56&197)","v":50},null,null,null,null,null,{"$f":"INDIRECT($B$56&$A$56&234)","v":50},null,null,null,null,null,null,{"$f":"'OT und Infos'!A285","v":"Ungerüstet"}]
[null,null,null,null,null,null,null,null,null,null,null,null,null,null,null,null,{"$f":"INDIRECT($B$56&$A$56&109)","v":40},null,null,null,null,null,{"$f":"INDIRECT($B$56&$A$56&160)","v":5},null,null,null,null,{"$f":"INDIRECT($B$56&$A$56&198)","v":10},null,null,null,null,null,{"$f":"INDIRECT($B$56&$A$56&235)","v":100},null,null,null,null,null,null,{"$f":"'OT und Infos'!A286","v":"Unbekleidet"}]
[null,null,null,null,null,null,null,null,null,null,null,null,null,null,null,null,{"$f":"INDIRECT($B$56&$A$56&110)","v":50},null,null,null,null,null,{"$f":"INDIRECT($B$56&$A$56&161)","v":5},null,null,null,null,{"$f":"INDIRECT($B$56&$A$56&199)","v":10},null,null,null,null,null,{"$f":"INDIRECT($B$56&$A$56&236)","v":150}]
[null,null,null,null,null,null,null,null,null,null,null,null,null,null,null,null,{"$f":"INDIRECT($B$56&$A$56&111)","v":100},null,null,null,null,null,{"$f":"INDIRECT($B$56&$A$56&162)","v":5},null,null,null,null,{"$f":"INDIRECT($B$56&$A$56&200)","v":30},null,null,null,null,null,{"$f":"INDIRECT($B$56&$A$56&237)","v":10}]
[null,null,null,null,null,null,null,null,null,null,null,null,null,null,null,null,{"$f":"INDIRECT($B$56&$A$56&112)","v":40},null,null,null,null,null,{"$f":"INDIRECT($B$56&$A$56&163)","v":5},null,null,null,null,{"$f":"INDIRECT($B$56&$A$56&201)","v":50},null,null,null,null,null,{"$f":"INDIRECT($B$56&$A$56&238)","v":20}]
[null,null,null,null,null,null,null,null,null,null,null,null,null,null,null,null,{"$f":"INDIRECT($B$56&$A$56&113)","v":100},null,null,null,null,null,{"$f":"INDIRECT($B$56&$A$56&164)","v":5},null,null,null,null,{"$f":"INDIRECT($B$56&$A$56&202)","v":"X"},null,null,null,null,null,{"$f":"INDIRECT($B$56&$A$56&239)","v":30}]
[null,null,null,null,null,null,null,null,null,null,null,null,null,null,null,null,{"$f":"INDIRECT($B$56&$A$56&114)","v":50},null,null,null,null,null,{"$f":"INDIRECT($B$56&$A$56&165)","v":5},null,null,null,null,{"$f":"INDIRECT($B$56&$A$56&203)","v":150},null,null,null,null,null,{"$f":"INDIRECT($B$56&$A$56&240)","v":40}]
[null,null,null,null,null,null,null,null,null,null,null,null,null,null,null,null,{"$f":"INDIRECT($B$56&$A$56&115)","v":20},null,null,null,null,null,null,null,null,null,null,{"$f":"INDIRECT($B$56&$A$56&204)","v":100},null,null,null,null,null,{"$f":"INDIRECT($B$56&$A$56&241)","v":50}]
[null,null,null,null,null,null,null,null,null,null,null,null,null,null,null,null,{"$f":"INDIRECT($B$56&$A$56&116)","v":30},null,null,null,null,null,null,null,null,null,null,{"$f":"INDIRECT($B$56&$A$56&205)","v":20},null,null,null,null,null,{"$f":"INDIRECT($B$56&$A$56&242)","v":60}]
[null,null,null,null,null,null,null,null,null,null,null,null,null,null,null,null,{"$f":"INDIRECT($B$56&$A$56&117)","v":40},null,null,null,null,null,null,null,null,null,null,{"$f":"INDIRECT($B$56&$A$56&206)","v":30},null,null,null,null,null,{"$f":"INDIRECT($B$56&$A$56&243)","v":20}]
[null,null,null,null,null,null,null,null,null,null,null,null,null,null,null,null,{"$f":"INDIRECT($B$56&$A$56&118)","v":100},null,null,null,null,null,{"$f":"INDIRECT($B$56&$A$56&168)","v":20},null,null,null,null,{"$f":"INDIRECT($B$56&$A$56&207)","v":40},null,null,null,null,null,{"$f":"INDIRECT($B$56&$A$56&244)","v":40}]
[null,null,null,null,null,null,null,null,null,null,null,null,null,null,null,null,{"$f":"INDIRECT($B$56&$A$56&119)","v":30},null,null,null,null,null,{"$f":"INDIRECT($B$56&$A$56&169)","v":20},null,null,null,null,{"$f":"INDIRECT($B$56&$A$56&208)","v":40},null,null,null,null,null,{"$f":"INDIRECT($B$56&$A$56&245)","v":70}]
[null,null,null,null,null,null,null,null,null,null,null,null,null,null,null,null,{"$f":"INDIRECT($B$56&$A$56&120)","v":20},null,null,null,null,null,{"$f":"INDIRECT($B$56&$A$56&170)","v":30},null,null,null,null,{"$f":"INDIRECT($B$56&$A$56&209)","v":30},null,null,null,null,null,{"$f":"INDIRECT($B$56&$A$56&246)","v":100}]
[null,null,null,null,null,null,null,null,null,null,null,null,null,null,null,null,{"$f":"INDIRECT($B$56&$A$56&121)","v":10},null,null,null,null,null,{"$f":"INDIRECT($B$56&$A$56&171)","v":30},null,null,null,null,{"$f":"INDIRECT($B$56&$A$56&210)","v":50},null,null,null,null,null,{"$f":"INDIRECT($B$56&$A$56&247)","v":150}]
[null,null,null,null,null,null,null,null,null,null,null,null,null,null,null,null,{"$f":"INDIRECT($B$56&$A$56&122)","v":30},null,null,null,null,null,{"$f":"INDIRECT($B$56&$A$56&172)","v":250},null,null,null,null,{"$f":"INDIRECT($B$56&$A$56&211)","v":20},null,null,null,null,null,{"$f":"INDIRECT($B$56&$A$56&248)","v":200}]
[null,null,null,null,null,null,null,null,null,null,null,null,null,null,null,null,{"$f":"INDIRECT($B$56&$A$56&123)","v":50},null,null,null,null,null,{"$f":"INDIRECT($B$56&$A$56&173)","v":10},null,null,null,null,{"$f":"INDIRECT($B$56&$A$56&212)","v":10},null,null,null,null,null,{"$f":"INDIRECT($B$56&$A$56&249)","v":20}]
[null,null,null,null,null,null,null,null,null,null,null,null,null,null,null,null,{"$f":"INDIRECT($B$56&$A$56&124)","v":10},null,null,null,null,null,{"$f":"INDIRECT($B$56&$A$56&174)","v":50},null,null,null,null,{"$f":"INDIRECT($B$56&$A$56&213)","v":50},null,null,null,null,null,{"$f":"INDIRECT($B$56&$A$56&250)","v":100}]
[null,null,null,null,null,null,null,null,null,null,null,null,null,null,null,null,{"$f":"INDIRECT($B$56&$A$56&125)","v":30},null,null,null,null,null,{"$f":"INDIRECT($B$56&$A$56&175)","v":40},null,null,null,null,{"$f":"INDIRECT($B$56&$A$56&214)","v":50},null,null,null,null,null,{"$f":"INDIRECT($B$56&$A$56&251)","v":500}]
[null,null,null,null,null,null,null,null,null,null,null,null,null,null,null,null,{"$f":"INDIRECT($B$56&$A$56&126)","v":20},null,null,null,null,null,{"$f":"INDIRECT($B$56&$A$56&176)","v":250},null,null,null,null,{"$f":"INDIRECT($B$56&$A$56&215)","v":50},null,null,null,null,null,{"$f":"INDIRECT($B$56&$A$56&252)","v":300}]
[null,null,null,null,null,null,null,null,null,null,null,null,null,null,null,null,{"$f":"INDIRECT($B$56&$A$56&127)","v":30},null,null,null,null,null,{"$f":"INDIRECT($B$56&$A$56&177)","v":100},null,null,null,null,{"$f":"INDIRECT($B$56&$A$56&216)","v":20},null,null,null,null,null,{"$f":"INDIRECT($B$56&$A$56&253)","v":200}]
[null,null,null,null,null,null,null,null,null,null,null,null,null,null,null,null,{"$f":"INDIRECT($B$56&$A$56&128)","v":150},null,null,null,null,null,{"$f":"INDIRECT($B$56&$A$56&178)","v":50},null,null,null,null,{"$f":"INDIRECT($B$56&$A$56&217)","v":40},null,null,null,null,null,{"$f":"INDIRECT($B$56&$A$56&254)","v":40}]
[null,null,null,null,null,null,null,null,null,null,null,null,null,null,null,null,{"$f":"INDIRECT($B$56&$A$56&129)","v":30},null,null,null,null,null,{"$f":"INDIRECT($B$56&$A$56&179)","v":20},null,null,null,null,{"$f":"INDIRECT($B$56&$A$56&218)","v":40},null,null,null,null,null,{"$f":"INDIRECT($B$56&$A$56&255)","v":80}]
[null,null,null,null,null,null,null,null,null,null,null,null,null,null,null,null,{"$f":"INDIRECT($B$56&$A$56&130)","v":50},null,null,null,null,null,{"$f":"INDIRECT($B$56&$A$56&180)","v":10},null,null,null,null,{"$f":"INDIRECT($B$56&$A$56&219)","v":30},null,null,null,null,null,{"$f":"INDIRECT($B$56&$A$56&256)","v":140}]
[null,null,null,null,null,null,null,null,null,null,null,null,null,null,null,null,{"$f":"INDIRECT($B$56&$A$56&131)","v":40},null,null,null,null,null,{"$f":"INDIRECT($B$56&$A$56&181)","v":10},null,null,null,null,{"$f":"INDIRECT($B$56&$A$56&220)","v":40},null,null,null,null,null,{"$f":"INDIRECT($B$56&$A$56&257)","v":200}]
[null,null,null,null,null,null,null,null,null,null,null,null,null,null,null,null,null,null,null,null,null,null,{"$f":"INDIRECT($B$56&$A$56&182)","v":40},null,null,null,null,{"$f":"INDIRECT($B$56&$A$56&221)","v":100},null,null,null,null,null,{"$f":"INDIRECT($B$56&$A$56&258)","v":300}]
[null,null,null,null,null,null,null,null,null,null,null,null,null,null,null,null,null,null,null,null,null,null,{"$f":"INDIRECT($B$56&$A$56&183)","v":30},null,null,null,null,{"$f":"INDIRECT($B$56&$A$56&222)","v":50},null,null,null,null,null,{"$f":"INDIRECT($B$56&$A$56&259)","v":400}]
[null,null,null,null,null,null,null,null,null,null,null,null,null,null,null,null,null,null,null,null,null,null,{"$f":"INDIRECT($B$56&$A$56&184)","v":50},null,null,null,null,{"$f":"INDIRECT($B$56&$A$56&223)","v":40},null,null,null,null,null,{"$f":"INDIRECT($B$56&$A$56&260)","v":30}]
[null,null,null,null,null,null,null,null,null,null,null,null,null,null,null,null,{"$f":"INDIRECT($B$56&$A$56&134)","v":100},null,null,null,null,null,{"$f":"INDIRECT($B$56&$A$56&185)","v":100},null,null,null,null,{"$f":"INDIRECT($B$56&$A$56&224)","v":20}]
[null,null,null,null,null,null,null,null,null,null,null,null,null,null,null,null,{"$f":"INDIRECT($B$56&$A$56&135)","v":10},null,null,null,null,null,null,null,null,null,null,{"$f":"INDIRECT($B$56&$A$56&225)","v":20}]
[null,null,null,null,null,null,null,null,null,null,null,null,null,null,null,null,{"$f":"INDIRECT($B$56&$A$56&136)","v":20},null,null,null,null,null,null,null,null,null,null,{"$f":"INDIRECT($B$56&$A$56&226)","v":60}]
[null,null,null,null,null,null,null,null,null,null,null,null,null,null,null,null,{"$f":"INDIRECT($B$56&$A$56&137)","v":30}]
[null,null,null,null,null,null,null,null,null,null,null,null,null,null,null,null,{"$f":"INDIRECT($B$56&$A$56&138)","v":50},null,null,null,null,null,{"$f":"INDIRECT($B$56&$A$56&188)","v":20}]
[null,null,null,null,null,null,null,null,null,null,null,null,null,null,null,null,{"$f":"INDIRECT($B$56&$A$56&139)","v":10},null,null,null,null,null,{"$f":"INDIRECT($B$56&$A$56&189)","v":60}]
[null,null,null,null,null,null,null,null,null,null,null,null,null,null,null,null,{"$f":"INDIRECT($B$56&$A$56&140)","v":20}]
[null,null,null,null,null,null,null,null,null,null,null,null,null,null,null,null,{"$f":"INDIRECT($B$56&$A$56&141)","v":20}]
[null,null,null,null,null,null,null,null,null,null,null,null,null,null,null,null,{"$f":"INDIRECT($B$56&$A$56&142)","v":250}]
[null,null,null,null,null,null,null,null,null,null,null,null,null,null,null,null,{"$f":"INDIRECT($B$56&$A$56&143)","v":100}]
[null,null,null,null,null,null,null,null,null,null,null,null,null,null,null,null,{"$f":"INDIRECT($B$56&$A$56&144)","v":30}]
[null,null,null,null,null,null,null,null,null,null,null,null,null,null,null,null,{"$f":"INDIRECT($B$56&$A$56&145)","v":"X"}]
[null,null,null,null,null,null,null,null,null,null,null,null,null,null,null,null,{"$f":"INDIRECT($B$56&$A$56&146)","v":20}]
[null,null,null,null,null,null,null,null,null,null,null,null,null,null,null,null,{"$f":"INDIRECT($B$56&$A$56&147)","v":20}]
[null,null,null,null,null,null,null,null,null,null,null,null,null,null,null,null,{"$f":"INDIRECT($B$56&$A$56&148)","v":30}]
[null,null,null,null,null,null,null,null,null,null,null,null,null,null,null,null,{"$f":"INDIRECT($B$56&$A$56&149)","v":20}]
[null,null,null,null,null,null,null,null,null,null,null,null,null,null,null,null,{"$f":"INDIRECT($B$56&$A$56&150)","v":50}]
[null,null,null,null,null,null,null,null,null,null,null,null,null,null,null,null,{"$f":"INDIRECT($B$56&$A$56&151)","v":40}]

{"sheet":"NSC","index":4,"n_rows":51,"n_cols":8,"rows_kept":51,"cut":false,"hidden":false,"merged":[[0,0,0,3],[0,4,0,7]]}
["NSC",null,null,null,"NSC"]
["Convention / Besondere Aktion","Datum","Con-Tage","Exp","Convention / Besondere Aktion","Datum","Con-Tage","Exp"]
[]
[]
[]
[]
[]
[]
[]
[]
[]
[]
[]
[]
[]
[]
[]
[]
[]
[]
[]
[]
[]
[]
[]
[]
[]
[]
[]
[]
[]
[]
[]
[]
[]
[]
[]
[]
[]
[]
[]
[]
[]
[]
[]
[]
[]
[]
[]
[]
[null,null,"Summe:",{"$f":"SUM(D3:D41)","v":0},null,null,"Summe:",{"$f":"SUM(H3:H41)","v":0}]